Workbook

Sheet PISA JUNIO 2019 (hidden)

Sheet ANEXO AySA NOTAS MONTOS (hidden)
C1: ANEXO AySA - NOTAS EN CAMPOS CORRESPONDIENTES A "MONTOS ORIGINAL", "MODIFICACIONES MONTO ORIGINAL" Y "MONTO VIGENTE"
A4: DIRECCION | B4: NOTA | C4: OC | D4: CONTRATISTA | E4: Revisión | F4: Monto revisiones | G4: Monto original con IVA Total OC | H4: Monto Revisiones con IVA - Total OC | I4: Monto vigente con IVA Total OC | J4: Monto estimado inversiones sobre el monto vigente con IVA | K4: Observaciones
A5: DRCF | B5: NOTA 1 | C5: 17305 | D5: COMPANIA SUDAMERICANA DE GAS S.A. | E5: Rev. 1 - ítems 13 al 24;Rev. 1 - ítems 25 al 30 | F5: 3.389.147,7; 282.283,89 | G5: =+I5-H5 -> 13669562.39 | H5: =(3389147.7+282283.89)*1.21 -> 4442432.224 | I5: 18111994.61
B6: NOTA 2 | C6: 17306 | D6: CONSTRUCCIONES ZUBDESA S.A. | E6: Rev. 1 Items 9 al 16. Rev 2 Items 17 al 20 | F6: $1.503.267,90;$ 117.073,47 | G6: 6063180.53 | H6: =(1503267.9+117073.47)*1.21 -> 1960613.058 | I6: 8023793.588
B7: NOTA 3 | C7: 20690 | D7: CONSTRUCCIONES ZUBDESA S.A. | E7: Rev. 1 ítems 25 al 32; Rev. 2 ítems 33 a 40; Rev 3 ítems 41 a 48; Rev. 4 ítems 49, 50 y 51- Se reduce monto ítems 9, 11, 17, 18 y 40;Rev. 6 items 52,53,54. | F7: $654.958,02;$756.289,58; $1.303.101,49;0;21.041.820,68 | G7: 55992515.5 | H7: =(654958.02+756289.58+1303101.49+21041820.68)*1.21 -> 28744965.42 | I7: 84737480.92
B8: NOTA 4 | C8: 20691 | D8: COMPANIA SUDAMERICANA DE GAS S.A. | E8: Rev. 1 ítem 25 a 27; Rev. 2 ítems 28 al 35;Rev. 3 ítems 51 al 58; Rev. 4 ítems 45 a 50;Rev. 5 ítems 51 a 58 | F8: $12.000.000;1.316.956,80;$1.587.171,06;$43.441.043;$3.085.787,72 | G8: 93613715.81 | H8: =(12000000+1316956.8+1587171.06+43441043+3085787.72)*1.21 -> 74331459.88 | I8: 167945175.7
A9: DRO | B9: NOTA 5 | C9: 3997 | D9: Construcciones Zubdesa S.A. | E9: Rev 1. Items 9, 10 y 11;Rev.2 ítems n° 12, 13 y 14; Rev. 4 ítems N° 15 al 18;Rev. 5 Items 19 a 22. | F9: $ 1.022.139; $ 326.643,00.-;$ 13.640.216,00;$ 346.776,00 | G9: 26210235.92 | H9: =(1022139+326643+13640216+346776)*1.21 -> 18556286.54 | I9: 44766522.46
B10: NOTA 6 | C10: 17310 | D10: Construcciones Zubdesa S.A. | E10: Rev. 2 ítems 17 al 22;Rev. 3 ítems 23 al 30 | F10: $ 2.235.000.-; $201.975 | G10: 13447670.17 | H10: =(2235000+201975)*1.21 -> 2948739.75 | I10: 16396409.92 | J10: 8721442.84
B11: NOTA 7 | C11: 11530 | D11: APCO SA | E11: Sin revision | F11: Sin revision | G11: =+I11 -> 332095.2085 | H11: 0 | I11: 332095.2085
B12: NOTA 8 | C12: 17605 | D12: Rowing SA | E12: Sin revision | F12: Sin revision | G12: =+I12 -> 542789.5319 | H12: 0 | I12: 542789.5319
B13: NOTA 9 | C13: 20694 | D13: Construcciones Zubdesa S.A. | E13: Rev. 1 ítem 41 a 60;Rev. 2 ítems 63 al 72;Rev. 3 ítems 73 y 74.;Rev. 4 ítems 77 y 78; Rev. 5 ítem 79 y 80 | F13: $1.325.141.;$ 907.443;$ 2.137.676;$ 1.554.174; $ 11.642.103 | G13: 95550462.38 | H13: 21255509.77 | I13: =+G13+H13 -> 116805972.1 | J13: 54760237.24
B14: NOTA 26 | C14: 20695 | D14: C&E Construcciones S.A. | E14: Rev. 1 ítem 33 a 48;Rev. 2 ítems 49 al 56;Rev. 3 ítems 57 y 58.;Rev. 4 ítems 59 y 60 | F14: $695.535; $447.219; $1.029.435; $809.920 | G14: 67316984.45 | H14: 3608351.89 | I14: =+G14+H14 -> 70925336.34 | J14: 37356369.23
A15: DRSE | B15: NOTA 10 | C15: 4000 | D15: APCO S.A. | E15: Rev. 1 Items 4, 5 y 6;Rev.2 Items 7 a 9;Rev. 3 Items 10 a 12; Rev 4 Items 13 a 15;Rev 5 Ítems 16 a 27 | F15: 11315457;$ 444,822.00;$12.850.000,00;$ 1.430.000,00;$ 539.479,53 | G15: =+I15-H15 -> 20464913.92 | H15: =(11315457+444822+12850000+1430000+539479.53)*1.21 -> 32161507.82 | I15: 52626421.74
B16: NOTA 11 | C16: 4003 | D16: TORASSO-SAUCEDAL UTE | E16: Rev. 1 Items 4 y 5;Rev. 2 items 6 a 8 ;Rev. 4 Items 9 a 11 ;Rev. 5 Items 12 a 13 | F16: $ 2781951;$ 287.705,00;$ 5.232.000,00;$ 2.137.000,00 | G16: 16575913.9 | H16: =(2781951+287705+5232000+2137000)*1.21 -> 12630773.76 | I16: 29206687.66
B17: NOTA 12 | C17: 17312 | D17: COMPANIA SUDAMERICANA DE GAS S.A. | E17: Rev. 1 ítems 16 al 21; Rev. 2 ítems 22 a 27. | F17: $2.967.163,70.;$303.347,72.- | G17: 11967560.33 | H17: =(2967163.7+303347.72)*1.21 -> 3957318.818 | I17: 15924879.15
B18: NOTA 13 | C18: 17313 | D18: TORASSO-SAUCEDAL UTE | E18: Rev. 1 ítems 11 al 14;Rev. 3 ítems 15 al 18 | F18: $275.000,00.;$54.340,16. | G18: 3465915.082 | H18: =(275000+54340.16)*1.21 -> 398501.5936 | I18: 3864416.676
B19: NOTA 14 | C19: 20696 | D19: COMPANIA SUDAMERICANA DE GAS S.A. | E19: Rev. 1 ítems 25 al 36;Rev. 2 ítems 37 al 42;Rev. 3 ítems 43 al 48; Rev. 4 ítems 49 a 55 con reducción de items varios; Rev. 5 ítems 56 al 61 | F19: $1.204.899,11;$995.179,10;$2.122.439,11;0;$1.752.592,62 | G19: 81107297.86 | H19: =(1204899.11+995179.1+2122439.11+1752592.62)*1.21 -> 7350883.027 | I19: 88458180.89
B20: NOTA 15 | C20: 20697 | D20: TORASSO-SAUCEDAL UTE | E20: Rev. ítems 25 al 32; Rev. 2 items 23 a 26; Rev.3 Items 27 a 30; Rev 4 items 31 al 34 | F20: $175.746,23.-;$184.978,74;$ 391.702,67;$287.356,05.- | G20: 25347685.29 | H20: =(175746.23+184978.74+391702.67+287356.05)*1.21 -> 1258138.265 | I20: 26605823.56
B21: NOTA 16 | C21: 31162 | D21: COMPANIA SUDAMERICANA DE GAS S.A. | E21: Sin revision | F21: Sin revision | G21: =+I21 -> 11164859.27 | H21: 0 | I21: 11164859.27 | J21: =(391483.65+947823.78+2868174.91+1892036.4)*1.21 -> 7380417.675
A22: DRSO | B22: NOTA 17 | C22: 17314 | D22: Torasso Saucedal | E22: 12393394.75 | H22: =(1300000+171305.42)*1.21 -> 1780279.558 | I22: 12393394.75
B23: NOTA 18 | C23: 20698 | D23: Torasso Saucedal UTE | E23: Rev. 2 items 58 a 69;Rev.3 ítems 70 a 77;Rev. 4 ítems 78 a 89;Rev. 5 ítems 90 a 104;Rev. 6 ítems 105 a 123; | F23: $736.227,31.-; $646.216,20.-; $1.214.270,49.-; $730.100,63;$ 12.962.410.- | G23: 66144806.19 | H23: =+I23-G23 -> 100575608.3 | I23: 166720414.5 | J23: 83003589.33
B24: -NOTA 18.1 | C24: 20698 | D24: Torasso Saucedal UTE | J24: 15982036.49 | K24: Inversiones - Municipios Almirante Brown - Esteban Echeverria
B25: -NOTA 18.2 | C25: 20698 | D25: Torasso Saucedal UTE | J25: 10977150.2 | K25: Inversiones - Municipios Almirante Brown - Esteban Echeverria - Ezeiza
B26: -NOTA 18.3 | C26: 20698 | D26: Torasso Saucedal UTE | J26: 7409965.04 | K26: Inversiones - Municipio de Ezeiza
B27: -NOTA 18.4 | C27: 20698 | D27: Torasso Saucedal UTE | J27: 32807109.18 | K27: Inversiones - Municipio de Lomas de Zamora
B28: -NOTA 18.5 | C28: 20698 | D28: Torasso Saucedal UTE | J28: 15827328.42 | K28: Inversiones - Región Sudoeste
B29: NOTA 19 | C29: 26334 | D29: APCO | E29: 287004.9094 | H29: 0 | I29: 287004.9094
A31: A+T | B31: NOTA 20 | C31: Cada proyecto de inversión de la Dirección de Desarrollo de la Comunidad incluye varios módulos, cuyo plazos de obra varía de acuerdo a la complejidad de las tareas, tipo de suelo, cantidad de metros. La duración promedio de cada módulo es de 8 a 12 meses
B34: NOTA 21 | C34: En 2012 los cargos en concepto de mano de obra no tienen IVA
A37: DI M&M | B37: NOTA 22 | C37: Proyectos 1060571/1060572/1060581/1060584/1060587/1060590/1060593 | G37: 5074689 | H37: =+I37-G37 -> 626367 | I37: 5701056 | K37: Este monto vigente fue prorrateado en función del monto de ejecución.
A40: A+T | B40: NOTA 23 | C40: Para el cálculo del monto contractual vigente, la Dirección de Desarrollo de la Comunidad (A+T), adiciona al monto del convenio, el monto ejecutado de materiales y contratistas con IVA, contratistas sin IVA (Sgbatos) por capacitaciones y mano de obra
E43: MONTO OC S/IVA | F43: MONTO OC C/IVA
A44: DRSO | B44: NOTA 26 | C44: 36943 | D44: TORASSO Construcciones S.R.L.-CyCO Asociados S.A.-CS Tarsa S.A. (UTE) | E44: 72151336.5 | F44: =+E44*1.21 -> 87303117.16
C46: 36942 | D46: TORASSO Construcciones S.R.L.-CyCO Asociados S.A.-CS Tarsa S.A. (UTE) | E46: 30080386.21 | F46: =+E46*1.21 -> 36397267.31
C48: 36941 | D48: TORASSO Construcciones S.R.L.-CyCO Asociados S.A.-CS Tarsa S.A. (UTE) | E48: 120679757.4 | F48: =+E48*1.21 -> 146022506.4
D51: N°OC | E51: CONTRATISTA | F51: MONTO OC S/IVA | G51: MONTO OC C/IVA | H51: VIGENCIA ORDEN DE COMPRA
A52: DRSE | B52: NOTA 27 | C52: 1659 - 1679-1680 | D52: 39632 | E52: COMPANIA SUDAMERICANA DE GAS S.A. | F52: 175166909.6 | G52: =F52*1.21 -> 211951960.6 | H52: 1/10/14 AL 30/09/17
D54: 39631 | E54: APCO S.A. | F54: 78685842.1 | G54: =F54*1.21 -> 95209868.94 | H54: 1/10/14 AL 30/09/17
C58: NOTA 24
C60: N° DE ORDEN: 298
C62: PROYECTO: N960502 - NUEVAS PERFORACIONES POR ADMINISTRACION OBRA CIVIL
C63: PROYECTO: N960503 - NUEVAS PERFORACIONES POR ADMINISTRACION OBRA ELECTROMECÁNICA
C65: Municipio | D65: Barrio / Localidad | E65: Localización exacta
C66: Almirante Brown | D66: Ministro Rivadavia | E66: Estanislao Cevallos a 650 mts R. Argentina
C67: Almirante Brown | D67: Ministro Rivadavia | E67: Calle Rivera a 700 mts Av. Espora
C68: Almirante Brown | D68: Burzaco | E68: Villarino a 700 mts. de Av. Argentina
C69: Esteban Echeverría | D69: Monte Grande | E69: Subtte. Gonzalez y Vias Metropolitano
C70: Esteban Echeverría | D70: Monte Grande | E70: Tte. Grande y Vias Metropolitano
C71: Esteban Echeverría | D71: Monte Grande | E71: Casacuberta e/ Av. Valette y J. V González
C72: Esteban Echeverría | D72: Monte Grande | E72: Lima e/ Av. Valette y Francia
C73: La Matanza | D73: Virrey del Pino | E73: Balleirini y Areco
C74: La Matanza | D74: Virrey del Pino | E74: Areco y California
C75: La Matanza | D75: Virrey del Pino | E75: Chivilcoy y California
C76: La Matanza | D76: Virrey del Pino | E76: Nahuel Huapi y Esperanza
C77: La Matanza | D77: Virrey del Pino | E77: Loefler e/ Villarroel y Fernandez
C78: La Matanza | D78: Virrey del Pino | E78: Pedro de Angelis s/n e/ Caldas y Nuñez
C79: La Matanza | D79: Virrey del Pino | E79: P. de Angelis y Nahuel Huapi
C80: La Matanza | D80: Virrey del Pino | E80: Nazarre Alejo y Paraná
C81: La Matanza | D81: Virrey del Pino | E81: Navarro y Paraná
C82: La Matanza | D82: Virrey del Pino | E82: California y Patagonia
C83: La Matanza | D83: Gonzalez Catán | E83: Barrientos e Iberá
C84: La Matanza | D84: Gonzalez Catán | E84: J. Nuwbery e/ Barrientos y Barragán
C85: La Matanza | D85: Rafael Castillo | E85: Esquiro e/ Eufrates y Chavarria
C88: NOTA 25
C90: N° DE ORDEN: 1274
C92: PROYECTO: 1054012 - INSTRUMENTACION - LP2
C94: INSTRUMENTOS | D94: CANTIDAD | E94: Estación Elevadora | F94: Partido | G94: Direcciòn
C95: Medidores de nivel para tanques de hipoclorito | D95: 4 | E95: EE Floresta | F95: Capital Federal | G95: Florentino Ameghino 1452
D96: 3 | E96: EE Lanús | F96: Lanús | G96: Salta 350 - Lanús
D97: 4 | E97: EE Constitución | F97: Capital Federal | G97: Pavon 1859. Capital
D98: 3 | E98: EE Centro | F98: Capital Federal | G98: Ayacucho 750
D99: 2 | E99: EE Devoto | F99: Capital Federal | G99: Navarro 4150
C100: Medidores de Temperatura sin contacto | D100: 1 | E100: EE Tres de Febrero | F100: Tres de Febrero | G100: M de Alvear 2300. J. Ingenieros
D101: 1 | E101: EE Caballito | F101: Capital Federal | G101: Av. Pedro Goyena 458
D102: 1 | E102: EE Centro | F102: Capital Federal | G102: Ayacucho 750
D103: 1 | E103: EE La Matanza | F103: La Matanza | G103: Av. San Martín y Nazca (Lomas del Mirador)
D104: 1 | E104: EE Devoto | F104: Capital Federal | G104: Navarro 4150
C105: Medidores de presión lineal con display digital | D105: 38 | E105: EE Devoto | F105: Capital Federal | G105: Navarro 4150
D106: 12 | E106: EE Centro | F106: Capital Federal | G106: Ayacucho 750
D107: 15 | E107: EE Caballito | F107: Capital Federal | G107: Av. Pedro Goyena 458
D108: 1 | E108: EE Constitución | F108: Capital Federal | G108: Pavon 1859. Capital
C109: Luxómetro digital | D109: 1 | E109: Oficina Técnica de EE | F109: Capital Federal | G109: Av. de los Ombúes 209
C110: Decibelímetro digital | D110: 1 | E110: Oficina Técnica de EE | F110: Capital Federal | G110: Av. de los Ombúes 209
C111: Medidores de nivel para cámaras de aspiración con display digital. | D111: 1 | E111: EE Floresta | F111: Capital Federal | G111: Florentino Ameghino 1452
D112: 1 | E112: EE Constitución | F112: Capital Federal | G112: Pavon 1859. Capital
D113: 1 | E113: EE Centro | F113: Capital Federal | G113: Ayacucho 750
D114: 1 | E114: EE Lanús | F114: Lanús | G114: Salta 350 - Lanús
D115: 1 | E115: EE Devoto | F115: Capital Federal | G115: Navarro 4150
D116: 1 | E116: EE Tres de Febrero | F116: Tres de Febrero | G116: M de Alvear 2300. J. Ingenieros
D117: 1 | E117: EE Morón | F117: Morón | G117: Derqui 1, y Acceso Oeste. Morón
D118: 1 | E118: EE Villa Adelina | F118: Vte. López | G118: Caxaraville 3530. Carapachay
D119: 1 | E119: EE Saveedra | F119: Capital Federal | G119: Mariano Acha 3465.
D120: 1 | E120: EE La Matanza | F120: La Matanza | G120: Av. San Martín y Nazca (Lomas del Mirador)
C121: Provisión de monitores de caudal electrónico para la protección de las bombas de EE Lanús y EE Quilmes. | D121: 5 | E121: EE Lanús | F121: Lanús | G121: Salta 350 - Lanús
D122: 5 | E122: EE Quilmes | F122: Quilmes | G122: Coronel Lynch 1600 - Avellaneda

Sheet POR JURISDICCION (hidden)
A4: INVERSIÓN EN LA CMR AL 30 DE JUNIO DE 2019
B6: RECURSOS NETOS DEVENGADOS EN LA CMR
B8: CONCEPTO | C8: DEVENGADO 2016 | D8: DEVENGADO 2017 | E8: DEVENGADO TOTAL 2018 | F8: DEVENGADO 1° SEMESTRE 2019
B10: TOTAL DE RECURSOS DEVENGADOS | C10: 8074389911 | D10: 1.546516175e+10 | E10: 2.110637671e+10 | F10: 1.2234075e+10
B11: TRANSFERENCIAS ENTRE JURISDICCIONES* | C11: -322947260 | D11: -2524242732 | E11: -2906354246 | F11: -2544026064
B13: RECURSOS NETOS DEVENGADOS EN LA CMR | C13: 7751442651 | D13: 1.294091902e+10 | E13: 1.820002247e+10 | F13: 9690048931
B15: *NOTA: Con el objetivo de reflejar los recursos netos devengados en la CMR, este concepto contempla aquellos recursos devengados por una Jurisdicción en concepto de transferencias a otra a cargo de su ejecución y que, por ende, deben ser deducidos para evitar duplicaciones.
B18: RECURSOS DEVENGADOS EN LA CMR - DETALLE POR JURISDICCIÓN
B20: NIVEL / SUBJURISDICCIÓN / PROGRAMA | C20: DEVENGADO 2016 | D20: DEVENGADO 2017 | E20: DEVENGADO 2018 | F20: DEVENGADO 1° SEMESTRE 2019
B21: 1. ESTADO NACIONAL | C21: 5945097035 | D21: 1.053848635e+10 | E21: 1.567017352e+10 | F21: 9241117840
B22: 2. PROVINCIA DE BS AS | C22: 745104337.5 | D22: 2015901532 | E22: 1530497713 | F22: 1265412010
B23: 3. CABA | C23: 703659556.6 | D23: 1887831924 | E23: 2146145174 | F23: 1121822089
B24: 4. ACUMAR | C24: 680528982.1 | D24: 1022941939 | E24: 1759560309 | F24: 605723056.2
B25: TOTAL DE RECURSOS DEVENGADOS | C25: 8074389911 | D25: 1.546516175e+10 | E25: 2.110637671e+10 | F25: 1.2234075e+10

Sheet Total de obras
B2: Inversiones Cuenca Matanza Riachuelo - Ejecución 2019
B4: ID | C4: NIVEL | D4: LA | E4: TIPO DE ACCIONES | F4: AGRUPAMIENTO POR OBRA/ACTIVIDAD | G4: DENOMINACIÓN | H4: NAT | I4: JURISDICCIÓN | J4: SAF | K4: SUBJ./ SECRET./ ENTIDAD | L4: PROGRAMA | M4: SUB0PROG | N4: PROYECTO | O4: ACTIVIDAD | P4: OBRA | Q4: F. FINANC. | R4: INC | S4: PPAL | T4: PARC | U4: SUB PARC | V4: FI | W4: FU | X4: UG | Y4: TIPO DE ASIG | Z4: OBRA/ACT | AA4: ENTE EJECUTOR | AB4: MUNICIPIO | AC4: LOCALIDAD/ COMUNA | AD4: DIRECCIÓN DE LA OBRA | AE4: FECHA DE INICIO | AF4: FECHA DE FIN | AG4: MONTO ORIGINAL | AH4: MODIFICACIONES MONTO ORIGINAL | AI4: OTRAS MODIFICACIONES MONTO ORIGINAL | AJ4: MONTO VIGENTE | AK4: DEVENGADO ACUM 2006-2009 | AL4: DEVENGADO 2010 | AM4: DEVENGADO 2011 | AN4: DEVENGADO 2012 | AO4: DEVENGADO 2013 | AP4: DEVENGADO 2014 | AQ4: DEVENGADO 2015 | AR4: DEVENGADO 2016 | AS4: DEVENGADO 2017 | AT4: DEVENGADO 2018 | AU4: DEVENGADO 2019 | AV4: PRESUPUESTO 2019 | AW4: PRESUPUESTO 2020 | AX4: ESTADO | AY4: AVANCE FINANCIERO | AZ4: AVANCE FÍSICO | BA4: OBSERVACIONES
B5: 118 | C5: 1. ESTADO NACIONAL | D5: 09. EXPANSIÓN DE LA RED DE AGUA POTABLE Y SANEAMIENTO DE CLOACAS | E5: EXPANSIÓN DE REDES DE AGUA | F5: REDES DE AGUA LA MATANZA | G5: PLAN YSA A + T DR. OESTE LA MATANZA | H5: 2 | I5: 91. OBLIGACIONES DEL TESORO | J5: 356 | K5: AYSA | L5: 95. ASISTENCIA FINANCIERA A EMPRESAS PÚBLICAS Y ENTE BINACIONAL | M5: 5 | N5: N848408 | O5: 77 | P5: - | Q5: 22 Y RECURSOS PROPIOS | R5: 5 | S5: 5 | T5: 7 | U5: 753 | V5: 3 | W5: 8 | X5: 2 | Y5: 2 | Z5: SIN P3 | AA5: - | AB5: LA MATANZA | AC5: LA MATANZA | AD5: A LUSITANO, A EL FORTÍN M4, CANILLAS COMUNITARIAS V. CELINA, FALTANTE LASALLE M2 Y SAN ENRIQUE M3 / AMPLIACION EL TALA M1 / CASTILLO CENTRO M3 / CRISTIANIA M6/ CRISTIANIA M7 / EL PORVENIR M2 / EL TAMBO M1 / EL TAMBO M2 / EMILIOZZI M3 / EMILIOZZI M4 / LA ABADIA M3 / LOS CEDROS 1 M1 A M7 / MI ESPERANZA M5 / PARQUE SARMIENTO M3 / SAN MARTIN M2 Y M3 / SAN ROQUE M3 / AMERICA M3 / LA ISLA M1 / MI ESPERANZA M11 - DORREGO M7 / ORO VERDE M4 / LUJAN M4 /GIARDINO M2 / DOREGO M6 / LOS CEDROS 2 M1 A M8 / SAN IGNACIO M3 Y M4 / CRISTIANIA M8 Y M9 / LOS CEDROS B M1 A M3 / A LA LOMA M3, A LAS NIEVES M3, A SANTA CLARA M2, INTERCONEXIÓN CISTERNA B° MUNICIPAL, 22 DE ENERO | AE5: 2008-08-22 | AF5: 2009-08-10 | AG5: 11471411.87 | AH5: 47032.7 | AI5: 9836568.352 | AJ5: 21355012.92 | AK5: 21562136.94 | AL5: 363380.3827 | AM5: 29441.3207 | AN5: 5189.2907 | AO5: 54152.5941 | AP5: 0 | AQ5: 672793.8558 | AR5: -16210.0796 | AS5: 21048.192 | AT5: 1132.8625 | AU5: 9801 | AV5: 0 | AW5: 0 | AX5: FINALIZADO | AY5: 1 | AZ5: 1.000171632 | BA5: EN 2018 SE MODIFICA EL CÓDIGO DE ACTIVIDAD DE LA APERTURA PROGRAMÁTICA DE 5 A 77, UG DE 96 A 2 Y FF DE 11 A 22. EL PROYECTO TAMBIÉN SERÁ FINANCIADO CON RECURSOS PROPIOS DE AYSA
B6: 138 | C6: 1. ESTADO NACIONAL | D6: 09. EXPANSIÓN DE LA RED DE AGUA POTABLE Y SANEAMIENTO DE CLOACAS | E6: GRANDES OBRAS DE INFRAESTRUCTURA CLOACALES | F6: SISTEMA CLOACAS BERAZATEGUI | G6: SIST. BERAZATEGUI PRIMERA ETAPA PLANTA DE PRETRATAMIENTO OBRA CIVIL Y ELECTROMECÁNICA | H6: 2 | I6: 91. OBLIGACIONES DEL TESORO | J6: 356 | K6: AYSA | L6: 95. ASISTENCIA FINANCIERA A EMPRESAS PÚBLICAS Y ENTE BINACIONAL | M6: 5 | N6: A861602/03 | O6: 77 | P6: - | Q6: 22 Y RECURSOS PROPIOS | R6: 5 | S6: 5 | T6: 7 | U6: 753 | V6: 3 | W6: 8 | X6: 2 | Y6: 2 | Z6: SC497 | AA6: - | AB6: BERAZATEGUI | AC6: BERAZATEGUI | AD6: EL PREDIO SE ENCUENTRA AL NOROESTE DEL PARTIDO DE BERAZATEGUI, CERCANO AL LÍMITE CON EL PARTIDO DE QUILMES, ENTRE LA AUTOPISTA BUENOS AIRES-LA PLATA Y LA COSTA DEL RÍO DE LA PLATA. | AE6: 2009-01-05 | AF6: 2013-10-13 | AG6: 323100666 | AH6: 382961607 | AI6: -37338947.6 | AJ6: 668723325.4 | AK6: 97875162.54 | AL6: 111771771 | AM6: 93763688.6 | AN6: 152958259 | AO6: 94842103.92 | AP6: 42177118.29 | AQ6: 19186671.37 | AR6: 53633974.03 | AS6: 586180.2529 | AT6: 1914528.61 | AU6: -141082.128 | AV6: 27830000 | AW6: 0 | AX6: FINALIZADO | AY6: 1 | AZ6: 1 | BA6: EN 2018 SE MODIFICA EL CÓDIGO DE ACTIVIDAD DE LA APERTURA PROGRAMÁTICA DE 5 A 77, UG DE 96 A 2 Y FF DE 11 A 22. EL PROYECTO TAMBIÉN SERÁ FINANCIADO CON RECURSOS PROPIOS DE AYSA. AÑOS ANTERIORES EL PROYECTO FUE FINANCIADO POR PRÉSTAMO ANSES Y FUENTE 1.1. EL MONTO VIGENTE INCLUYE EL VALOR DEL CONTRATO ORIGINAL, + REDETERM. CONOCIDAS + ADDENDAS FIRMADAS + REDETERM. ESTIMADAS.
B7: 227 | C7: 2. PROVINCIA DE BS AS | D7: 08. URBANIZACIÓN DE VILLAS Y ASENTAMIENTOS URBANOS | E7: VIVIENDAS NUEVAS | F7: COMPLEJO LA MATANZA | G7: LA MATANZA 171 VIV | H7: 2 | I7: 42. INSTITUTO DE LA VIVIENDA | J7: - | K7: INSTITUTO DE LA VIVIENDA | L7: 14. PLAN FEDERAL DE CONSTRUCCION DE VIVIENDAS | M7: 2 | N7: 6553 | O7: - | P7: 1 | Q7: 12 | R7: 6 | S7: 3 | T7: 1 | U7: 99 | V7: 12 | W7: - | X7: 427 | Y7: 1 | Z7: - | AA7: MINISTERIO DE INFRAESTRUCTURA | AB7: LA MATANZA | AC7: GONZALEZ CATAN | AD7: LAVALLEJA Y DOBLAS | AE7: 2017-04-11 | AF7: 2018-04-04 | AG7: 26929448.67 | AH7: 3004014.17 | AI7: 0 | AJ7: 29933462.84 | AK7: 1284155 | AL7: 2451338.95 | AM7: 0 | AN7: 114671.74 | AO7: 948021.92 | AP7: 385747.94 | AQ7: 0 | AR7: 152729.77 | AS7: 103638.06 | AT7: 128027 | AU7: 554493.2 | AV7: 0 | AW7: =VLOOKUP(B7,'[10]FINAL F'!$A:$AY,51,0) -> 26733576 | AX7: FINALIZADO | AY7: 1 | AZ7: 1 | BA7: -
B8: 233 | C8: 2. PROVINCIA DE BS AS | D8: 08. URBANIZACIÓN DE VILLAS Y ASENTAMIENTOS URBANOS | E8: VIVIENDAS NUEVAS | F8: COMPLEJO LA MATANZA | G8: LA MATANZA 52 VIV - TERMINACIÓN DE 119 VIV. FECOVIMA | H8: 2 | I8: 42. INSTITUTO DE LA VIVIENDA | J8: - | K8: INSTITUTO DE LA VIVIENDA | L8: 5. SOLIDARIDAD | M8: 2 | N8: 5601 | O8: - | P8: 51 | Q8: 12 | R8: 6 | S8: 3 | T8: 1 | U8: 99 | V8: 12 | W8: - | X8: 427 | Y8: 1 | Z8: - | AA8: MINISTERIO DE INFRAESTRUCTURA | AB8: LA MATANZA | AC8: - | AD8: - | AE8: 2006-06-21 | AF8: 2018-11-30 | AG8: 4046460.26 | AH8: 7507022.31 | AI8: 0 | AJ8: 11553483 | AK8: 9080768 | AL8: 3038525.65 | AM8: 1296943.89 | AN8: 0 | AO8: 0 | AP8: 1776910.56 | AQ8: 2889468.72 | AR8: 2224715.37 | AS8: 1726423.84 | AT8: 199238.92 | AU8: 2127671.46 | AV8: 0 | AW8: =VLOOKUP(B8,'[10]FINAL F'!$A:$AY,51,0) -> 0 | AX8: EN EJECUCIÓN | AY8: 0.988032 | AZ8: 0.99 | BA8: FALTA EL CIERRE ADMINISTRATIVO A 2018
B9: 541 | C9: 1. ESTADO NACIONAL | D9: 08. URBANIZACIÓN DE VILLAS Y ASENTAMIENTOS URBANOS | E9: VIVIENDAS NUEVAS | F9: COMPLEJO BARRIO GENOVA | G9: Bº GENOVA - 73 VIV | H9: 2 | I9: 30. MINISTERIO DEL INTERIOR, OBRAS PÚBLICAS Y VIVIENDA | J9: 325 | K9: SECRETARIA DE VIVIENDA | L9: 71. URBANIZACIÓN DE VILLAS Y ASENTAMIENTOS PRECARIOS. | M9: - | N9: - | O9: 77.VIVIENDAS NUEVAS EN LA CUENCA MATANZA RIACHUELO | P9: 36/08 | Q9: 11 | R9: 5 | S9: 8 | T9: 6 | U9: 0 | V9: 3 | W9: 7 | X9: 6 | Y9: 1 | Z9: - | AA9: - | AB9: AVELLANEDA | AC9: GÉNOVA | AD9: Bº GENOVA | AE9: 2009-05-08 | AF9: - | AG9: 12418823.09 | AH9: 562026.57 | AI9: 0 | AJ9: 12980849.66 | AK9: 2810102.15 | AL9: 3648934.98 | AM9: 5229404.63 | AN9: 449720.32 | AO9: 480251.7 | AP9: 0 | AQ9: 5176311.8 | AR9: 9098029.03 | AS9: 0 | AT9: 0 | AU9: 0 | AV9: 754782.23 | AW9: 0 | AX9: - | AY9: 1 | AZ9: 1 | BA9: -
B10: 542 | C10: 1. ESTADO NACIONAL | D10: 08. URBANIZACIÓN DE VILLAS Y ASENTAMIENTOS URBANOS | E10: VIVIENDAS NUEVAS | F10: COMPLEJO BARRIO DOCK SUD | G10: BARRIO DOCK SUD - 100 VIV | H10: 2 | I10: 30. MINISTERIO DEL INTERIOR, OBRAS PÚBLICAS Y VIVIENDA | J10: 354 | K10: SECRETARIA DE VIVIENDA | L10: 46. URBANIZACIÓN DE VILLAS Y ASENTAMIENTOS PRECARIOS. | M10: - | N10: - | O10: 77.VIVIENDAS NUEVAS EN LA CUENCA MATANZA RIACHUELO | P10: 36/08 | Q10: 11 | R10: 5 | S10: 8 | T10: 6 | U10: 0 | V10: 3 | W10: 7 | X10: 6 | Y10: 1 | Z10: - | AA10: - | AB10: AVELLANEDA | AC10: DOCK SUD | AD10: Bº DOCK SUD | AE10: 2009-05-15 | AF10: 2012-10-09 | AG10: 17289377.36 | AH10: 1286078.4 | AI10: 0 | AJ10: 18575455.76 | AK10: 4895843.1 | AL10: 5497537.27 | AM10: 6499386.53 | AN10: 358830.36 | AO10: 1286078.4 | AP10: 0 | AQ10: 0 | AR10: 0 | AS10: 0 | AT10: 0 | AU10: 0 | AV10: 1543042.972 | AW10: 0 | AX10: - | AY10: 1 | AZ10: 1 | BA10: -
B11: 544 | C11: 1. ESTADO NACIONAL | D11: 08. URBANIZACIÓN DE VILLAS Y ASENTAMIENTOS URBANOS | E11: VIVIENDAS NUEVAS | F11: COMPLEJO BARRIO LA SALADITA | G11: Bº LA SALADITA - 138 VIV | H11: 2 | I11: 30. MINISTERIO DEL INTERIOR, OBRAS PÚBLICAS Y VIVIENDA | J11: 354 | K11: SECRETARIA DE VIVIENDA | L11: 46. URBANIZACIÓN DE VILLAS Y ASENTAMIENTOS PRECARIOS. | M11: - | N11: - | O11: 77.VIVIENDAS NUEVAS EN LA CUENCA MATANZA RIACHUELO | P11: 36/08 | Q11: 11 | R11: 5 | S11: 8 | T11: 6 | U11: 0 | V11: 3 | W11: 7 | X11: 6 | Y11: 1 | Z11: - | AA11: - | AB11: AVELLANEDA | AC11: LA SALADITA | AD11: Bº LA SALADITA | AE11: 2009-05-08 | AF11: - | AG11: 18380473.82 | AH11: 9334297.56 | AI11: 0 | AJ11: 27714771.38 | AK11: 3561276.32 | AL11: 6920005.74 | AM11: 6478024.156 | AN11: 2964163.09 | AO11: 2728011.97 | AP11: 0 | AQ11: 0 | AR11: 0 | AS11: 0 | AT11: 0 | AU11: 0 | AV11: 3120963.11 | AW11: 0 | AX11: - | AY11: 1 | AZ11: 0.05 | BA11: -
B12: 563 | C12: 1. ESTADO NACIONAL | D12: 08. URBANIZACIÓN DE VILLAS Y ASENTAMIENTOS URBANOS | E12: VIVIENDAS NUEVAS | F12: COMPLEJO GRAL. PAZ Y CASTAÑARES | G12: 220 DE 780 VIV - GRAL. PAZ Y CASTAÑARES | H12: 2 | I12: 30. MINISTERIO DEL INTERIOR, OBRAS PÚBLICAS Y VIVIENDA | J12: 325 | K12: SECRETARIA DE VIVIENDA | L12: 71. URBANIZACIÓN DE VILLAS Y ASENTAMIENTOS PRECARIOS. | M12: - | N12: - | O12: 77.VIVIENDAS NUEVAS EN LA CUENCA MATANZA RIACHUELO | P12: 251/2008 | Q12: 11 | R12: 5 | S12: 8 | T12: 1 | U12: 0 | V12: 3 | W12: 7 | X12: 2 | Y12: 1 | Z12: - | AA12: - | AB12: CABA | AC12: - | AD12: GRAL. PAZ Y CASTAÑARES | AE12: - | AF12: - | AG12: 193064501 | AH12: 28443612.1 | AI12: 0 | AJ12: 221508113.1 | AK12: 54454090.03 | AL12: 0 | AM12: 0 | AN12: 17004403.23 | AO12: 25683459.13 | AP12: 32226198.52 | AQ12: 6589922.66 | AR12: 1586150.389 | AS12: 19806879.62 | AT12: 0 | AU12: 0 | AV12: 3541742.7 | AW12: 0 | AX12: EN ANÁLISIS | AY12: 0.9859 | AZ12: 0.91 | BA12: -
B13: 610 | C13: 1. ESTADO NACIONAL | D13: 10. DESAGÜES PLUVIALES | E13: CANALIZACIÓN | F13: ARROYO DEL REY | G13: OBRA - ARROYO DEL REY - PGA - OBRAS DE PRIMERA PRIORIDAD | H13: 2 | I13: 30. MINISTERIO DEL INTERIOR, OBRAS PÚBLICAS Y VIVIENDA | J13: 325 | K13: SECRETARÍA DE INFRAESTRUCTURA Y POLÍTICA HÍDRICA | L13: EXTRAPRESUPUESTARIO - FFIH - FONDO FIDUCIARIO INFRAESTRUCTURA HÍDRICA | M13: - | N13: - | O13: - | P13: BUE085 | Q13: FFIH | R13: - | S13: - | T13: - | U13: - | V13: - | W13: - | X13: - | Y13: 1 | Z13: - | AA13: SSRH | AB13: LOMAS DE ZAMORA | AC13: ING. BUDGE | AD13: REVESTIMIENTO DEL CAUCE DEL ARROYO DEL REY DESDE LA DESEMBOCADURA EN EL RÍO MATANZA HASTA CALLE GARIBALDI | AE13: 2006-06-14 | AF13: - | AG13: 98688252.5 | AH13: 158561052 | AI13: 637698982.8 | AJ13: 894948287.3 | AK13: 125165667 | AL13: 78957055.59 | AM13: 103088981.5 | AN13: 76815255.59 | AO13: 102134623.9 | AP13: 73266292.54 | AQ13: 71068529.29 | AR13: 42080470.81 | AS13: 69070958.52 | AT13: 172256144.9 | AU13: 34938322.54 | AV13: 52999081.98 | AW13: 18060759.44 | AX13: FINALIZADO | AY13: 0.9798 | AZ13: 1 | BA13: -
B14: 794 | C14: 1. ESTADO NACIONAL | D14: 06. PLAN SANITARIO DE EMERGENCIA | E14: MEJORA Y MANTENIMIENTO | F14: SISTEMA CLOACAS LA MATANZA | G14: EQUIPAMIENTO ELECTROMECÁNICO | H14: 2 | I14: 91. OBLIGACIONES DEL TESORO | J14: 356 | K14: AYSA | L14: 95. ASISTENCIA FINANCIERA A EMPRESAS PÚBLICAS Y ENTE BINACIONAL | M14: 5 | N14: 1055102 | O14: 5 | P14: - | Q14: 11 | R14: 5 | S14: 5 | T14: 7 | U14: 753 | V14: 3 | W14: 8 | X14: 96 | Y14: 2 | Z14: SIN P3 | AA14: - | AB14: LA MATANZA | AC14: ALDO BONZI | AD14: PLANTA SUDOESTE - ANA MARÍA JANER Y PALPA - ALDO BONZI | AE14: 2010-04-27 | AF14: 2011-05-01 | AG14: 2372104.57 | AH14: 0 | AI14: -541272.8816 | AJ14: 1830831.688 | AK14: - | AL14: 1828740.421 | AM14: 83229.0514 | AN14: - | AO14: - | AP14: - | AQ14: 0 | AR14: -81137.518 | AS14: 0 | AT14: 0 | AU14: -19791.6312 | AV14: 0 | AW14: 0 | AX14: FINALIZADO | AY14: 0.9891898139 | AZ14: 1 | BA14: -
B15: 1098 | C15: 2. PROVINCIA DE BS AS | D15: 08. URBANIZACIÓN DE VILLAS Y ASENTAMIENTOS URBANOS | E15: VIVIENDAS NUEVAS | F15: COMPLEJO MARCOS PAZ | G15: MARCOS PAZ 202 VIV | H15: 2 | I15: 42. INSTITUTO DE LA VIVIENDA | J15: - | K15: INSTITUTO DE LA VIVIENDA | L15: 14. PLAN FEDERAL DE CONSTRUCCION DE VIVIENDAS | M15: 2 | N15: 6554 | O15: - | P15: 51 | Q15: 12 | R15: - | S15: - | T15: - | U15: 1 | V15: - | W15: - | X15: 889 | Y15: 1 | Z15: - | AA15: MINISTERIO DE INFRAESTRUCTURA | AB15: MARCOS PAZ | AC15: MARCOS PAZ | AD15: - | AE15: 2010-02-16 | AF15: 2019-07-31 | AG15: 36002468.31 | AH15: 0 | AI15: 0 | AJ15: 36002468.31 | AK15: 0 | AL15: 6926402.03 | AM15: 1049176 | AN15: 77190.89 | AO15: 0 | AP15: 0 | AQ15: 0 | AR15: 0 | AS15: 8588633.08 | AT15: 13463658 | AU15: 7980074.62 | AV15: 0 | AW15: =VLOOKUP(B15,'[10]FINAL F'!$A:$AY,51,0) -> 0 | AX15: EN EJECUCIÓN | AY15: 0.78 | AZ15: 0.624 | BA15: -
B16: 1101 | C16: 2. PROVINCIA DE BS AS | D16: 08. URBANIZACIÓN DE VILLAS Y ASENTAMIENTOS URBANOS | E16: VIVIENDAS NUEVAS | F16: COMPLEJO ALMIRANTE BROWN | G16: ALMIRANTE BROWN 128 VIVIENDAS - COOP. ALFIL CONSTRUCCIÓN DE 64 VIV. (SEGUNDA ETAPA) | H16: 2 | I16: 42. INSTITUTO DE LA VIVIENDA | J16: - | K16: INSTITUTO DE LA VIVIENDA | L16: 5. SOLIDARIDAD | M16: 2 | N16: 5011 | O16: - | P16: 3 | Q16: 12 | R16: 6 | S16: 3 | T16: 1 | U16: 99 | V16: 12 | W16: - | X16: 28 | Y16: 1 | Z16: - | AA16: MINISTERIO DE INFRAESTRUCTURA | AB16: ALMIRANTE BROWN | AC16: - | AD16: - | AE16: 2010-06-05 | AF16: 2018-06-30 | AG16: 64051200 | AH16: 70793390.1 | AI16: 0 | AJ16: 134844590.1 | AK16: 0 | AL16: 1098884 | AM16: 368049.49 | AN16: 0 | AO16: 959226.01 | AP16: 0 | AQ16: 2771419.42 | AR16: 18339444.98 | AS16: 0 | AT16: 5665103.42 | AU16: 0 | AV16: 0 | AW16: =VLOOKUP(B16,'[10]FINAL F'!$A:$AY,51,0) -> 16050212 | AX16: FINALIZADO | AY16: 0.995163 | AZ16: 1 | BA16: -
B17: 1227 | C17: 1. ESTADO NACIONAL | D17: 10. DESAGÜES PLUVIALES | E17: ACCIONES DE DESAGÜES PLUVIALES DE ACUMAR | F17: PLAN DE CONTINGENCIA ANTE INUNDACIONES | G17: SERVICIOS NO PERSONALES | H17: 2 | I17: 30. MINISTERIO DEL INTERIOR, OBRAS PÚBLICAS Y VIVIENDA | J17: 325 | K17: MINISTERIO DEL INTERIOR, OBRAS PUBLICAS Y VIVIENDA | L17: 44. UNIDAD DE COORDINACIÓN GENERAL DEL PROYECTO BIRF 7706-AR | M17: - | N17: - | O17: 79 | P17: - | Q17: 11 | R17: 3 | S17: 4 | T17: 1 | U17: - | V17: 4 | W17: 4 | X17: 2 | Y17: 1 | Z17: - | AA17: UCGP | AB17: CUENCA MATANZA RIACHUELO | AC17: - | AD17: - | AE17: - | AF17: - | AG17: 0 | AH17: 0 | AI17: 0 | AJ17: 0 | AK17: 0 | AL17: 0 | AM17: 105759 | AN17: 217109.2 | AO17: 374947 | AP17: 988420 | AQ17: 1369500 | AR17: 122445.38 | AS17: 364060.62 | AT17: 795894.93 | AU17: 0 | AV17: 0 | AW17: 0 | AX17: - | AY17: - | AZ17: - | BA17: HONORARIOS CONSULTORES
B18: 1228 | C18: 1. ESTADO NACIONAL | D18: 03. FORTALECIMIENTO INSTITUCIONAL | E18: INSTITUCIONAL ACUMAR | F18: CONSULTORÍAS INDIVIDUALES | G18: SERVICIOS NO PERSONALES | H18: 2 | I18: 30. MINISTERIO DEL INTERIOR, OBRAS PÚBLICAS Y VIVIENDA | J18: 325 | K18: MINISTERIO DEL INTERIOR, OBRAS PUBLICAS Y VIVIENDA | L18: 44. UNIDAD DE COORDINACIÓN GENERAL DEL PROYECTO BIRF 7706-AR | M18: - | N18: - | O18: 77 | P18: - | Q18: 22 | R18: 3 | S18: 4 | T18: 9 | U18: - | V18: 4 | W18: 4 | X18: 2 | Y18: 1 | Z18: - | AA18: UCGP | AB18: CUENCA MATANZA RIACHUELO | AC18: - | AD18: - | AE18: - | AF18: - | AG18: 0 | AH18: 0 | AI18: 0 | AJ18: 0 | AK18: 0 | AL18: 0 | AM18: 0 | AN18: 0 | AO18: 0 | AP18: 0 | AQ18: 0 | AR18: 0 | AS18: 0 | AT18: 6765318.5 | AU18: 6895745.64 | AV18: 9548015 | AW18: 7174888 | AX18: - | AY18: - | AZ18: - | BA18: -
B19: 1281 | C19: 1. ESTADO NACIONAL | D19: 09. EXPANSIÓN DE LA RED DE AGUA POTABLE Y SANEAMIENTO DE CLOACAS | E19: EXPANSIÓN DE REDES CLOACALES | F19: SISTEMA CLOACAS LOMAS DE ZAMORA | G19: TERRENO PARA PLANTA DE TRATAMIENTO DE EFLUENTES CLOACALES FIORITO | H19: 2 | I19: 91. OBLIGACIONES DEL TESORO | J19: 356 | K19: AYSA | L19: 95. ASISTENCIA FINANCIERA A EMPRESAS PÚBLICAS Y ENTE BINACIONAL | M19: 5 | N19: 1161605 | O19: 5 | P19: - | Q19: 11 | R19: 5 | S19: 5 | T19: 7 | U19: 753 | V19: 3 | W19: 8 | X19: 96 | Y19: 2 | Z19: SIN P3 | AA19: - | AB19: LOMAS DE ZAMORA | AC19: VILLA FIORITO | AD19: EL PREDIO SE ENCUENTRA UBICADO EN EL CAMINO DE LA RIBERA SUD (PARCELA 1 – FRACCIÓN 1), CONTIGUO AL RIACHUELO Y EN LAS CERCANÍAS DEL PUENTE DE LA NORIA. | AE19: Se tomó posesión del predio el 09/05/12 | AF19: No aplica por ser Juicio de expropiación | AG19: 25029095 | AH19: 0 | AI19: 82577782.46 | AJ19: 107606877.5 | AK19: 0 | AL19: 0 | AM19: 25029448 | AN19: 95073.33 | AO19: 3973173.545 | AP19: 0 | AQ19: 0 | AR19: 0 | AS19: 0 | AT19: 99371782.23 | AU19: -20862599.65 | AV19: 0 | AW19: 0 | AX19: FINALIZADO | AY19: 1 | AZ19: 1 | BA19: -
B20: 1297 | C20: 1. ESTADO NACIONAL | D20: 09. EXPANSIÓN DE LA RED DE AGUA POTABLE Y SANEAMIENTO DE CLOACAS | E20: EXPANSIÓN DE REDES CLOACALES | F20: SISTEMA CLOACAS AVELLANEDA | G20: ESTACION BOMBEO CLOACAL SARMIENTO - OBRA ELECTROMECANICA | H20: 2 | I20: 91. OBLIGACIONES DEL TESORO | J20: 356 | K20: AYSA | L20: 95. ASISTENCIA FINANCIERA A EMPRESAS PÚBLICAS Y ENTE BINACIONAL | M20: 5 | N20: 1160316 | O20: 77 | P20: - | Q20: 22 Y RECURSOS PROPIOS | R20: 5 | S20: 5 | T20: 7 | U20: 753 | V20: 3 | W20: 8 | X20: 2 | Y20: 2 | Z20: SC4832 | AA20: - | AB20: AVELLANEDA | AC20: VILLA DOMÍNICO | AD20: LA EB ESTARÁ UBICADA EN LA CALLE CANGALLO 1375 ENTRE LAS CALLES GRAL. NAZAR Y TRES SARGENTOS, DEL PARTIDO DE AVELLANEDA | AE20: 2018-03-19 | AF20: Rescindida | AG20: 10206466.69 | AH20: 0 | AI20: 0 | AJ20: Contrato Rescindido | AK20: 0 | AL20: 0 | AM20: 415920.1244 | AN20: 0 | AO20: 411227.4056 | AP20: 0 | AQ20: 0 | AR20: 0 | AS20: 0 | AT20: 0 | AU20: 173787.1333 | AV20: 173787.1466 | AW20: 0 | AX20: EN EJECUCIÓN | AY20: Contrato rescindido | AZ20: 0 | BA20: EN 2018 SE MODIFICA EL CÓDIGO DE ACTIVIDAD DE LA APERTURA PROGRAMÁTICA DE 5 A 77, UG DE 96 A 2 Y FF DE 11 A 22. EL PROYECTO TAMBIÉN SERÁ FINANCIADO CON RECURSOS PROPIOS DE AYSA
B21: 1303 | C21: 1. ESTADO NACIONAL | D21: 09. EXPANSIÓN DE LA RED DE AGUA POTABLE Y SANEAMIENTO DE CLOACAS | E21: EXPANSIÓN DE REDES CLOACALES | F21: ESTACIÓN DE BOMBEO CLOACAL SARMIENTO | G21: ESTACION BOMBEO CLOACAL SARMIENTO - OBRA CIVIL | H21: 2 | I21: 91. OBLIGACIONES DEL TESORO | J21: 356 | K21: AYSA | L21: 95. ASISTENCIA FINANCIERA A EMPRESAS PÚBLICAS Y ENTE BINACIONAL | M21: 5 | N21: 1160315 | O21: 77 | P21: - | Q21: 22 Y RECURSOS PROPIOS | R21: 5 | S21: 5 | T21: 7 | U21: 753 | V21: 3 | W21: 8 | X21: 2 | Y21: 2 | Z21: SC4831 | AA21: - | AB21: AVELLANEDA | AC21: GERLI | AD21: LA EB ESTARÁ UBICADA EN LA CALLE CANGALLO 1375 ENTRE LAS CALLES GRAL. NAZAR Y TRES SARGENTOS, DEL PARTIDO DE AVELLANEDA | AE21: 2018-03-19 | AF21: Rescindida | AG21: 8426323.308 | AH21: 0 | AI21: 0 | AJ21: Contrato Rescindido | AK21: 0 | AL21: 0 | AM21: 35556.6849 | AN21: 20212.3706 | AO21: 0 | AP21: 0 | AQ21: 0 | AR21: 0 | AS21: 0 | AT21: 111752.7081 | AU21: 25213.6775 | AV21: 212898.9253 | AW21: 0 | AX21: EN EJECUCIÓN | AY21: Contrato rescindido | AZ21: 0.0577 | BA21: EN 2018 SE MODIFICA EL CÓDIGO DE ACTIVIDAD DE LA APERTURA PROGRAMÁTICA DE 5 A 77, UG DE 96 A 2 Y FF DE 11 A 22. EL PROYECTO TAMBIÉN SERÁ FINANCIADO CON RECURSOS PROPIOS DE AYSA
B22: 1305 | C22: 1. ESTADO NACIONAL | D22: 09. EXPANSIÓN DE LA RED DE AGUA POTABLE Y SANEAMIENTO DE CLOACAS | E22: GRANDES OBRAS DE INFRAESTRUCTURA CLOACALES | F22: PLANTA DE TRATAMIENTO FIORITO | G22: PLANTA DE TRATAMIENTO DE EFLUENTES FIORITO - OBRA ELECTRO | H22: 2 | I22: 91. OBLIGACIONES DEL TESORO | J22: 356 | K22: AYSA | L22: 95. ASISTENCIA FINANCIERA A EMPRESAS PÚBLICAS Y ENTE BINACIONAL | M22: 5 Y CONVENIO ACUMAR | N22: 1160511 | O22: 77 | P22: 0 Y CONVENIO ACUMAR | Q22: 22 Y RECURSOS PROPIOS | R22: 5 | S22: 5 | T22: 7 | U22: 753 | V22: 3 | W22: 8 | X22: 2 | Y22: 2 | Z22: SC307 | AA22: - | AB22: LOMAS DE ZAMORA | AC22: VILLA FIORITO | AD22: EL PREDIO SE ENCUENTRA UBICADO EN EL CAMINO DE LA RIBERA SUD (PARCELA 1 – FRACCIÓN 1), CONTIGUO AL RIACHUELO Y EN LAS CERCANÍAS DEL PUENTE DE LA NORIA. | AE22: 2012-05-10 | AF22: 2019-12-31 | AG22: 141230256.2 | AH22: 301932516.9 | AI22: 10768326.38 | AJ22: 453931099.4 | AK22: 0 | AL22: 0 | AM22: 0 | AN22: 0 | AO22: 638121.2065 | AP22: 19904686.86 | AQ22: 35074060.63 | AR22: 93612171.99 | AS22: 190260331.2 | AT22: 76235133.53 | AU22: 50260516.62 | AV22: 0 | AW22: 36999999.98 | AX22: EN EJECUCIÓN | AY22: 0.9214411962 | AZ22: 1 | BA22: EN 2018 SE MODIFICA EL CÓDIGO DE ACTIVIDAD DE LA APERTURA PROGRAMÁTICA DE 5 A 77, UG DE 96 A 2 Y FF DE 11 A 22. EL PROYECTO TAMBIÉN SERÁ FINANCIADO CON RECURSOS PROPIOS DE AYSA. AÑOS ANTERIORES, EL PROYECTO RECIBIÓ FINANCIAMIENTO POR CONVENIO CON ACUMAR
B23: 1627 | C23: 2. PROVINCIA DE BS AS | D23: 10. DESAGÜES PLUVIALES | E23: DESAGUES PLUVIALES | F23: ARROYO UNAMUNO | G23: ALIVIADOR ESTE ARROYO UNAMUNO ETAPA II B | H23: 2 | I23: 14. MINISTERIO DE INFRAESTRUCTURA DE LA PROVINCIA DE BUENOS AIRES | J23: - | K23: MINISTERIO DE INFRAESTRUCTURA | L23: 34. CONTROL DE INUNDACIONES | M23: 3 | N23: 54 | O23: - | P23: 2 | Q23: 13 | R23: 4 | S23: 2 | T23: 2 | U23: - | V23: 3 | W23: 8 | X23: 37 | Y23: 1 | Z23: - | AA23: MINISTERIO DE INFRAESTRUCTURA | AB23: LOMAS DE ZAMORA | AC23: - | AD23: - | AE23: 2011-10-11 | AF23: 2017-05-01 | AG23: 23667246.23 | AH23: 0 | AI23: 0 | AJ23: 132542612.8 | AK23: 0 | AL23: 0 | AM23: 10140664.06 | AN23: 29619717.83 | AO23: 46244287.09 | AP23: 5635552.53 | AQ23: 8950758.83 | AR23: 51613828.2 | AS23: 27543911 | AT23: 1188664.9 | AU23: 1125402.44 | AV23: 0 | AW23: =VLOOKUP(B23,'[10]FINAL F'!$A:$AY,51,0) -> 0 | AX23: EN EJECUCIÓN | AY23: 0.99 | AZ23: 1 | BA23: -
B24: 1628 | C24: 2. PROVINCIA DE BS AS | D24: 10. DESAGÜES PLUVIALES | E24: DESAGUES PLUVIALES | F24: ARROYO UNAMUNO | G24: ALIVIADOR ESTE ARROYO UNAMUNO IETAPA | H24: 2 | I24: 14. MINISTERIO DE INFRAESTRUCTURA DE LA PROVINCIA DE BUENOS AIRES | J24: - | K24: MINISTERIO DE INFRAESTRUCTURA | L24: 34. CONTROL DE INUNDACIONES | M24: 3 | N24: 53 | O24: - | P24: 2 | Q24: 13 | R24: 4 | S24: 2 | T24: 2 | U24: - | V24: 3 | W24: 8 | X24: 37 | Y24: 1 | Z24: - | AA24: MINISTERIO DE INFRAESTRUCTURA | AB24: LOMAS DE ZAMORA | AC24: - | AD24: - | AE24: 2011-10-25 | AF24: 2018-09-28 | AG24: 56315333.76 | AH24: 3125065.21 | AI24: 0 | AJ24: 249079690 | AK24: 0 | AL24: 0 | AM24: 6323864.05 | AN24: 20096753.93 | AO24: 32130544.17 | AP24: 3331774.22 | AQ24: 2266293.61 | AR24: 0 | AS24: 62259982.28 | AT24: 56534073.57 | AU24: 0 | AV24: 98672000 | AW24: =VLOOKUP(B24,'[10]FINAL F'!$A:$AY,51,0) -> 0 | AX24: FINALIZADO | AY24: 0.64 | AZ24: 0.99 | BA24: OBRA DUPLICADA . SE VA A INFORMAR EL ID 1839 - EL ID 1628 ES LA MISMA OBRA PERO CON DISTINTA FUENTE DE FINANCIAMIENTO
B25: 1682 | C25: 1. ESTADO NACIONAL | D25: 08. URBANIZACIÓN DE VILLAS Y ASENTAMIENTOS URBANOS | E25: VIVIENDAS NUEVAS | F25: COMPLEJO BARRIO LINDO | G25: BARRIO LINDO - 300 VIV + INFRA - ETAPA I | H25: 2 | I25: 30. MINISTERIO DEL INTERIOR, OBRAS PÚBLICAS Y VIVIENDA | J25: 354 | K25: SECRETARIA DE VIVIENDA | L25: 46. URBANIZACIÓN DE VILLAS Y ASENTAMIENTOS PRECARIOS. | M25: - | N25: - | O25: 77.VIVIENDAS NUEVAS EN LA CUENCA MATANZA RIACHUELO | P25: 253/2011-4279008/2016 | Q25: 11 | R25: 5 | S25: 8 | T25: 6 | U25: 0 | V25: 3 | W25: 7 | X25: 6 | Y25: 1 | Z25: - | AA25: - | AB25: ALMIRANTE BROWN | AC25: - | AD25: CALLES AMENEDO,S ANTA ANA Y LA TORCAZA | AE25: 2011-09-08 | AF25: - | AG25: 45550262.8 | AH25: 12770033.76 | AI25: 0 | AJ25: 58320296.56 | AK25: 0 | AL25: 0 | AM25: 10529197.71 | AN25: 6575098.88 | AO25: 1523343.49 | AP25: 0 | AQ25: 9536694.03 | AR25: 0 | AS25: 0 | AT25: 0 | AU25: 0 | AV25: 9048669.824 | AW25: 0 | AX25: - | AY25: 0.2678675273 | AZ25: 0.1972 | BA25: -
B26: 1683 | C26: 1. ESTADO NACIONAL | D26: 08. URBANIZACIÓN DE VILLAS Y ASENTAMIENTOS URBANOS | E26: VIVIENDAS NUEVAS | F26: COMPLEJO BARRIO LINDO | G26: BARRIO LINDO - 273 VIV + INFRA - ETAPA II | H26: 2 | I26: 30. MINISTERIO DEL INTERIOR, OBRAS PÚBLICAS Y VIVIENDA | J26: 354 | K26: SECRETARIA DE VIVIENDA | L26: 46. URBANIZACIÓN DE VILLAS Y ASENTAMIENTOS PRECARIOS. | M26: - | N26: - | O26: 77.VIVIENDAS NUEVAS EN LA CUENCA MATANZA RIACHUELO | P26: 254/2011-4279048/2016 | Q26: 11 | R26: 5 | S26: 8 | T26: 6 | U26: 0 | V26: 3 | W26: 7 | X26: 6 | Y26: 1 | Z26: - | AA26: - | AB26: ALMIRANTE BROWN | AC26: - | AD26: CALLES PINO, MATIENZO, RODRIGUEZ Y MADARIAGA | AE26: 2011-09-08 | AF26: - | AG26: 41492650 | AH26: 11632480.44 | AI26: 0 | AJ26: 53125130.44 | AK26: 0 | AL26: 0 | AM26: 9582862.16 | AN26: 4811667.11 | AO26: 1536815.93 | AP26: 0 | AQ26: 10871540.05 | AR26: 0 | AS26: 0 | AT26: 0 | AU26: 0 | AV26: 10106404.73 | AW26: 0 | AX26: - | AY26: 0.2998834086 | AZ26: 0.1678 | BA26: -
B27: 1688 | C27: 1. ESTADO NACIONAL | D27: 08. URBANIZACIÓN DE VILLAS Y ASENTAMIENTOS URBANOS | E27: MEJORAMIENTOS DE VIVIENDA EXISTENTE | F27: BARRIO SUIPACHA | G27: PREDIO SUIPACHA - INFRA PARA 254 VIV | H27: 2 | I27: 30. MINISTERIO DEL INTERIOR, OBRAS PÚBLICAS Y VIVIENDA | J27: 325 | K27: SECRETARIA DE VIVIENDA | L27: 71. URBANIZACIÓN DE VILLAS Y ASENTAMIENTOS PRECARIOS. | M27: - | N27: - | O27: 79. INFRAESTRUCTURA, NEXOS Y OBRAS COMPLEMENTARIAS EN LA CUENCA MATANZA RIACHUELO. | P27: 1437/2011 | Q27: 11 | R27: 5 | S27: 8 | T27: 6 | U27: 0 | V27: 3 | W27: 7 | X27: 6 | Y27: 1 | Z27: - | AA27: - | AB27: AVELLANEDA | AC27: - | AD27: PREDIO SUIPACHA | AE27: - | AF27: - | AG27: 26007968.84 | AH27: 0 | AI27: 0 | AJ27: 26007968.84 | AK27: 0 | AL27: 0 | AM27: 171291.88 | AN27: 2679841.01 | AO27: 0 | AP27: 2675240 | AQ27: 14411837.78 | AR27: 2907159.77 | AS27: 0 | AT27: 0 | AU27: 0 | AV27: 14947179.57 | AW27: 0 | AX27: - | AY27: 0.3365 | AZ27: 0.2388 | BA27: -
B28: 1695 | C28: 1. ESTADO NACIONAL | D28: 08. URBANIZACIÓN DE VILLAS Y ASENTAMIENTOS URBANOS | E28: VIVIENDAS NUEVAS | F28: COMPLEJO BARRIO 7 DE ENERO | G28: Bº 7 DE ENERO 20 VIV | H28: 2 | I28: 30. MINISTERIO DEL INTERIOR, OBRAS PÚBLICAS Y VIVIENDA | J28: 325 | K28: SECRETARIA DE VIVIENDA | L28: 71. URBANIZACIÓN DE VILLAS Y ASENTAMIENTOS PRECARIOS. | M28: - | N28: - | O28: 77.VIVIENDAS NUEVAS EN LA CUENCA MATANZA RIACHUELO | P28: 1441/2011 | Q28: 11 | R28: 5 | S28: 8 | T28: 6 | U28: 0 | V28: 3 | W28: 7 | X28: 6 | Y28: 1 | Z28: - | AA28: - | AB28: AVELLANEDA | AC28: - | AD28: CNO. GRAL. BELGRANO, ARROYO SARANDI, SUIPACHA | AE28: 2011-11-01 | AF28: - | AG28: 5033334.21 | AH28: 0 | AI28: 0 | AJ28: 5033334.21 | AK28: 0 | AL28: 0 | AM28: 33220.01 | AN28: 1686120.42 | AO28: 263292.52 | AP28: 2602974.14 | AQ28: 0 | AR28: 0 | AS28: 1126853.91 | AT28: 0 | AU28: 0 | AV28: 2151447.316 | AW28: 0 | AX28: EN ANÁLISIS | AY28: 0.53 | AZ28: 0.56 | BA28: SE CHEQUEARON LOS MONTOS ORIGINALES Y SE RATIFICAN LOS QUE FIGURAN EN LA PRESENTE PLANILLA
B29: 1709 | C29: 1. ESTADO NACIONAL | D29: 08. URBANIZACIÓN DE VILLAS Y ASENTAMIENTOS URBANOS | E29: VIVIENDAS NUEVAS | F29: COMPLEJO BARRIO RIBERA IGUAZÚ | G29: 128 VIV BARRIO RIBERA IGUAZÚ ETAPAS I Y II | H29: 2 | I29: 30. MINISTERIO DEL INTERIOR, OBRAS PÚBLICAS Y VIVIENDA | J29: 354 | K29: SECRETARIA DE VIVIENDA | L29: 46. URBANIZACIÓN DE VILLAS Y ASENTAMIENTOS PRECARIOS. | M29: - | N29: - | O29: 77.VIVIENDAS NUEVAS EN LA CUENCA MATANZA RIACHUELO | P29: 1015/2011-3142868/16 | Q29: 11 | R29: 5 | S29: 8 | T29: 1 | U29: 0 | V29: 3 | W29: 7 | X29: 2 | Y29: 1 | Z29: - | AA29: - | AB29: CABA | AC29: 4 | AD29: IGUAZU 1835 (EX-MUNDO GRUA) | AE29: 2011-10-20 | AF29: - | AG29: 25317557.79 | AH29: 13140556.81 | AI29: 0 | AJ29: 38458114.6 | AK29: 0 | AL29: 0 | AM29: 7434683.75 | AN29: 10375014.92 | AO29: 4361037.37 | AP29: 8304833.17 | AQ29: 0 | AR29: 0 | AS29: 19193909.78 | AT29: 7305926.93 | AU29: 0 | AV29: 246131.93 | AW29: 0 | AX29: - | AY29: 1 | AZ29: 0.632 | BA29: SE CHEQUEARON LOS MONTOS ORIGINALES Y SE RATIFICAN LOS QUE FIGURAN EN LA PRESENTE PLANILLA
B30: 1712 | C30: 1. ESTADO NACIONAL | D30: 08. URBANIZACIÓN DE VILLAS Y ASENTAMIENTOS URBANOS | E30: VIVIENDAS NUEVAS | F30: COMPLEJO BARRIO VALPARAISO | G30: 48 VIV VALPARAISO 3570 / VERACRUZ 3480 | H30: 2 | I30: 30. MINISTERIO DEL INTERIOR, OBRAS PÚBLICAS Y VIVIENDA | J30: 325 | K30: SECRETARIA DE VIVIENDA | L30: 71. URBANIZACIÓN DE VILLAS Y ASENTAMIENTOS PRECARIOS. | M30: - | N30: - | O30: 77.VIVIENDAS NUEVAS EN LA CUENCA MATANZA RIACHUELO | P30: 1350/2011 | Q30: 11 | R30: 5 | S30: 8 | T30: 1 | U30: 0 | V30: 3 | W30: 7 | X30: 2 | Y30: 1 | Z30: - | AA30: - | AB30: CABA | AC30: - | AD30: VALPARAISO 357 VERACRUZ 348 | AE30: 2013-06-06 | AF30: 2014-06-06 | AG30: 15230273.3 | AH30: 0 | AI30: 0 | AJ30: 15230273.3 | AK30: 0 | AL30: 0 | AM30: 706949.55 | AN30: 0 | AO30: 0 | AP30: 0 | AQ30: 0 | AR30: 0 | AS30: 215366.33 | AT30: 3892848.78 | AU30: 7312685.72 | AV30: 17741720.58 | AW30: 0 | AX30: EN EJECUCIÓN | AY30: 0.29 | AZ30: 0.34 | BA30: -
B31: 1722 | C31: 1. ESTADO NACIONAL | D31: 12. LIMPIEZA DE MÁRGENES Y CAMINO DE SIRGA | E31: RED VIAL | F31: CAMINO DE SIRGA LOMAS DE ZAMORA | G31: LOMAS DE ZAMORA CAMINO DE LA RIBERA | H31: 2 | I31: 30. MINISTERIO DEL INTERIOR, OBRAS PÚBLICAS Y VIVIENDA | J31: 354 | K31: SECRETARIA DE VIVIENDA | L31: PAVIMENTO | M31: - | N31: - | O31: - | P31: ACU 1589/11-2030582/16 | Q31: - | R31: 5 | S31: 8 | T31: - | U31: 0 | V31: 3 | W31: 7 | X31: 6 | Y31: 1 | Z31: - | AA31: - | AB31: LOMAS DE ZAMORA | AC31: - | AD31: - | AE31: - | AF31: - | AG31: 47985841.37 | AH31: 0 | AI31: 0 | AJ31: 47985841.37 | AK31: 0 | AL31: 0 | AM31: 12273257.22 | AN31: 10858770.99 | AO31: 14836801.08 | AP31: 0 | AQ31: 0 | AR31: 0 | AS31: 8433843.21 | AT31: 23711386.56 | AU31: 0 | AV31: 0 | AW31: 0 | AX31: - | AY31: 0.5 | AZ31: 0.5 | BA31: -
B32: 1748 | C32: 1. ESTADO NACIONAL | D32: 10. DESAGÜES PLUVIALES | E32: DESAGUES PLUVIALES | F32: ARROYO SUSANA | G32: SANEAMIENTO DE LA CUENCA DEL ARROYO SUSANA - RAMAL ESTE - BARRIO SAN CARLOS | H32: 2 | I32: 30. MINISTERIO DEL INTERIOR, OBRAS PÚBLICAS Y VIVIENDA | J32: 325 | K32: SECRETARÍA DE INFRAESTRUCTURA Y POLÍTICA HÍDRICA | L32: EXTRAPRESUPUESTARIO - FFIH - FONDO FIDUCIARIO INFRAESTRUCTURA HÍDRICA | M32: - | N32: - | O32: - | P32: BUE113 | Q32: FFIH | R32: - | S32: - | T32: - | U32: - | V32: - | W32: - | X32: - | Y32: 1 | Z32: - | AA32: MUNICIPIO | AB32: LA MATANZA | AC32: ISIDRO CASANOVA | AD32: SOBRE CALLE BEDOYA | AE32: 2011-06-17 | AF32: - | AG32: 29450326.05 | AH32: 26121408.97 | AI32: 6809624.24 | AJ32: 62381359.26 | AK32: 0 | AL32: 1758703.77 | AM32: 6188828.99 | AN32: 8906254.87 | AO32: 6472867.16 | AP32: 9475291.73 | AQ32: 10256430.12 | AR32: 11422740.25 | AS32: 0 | AT32: 0 | AU32: 5211651.26 | AV32: 24541845.13 | AW32: 19330193.87 | AX32: EN EJECUCIÓN | AY32: 0.7405 | AZ32: 0.97 | BA32: -
B33: 1783 | C33: 1. ESTADO NACIONAL | D33: 09. EXPANSIÓN DE LA RED DE AGUA POTABLE Y SANEAMIENTO DE CLOACAS | E33: GRANDES OBRAS DE INFRAESTRUCTURA | F33: PLANTA DE TRATAMIENTO CLOACAL PRESIDENTE PERÓN | G33: PLANTA DE TRATAMIENTO DE EFLUENTES CLOACALES - PRESIDENTE PERÓN | H33: 2 | I33: 30. MINISTERIO DEL INTERIOR, OBRAS PÚBLICAS Y VIVIENDA | J33: 613 | K33: ENTE NACIONAL DE OBRAS HÍDRICAS Y SANEAMIENTO | L33: 20. ASISTENCIA TÉCNICO 0 FINANCIERA Y DESARROLLO DE INFRAESTRUCTURA PARA EL SANEAMIENTO | M33: - | N33: 0 | O33: 79 | P33: - | Q33: 11 | R33: 5 | S33: 8 | T33: 6 | U33: 9999 | V33: 3 | W33: 8 | X33: 6 | Y33: 1 | Z33: - | AA33: MUNICIPIO | AB33: PTE. PERÓN | AC33: PTE. PERÓN | AD33: - | AE33: - | AF33: - | AG33: 46895589 | AH33: 10392246.65 | AI33: 0 | AJ33: 78947908.32 | AK33: 0 | AL33: 0 | AM33: 9550 | AN33: 285175 | AO33: 4689589 | AP33: 15170134 | AQ33: 26492131.56 | AR33: 0 | AS33: 3414213.33 | AT33: 0 | AU33: 0 | AV33: 7210886 | AW33: 0 | AX33: - | AY33: 0.6817 | AZ33: 0.8 | BA33: -
B34: 1794 | C34: 2. PROVINCIA DE BS AS | D34: 10. DESAGÜES PLUVIALES | E34: DESAGUES PLUVIALES | F34: DESAGUES PLUVIALES MÁXIMO PAZ | G34: MEJORAMIENTO DESAGUES PLUVIALES URBANOS Y LIMPIEZA CANALES ALEDAÑOS -LOCALIDAD MAXIMO PAZ -CAÑUELAS | H34: 2 | I34: 14. MINISTERIO DE INFRAESTRUCTURA DE LA PROVINCIA DE BUENOS AIRES | J34: - | K34: MINISTERIO DE INFRAESTRUCTURA | L34: 34. CONTROL DE INUNDACIONES | M34: 3 | N34: 366 | O34: - | P34: 1 | Q34: 13 | R34: 4 | S34: 2 | T34: 2 | U34: - | V34: 3 | W34: 8 | X34: 95 | Y34: 1 | Z34: - | AA34: MINISTERIO DE INFRAESTRUCTURA | AB34: CAÑUELAS | AC34: MÁXIMO PAZ | AD34: - | AE34: 2012-11-21 | AF34: 2013-07-19 | AG34: 6712601.04 | AH34: $ 0 | AI34: 0 | AJ34: 8141471 | AK34: - | AL34: - | AM34: - | AN34: 124504.04 | AO34: 1904742.22 | AP34: 464360.96 | AQ34: 355130.3 | AR34: 0 | AS34: 0 | AT34: 0 | AU34: 0 | AV34: 0 | AW34: 5618300 | AX34: RESCINDIDA | AY34: 0.4244 | AZ34: 0.26 | BA34: NEUTRALIZADA 3/2/14 HASTA TANTO SE RESUELVAN INTERFERENCIAS DE RED DE AGUA POTABLE.
B35: 1796 | C35: 2. PROVINCIA DE BS AS | D35: 10. DESAGÜES PLUVIALES | E35: DESAGUES PLUVIALES | F35: DESAGUES PLUVIALES RUTA 21-MERLO | G35: ADECUACION DE LOS DESAGUES PLUVIALES EN AREA RUTA 21 II ETAPA | H35: 2 | I35: 14. MINISTERIO DE INFRAESTRUCTURA DE LA PROVINCIA DE BUENOS AIRES | J35: - | K35: MINISTERIO DE INFRAESTRUCTURA | L35: 34. CONTROL DE INUNDACIONES | M35: 4 | N35: 55 | O35: - | P35: 2 | Q35: 13 | R35: 4 | S35: 2 | T35: 2 | U35: - | V35: 3 | W35: 8 | X35: 41 | Y35: 1 | Z35: - | AA35: MINISTERIO DE INFRAESTRUCTURA | AB35: MERLO | AC35: - | AD35: - | AE35: 2012-04-24 | AF35: 2018-01-03 | AG35: 2495248.41 | AH35: 677364.88 | AI35: 0 | AJ35: 58136095.51 | AK35: 0 | AL35: 0 | AM35: 0 | AN35: 6337475.6 | AO35: 0 | AP35: 144282.6 | AQ35: 18749565.22 | AR35: 16681671.95 | AS35: 4537183.05 | AT35: 1295891 | AU35: 0 | AV35: 0 | AW35: =VLOOKUP(B35,'[10]FINAL F'!$A:$AY,51,0) -> 0 | AX35: FINALIZADO | AY35: 1 | AZ35: 1 | BA35: OBRA DUPLICADA . SE VA A INFORMAR EL ID 1841 - EL ID 1796 ES LA MISMA OBRA PERO CON DISTINTA FUENTE DE FINANCIAMIENTO
B36: 1836 | C36: 2. PROVINCIA DE BS AS | D36: 10. DESAGÜES PLUVIALES | E36: DESAGUES PLUVIALES | F36: ARROYO FINOCHIETTO | G36: SANEAMIENTO HIDRAULICO DE LA CUENCA ARROYO FINOCHIETTO-ETAPA III | H36: 2 | I36: 14. MINISTERIO DE INFRAESTRUCTURA DE LA PROVINCIA DE BUENOS AIRES | J36: - | K36: MINISTERIO DE INFRAESTRUCTURA | L36: 34. CONTROL DE INUNDACIONES | M36: 3 | N36: 52 | O36: - | P36: 2 | Q36: 11 | R36: 4 | S36: 2 | T36: 2 | U36: - | V36: 3 | W36: 8 | X36: 325 | Y36: 1 | Z36: - | AA36: MINISTERIO DE INFRAESTRUCTURA | AB36: LA MATANZA | AC36: - | AD36: - | AE36: - | AF36: - | AG36: 22786902.9 | AH36: 0 | AI36: 0 | AJ36: 112413165 | AK36: 0 | AL36: 0 | AM36: 0 | AN36: 0 | AO36: 842421.35 | AP36: 0 | AQ36: 0 | AR36: 0 | AS36: 0 | AT36: 24944542.88 | AU36: 0 | AV36: 0 | AW36: =VLOOKUP(B36,'[10]FINAL F'!$A:$AY,51,0) -> 0 | AX36: FINALIZADO | AY36: 1 | AZ36: 1 | BA36: -
B37: 1838 | C37: 2. PROVINCIA DE BS AS | D37: 10. DESAGÜES PLUVIALES | E37: CANALIZACIÓN | F37: ARROYO UNAMUNO | G37: ALIVIADOR ESTE ARROYO UNAMUNO ETAPA II A | H37: 2 | I37: 14. MINISTERIO DE INFRAESTRUCTURA DE LA PROVINCIA DE BUENOS AIRES | J37: - | K37: MINISTERIO DE INFRAESTRUCTURA | L37: 34. CONTROL DE INUNDACIONES | M37: 3 | N37: 54 | O37: - | P37: 2 | Q37: 11 | R37: 4 | S37: 2 | T37: 2 | U37: - | V37: 3 | W37: 8 | X37: 37 | Y37: 1 | Z37: - | AA37: MINISTERIO DE INFRAESTRUCTURA | AB37: LOMAS DE ZAMORA | AC37: - | AD37: - | AE37: 2011-11-17 | AF37: 2018-01-11 | AG37: 28690119.76 | AH37: 0 | AI37: 0 | AJ37: 137801291 | AK37: 0 | AL37: 0 | AM37: 0 | AN37: 0 | AO37: 0 | AP37: 0 | AQ37: 0 | AR37: 10273923.48 | AS37: 62015735 | AT37: 7456843.77 | AU37: 6099878.55 | AV37: 30130300 | AW37: =VLOOKUP(B37,'[10]FINAL F'!$A:$AY,51,0) -> 30130300 | AX37: EN EJECUCIÓN | AY37: 1.04 | AZ37: 0.95 | BA37: -
B38: 1839 | C38: 2. PROVINCIA DE BS AS | D38: 10. DESAGÜES PLUVIALES | E38: CANALIZACIÓN | F38: ARROYO UNAMUNO | G38: ALIVIADOR ESTE ARROYO UNAMUNO IETAPA | H38: 2 | I38: 14. MINISTERIO DE INFRAESTRUCTURA DE LA PROVINCIA DE BUENOS AIRES | J38: - | K38: MINISTERIO DE INFRAESTRUCTURA | L38: 34. CONTROL DE INUNDACIONES | M38: 3 | N38: 53 | O38: - | P38: 2 | Q38: 11 | R38: 4 | S38: 2 | T38: 2 | U38: - | V38: 3 | W38: 8 | X38: 37 | Y38: 1 | Z38: - | AA38: MINISTERIO DE INFRAESTRUCTURA | AB38: LOMAS DE ZAMORA | AC38: - | AD38: - | AE38: 2011-10-25 | AF38: 2018-02-01 | AG38: 14977094.51 | AH38: 0 | AI38: 0 | AJ38: 249079690 | AK38: 0 | AL38: 0 | AM38: 0 | AN38: 0 | AO38: 0 | AP38: 0 | AQ38: 0 | AR38: 0 | AS38: 37869403 | AT38: 56533774 | AU38: 2737225.43 | AV38: 98672 | AW38: =VLOOKUP(B38,'[10]FINAL F'!$A:$AY,51,0) -> 98672000 | AX38: EN EJECUCIÓN | AY38: 0.86 | AZ38: 0.9895 | BA38: NEUTRALIZADA POR INTERFERENCIA FFCC
B39: 1841 | C39: 2. PROVINCIA DE BS AS | D39: 10. DESAGÜES PLUVIALES | E39: DESAGUES PLUVIALES | F39: DESAGÜES PLUVIALES - RUTA 21 | G39: ADECUACION DE LOS DESAGUES PLUVIALES EN AREA RUTA 21 II ETAPA | H39: 2 | I39: 14. MINISTERIO DE INFRAESTRUCTURA DE LA PROVINCIA DE BUENOS AIRES | J39: - | K39: MINISTERIO DE INFRAESTRUCTURA | L39: 34. CONTROL DE INUNDACIONES | M39: 4 | N39: 55 | O39: - | P39: 2 | Q39: 11 | R39: - | S39: - | T39: - | U39: - | V39: 3 | W39: 8 | X39: 41 | Y39: 1 | Z39: - | AA39: MINISTERIO DE INFRAESTRUCTURA | AB39: MERLO | AC39: - | AD39: - | AE39: 2012-04-24 | AF39: 2018-01-03 | AG39: 27114391 | AH39: 0 | AI39: 0 | AJ39: 58135095 | AK39: 0 | AL39: 0 | AM39: 0 | AN39: 6337475.6 | AO39: 10163699 | AP39: 0 | AQ39: 0 | AR39: 0 | AS39: 4537183.05 | AT39: 1295891 | AU39: 0 | AV39: 0 | AW39: =VLOOKUP(B39,'[10]FINAL F'!$A:$AY,51,0) -> 0 | AX39: FINALIZADO | AY39: 1 | AZ39: 1 | BA39: -
B40: 1902 | C40: 1. ESTADO NACIONAL | D40: 09. EXPANSIÓN DE LA RED DE AGUA POTABLE Y SANEAMIENTO DE CLOACAS | E40: GRANDES OBRAS DE INFRAESTRUCTURA CLOACALES | F40: PLANTA DE TRATAMIENTO ACUBA | G40: PLANTA DE TRATAMIENTO DE EFLUENTES LANÚS (ACUBA) - OBRA CIVIL | H40: 2 | I40: 91. OBLIGACIONES DEL TESORO | J40: 356 | K40: AYSA | L40: 95. ASISTENCIA FINANCIERA A EMPRESAS PÚBLICAS Y ENTE BINACIONAL | M40: 5 Y CONVENIO ACUMAR | N40: 1161602 | O40: 77 | P40: - | Q40: 22 Y RECURSOS PROPIOS | R40: 5 | S40: 5 | T40: 7 | U40: 753 | V40: 3 | W40: 8 | X40: 2 | Y40: 2 | Z40: SCE003 | AA40: - | AB40: LANÚS | AC40: VALENTÍN ALSINA | AD40: PREDIO SITUADO ENTRE LAS CALLES GENERAL OLAZÁBAL, BOQUERÓN, HERNANDO DE MAGALLANES Y CORONEL MOLINEDO, PARTIDO DE LANÚS. | AE40: 2012-01-25 | AF40: 2016-12-31 | AG40: 78145401.19 | AH40: 148024064.2 | AI40: 13177991.24 | AJ40: 239347456.7 | AK40: 0 | AL40: 0 | AM40: 0 | AN40: 0 | AO40: 42784666.96 | AP40: 39108441.55 | AQ40: 43286738.13 | AR40: 52991854.68 | AS40: 3516041.353 | AT40: 3711531.53 | AU40: -973283.1988 | AV40: 0 | AW40: 0 | AX40: FINALIZADO | AY40: 1 | AZ40: 1 | BA40: EN 2018 SE MODIFICA EL CÓDIGO DE ACTIVIDAD DE LA APERTURA PROGRAMÁTICA DE 5 A 77, UG DE 96 A 2 Y FF DE 11 A 22. EL PROYECTO TAMBIÉN SERÁ FINANCIADO CON RECURSOS PROPIOS DE AYSA. AÑOS ANTERIORES, EL PROYECTO RECIBIÓ FINANCIAMIENTO POR CONVENIO CON ACUMAR
B41: 1959 | C41: 1. ESTADO NACIONAL | D41: 09. EXPANSIÓN DE LA RED DE AGUA POTABLE Y SANEAMIENTO DE CLOACAS | E41: EXPANSIÓN DE REDES CLOACALES | F41: REDES CLOACALES ALMIRANTE BROWN | G41: CONDUCTO DE DESAGUE DE PLANTA DE TRATAMIENTO BARRIO RAYO DE SOL | H41: 2 | I41: 91. OBLIGACIONES DEL TESORO | J41: 356 | K41: AYSA | L41: 95. ASISTENCIA FINANCIERA A EMPRESAS PÚBLICAS Y ENTE BINACIONAL | M41: 5 | N41: 1160538 | O41: 77 | P41: - | Q41: 22 Y RECURSOS PROPIOS | R41: 5 | S41: 5 | T41: 7 | U41: 753 | V41: 3 | W41: 8 | X41: 2 | Y41: 2 | Z41: SA696 | AA41: - | AB41: ALMIRANTE BROWN | AC41: ALMIRANTE BROWN | AD41: DESDE SANTA CLARA Y SANTIAGO DEL ESTERO HASTA SANTA CLARA Y MANUEL BELGRANO, POR ESTA ÚLTIMA HASTA MANUELA PEDRAZA Y POR PEDRAZA HASTA EL ZANJÓN DEL A° DEL REY. | AE41: 2017-09-11 | AF41: 2018-10-26 | AG41: 10626682.22 | AH41: 7127777.257 | AI41: 620053.6396 | AJ41: 18374513.12 | AK41: 0 | AL41: 0 | AM41: 0 | AN41: 8686.8683 | AO41: 0 | AP41: 0 | AQ41: 0 | AR41: 0 | AS41: 63327.0561 | AT41: 16360416.04 | AU41: 2133594.948 | AV41: 2705708.927 | AW41: 0 | AX41: EN EJECUCIÓN | AY41: 1 | AZ41: 0.995 | BA41: EN 2018 SE MODIFICA EL CÓDIGO DE ACTIVIDAD DE LA APERTURA PROGRAMÁTICA DE 5 A 77, UG DE 96 A 2 Y FF DE 11 A 22. EL PROYECTO TAMBIÉN SERÁ FINANCIADO CON RECURSOS PROPIOS DE AYSA
B42: 1963 | C42: 1. ESTADO NACIONAL | D42: 09. EXPANSIÓN DE LA RED DE AGUA POTABLE Y SANEAMIENTO DE CLOACAS | E42: GRANDES OBRAS DE INFRAESTRUCTURA CLOACALES | F42: PLANTA DE TRATAMIENTO FIORITO | G42: PLANTA DE TRATAMIENTO DE EFLUENTES FIORITO - OBRA CIVIL | H42: 2 | I42: 91. OBLIGACIONES DEL TESORO | J42: 356 | K42: AYSA | L42: 95. ASISTENCIA FINANCIERA A EMPRESAS PÚBLICAS Y ENTE BINACIONAL | M42: 5 Y CONVENIO ACUMAR | N42: 1160515 | O42: 77 | P42: - | Q42: 22 Y RECURSOS PROPIOS | R42: 5 | S42: 5 | T42: 7 | U42: 753 | V42: 3 | W42: 8 | X42: 2 | Y42: 2 | Z42: SC307 | AA42: - | AB42: LOMAS DE ZAMORA | AC42: VILLA FIORITO | AD42: EL PREDIO SE ENCUENTRA UBICADO EN EL CAMINO DE LA RIBERA SUD (PARCELA 1 – FRACCIÓN 1), CONTIGUO AL RIACHUELO Y EN LAS CERCANÍAS DEL PUENTE DE LA NORIA. | AE42: 2012-05-10 | AF42: 2019-12-31 | AG42: 146746195.9 | AH42: 813765402.4 | AI42: 26139473.5 | AJ42: 986651071.8 | AK42: 0 | AL42: 0 | AM42: 0 | AN42: 0 | AO42: 50723667.45 | AP42: 162739932.3 | AQ42: 210248403.6 | AR42: 272407071.2 | AS42: 197830658.8 | AT42: 3824881.656 | AU42: 10091349.1 | AV42: 0 | AW42: 31820744.01 | AX42: EN EJECUCIÓN | AY42: 0.996352269 | AZ42: 1 | BA42: EN 2018 SE MODIFICA EL CÓDIGO DE ACTIVIDAD DE LA APERTURA PROGRAMÁTICA DE 5 A 77, UG DE 96 A 2 Y FF DE 11 A 22. EL PROYECTO TAMBIÉN SERÁ FINANCIADO CON RECURSOS PROPIOS DE AYSA. AÑOS ANTERIORES, EL PROYECTO RECIBIÓ FINANCIAMIENTO POR CONVENIO CON ACUMAR
B43: 2010 | C43: 1. ESTADO NACIONAL | D43: 06. PLAN SANITARIO DE EMERGENCIA | E43: MEJORA Y MANTENIMIENTO | F43: SISTEMA CLOACAS LA MATANZA | G43: RENOVACIÓN REDES DE CLOACA PROGRAMADA | H43: 2 | I43: 91. OBLIGACIONES DEL TESORO | J43: 356 | K43: AYSA | L43: 95. ASISTENCIA FINANCIERA A EMPRESAS PÚBLICAS Y ENTE BINACIONAL | M43: 5 | N43: 1211310 | O43: 5 | P43: - | Q43: 11 | R43: 5 | S43: 5 | T43: 7 | U43: 753 | V43: 3 | W43: 8 | X43: 96 | Y43: 2 | Z43: SIN P3 | AA43: - | AB43: LA MATANZA | AC43: LA MATANZA | AD43: LOCALIZACIÓN 26-VER ANEXO LOCALIZACIÓN EXACTA | AE43: 2012-01-01 | AF43: 2012-12-31 | AG43: NOTA 9 | AH43: NOTA 9 | AI43: 0 | AJ43: NOTA 9 | AK43: - | AL43: - | AM43: - | AN43: 10444598.66 | AO43: -430934.0585 | AP43: 27360.52 | AQ43: 0 | AR43: 0 | AS43: 0 | AT43: 0 | AU43: -18924.4 | AV43: 0 | AW43: 0 | AX43: FINALIZADO | AY43: 1 | AZ43: 1 | BA43: -
B44: 2025 | C44: 1. ESTADO NACIONAL | D44: 06. PLAN SANITARIO DE EMERGENCIA | E44: MEJORA Y MANTENIMIENTO | F44: SISTEMA CLOACAS LA MATANZA | G44: RENOVACIÓN MARCOS Y TAPAS POR EMERG. - DISTRITO LMN | H44: 2 | I44: 91. OBLIGACIONES DEL TESORO | J44: 356 | K44: AYSA | L44: 95. ASISTENCIA FINANCIERA A EMPRESAS PÚBLICAS Y ENTE BINACIONAL | M44: 5 | N44: 1211401 | O44: 5 | P44: - | Q44: 11 | R44: 5 | S44: 5 | T44: 7 | U44: 753 | V44: 3 | W44: 8 | X44: 96 | Y44: 2 | Z44: SIN P3 | AA44: - | AB44: LA MATANZA | AC44: LA MATANZA | AD44: LOCALIZACIÓN 61-VER ANEXO LOCALIZACIÓN EXACTA | AE44: 2012-01-01 | AF44: 2012-12-31 | AG44: NOTA 9 | AH44: NOTA 9 | AI44: 0 | AJ44: NOTA 9 | AK44: - | AL44: - | AM44: - | AN44: 131901.208 | AO44: 8808.2192 | AP44: - | AQ44: 0 | AR44: 0 | AS44: 0 | AT44: 0 | AU44: -3630 | AV44: 0 | AW44: 0 | AX44: FINALIZADO | AY44: 1 | AZ44: 1 | BA44: -
B45: 2179 | C45: 1. ESTADO NACIONAL | D45: 06. PLAN SANITARIO DE EMERGENCIA | E45: EXPANSIÓN DE REDES | F45: SISTEMA AGUA ESTEBAN ECHEVERRÍA | G45: PLAN AYSA A+T DR SUR ESTEBAN ECHEVERRIA | H45: 2 | I45: 91. OBLIGACIONES DEL TESORO | J45: 356 | K45: AYSA | L45: 95. ASISTENCIA FINANCIERA A EMPRESAS PÚBLICAS Y ENTE BINACIONAL | M45: 5 | N45: 1248413 | O45: 5 | P45: - | Q45: 11 | R45: 5 | S45: 5 | T45: 7 | U45: 753 | V45: 3 | W45: 8 | X45: 96 | Y45: 2 | Z45: SIN P3 | AA45: - | AB45: ESTEBAN ECHEVERRÍA | AC45: ESTEBAN ECHEVERRÍA | AD45: DON MARCELO M1 / DON MARIANO M1 / LA MORITA M1 / SANTA CATALINA M 3 | AE45: 2012-05-15 | AF45: 2013-11-30 | AG45: 3845863.75 | AH45: 230587.55 | AI45: 2619995.099 | AJ45: 6696446.399 | AK45: - | AL45: - | AM45: - | AN45: 2173424.765 | AO45: 4097656.26 | AP45: 341297.4121 | AQ45: 63325.634 | AR45: 10094.3282 | AS45: 0 | AT45: 0 | AU45: 10648 | AV45: 0 | AW45: 0 | AX45: FINALIZADO | AY45: 1 | AZ45: 1.000000015 | BA45: -
B46: 2232 | C46: 1. ESTADO NACIONAL | D46: 04. ORDENAMIENTO TERRITORIAL | E46: OBRAS VIALES ESTRATÉGICAS | F46: AUTOPISTA PTE. PERÓN | G46: CAMINO DEL BUEN AYRE TRAMO I - SECCION ACCESO OESTE - ACCESO A Bº 20 DE JUNIO (PONTEVEDRA - PROG 25,55) | H46: 2 | I46: 604. DIRECCIÓN NACIONAL DE VIALIDAD | J46: 604 | K46: DIRECCION NACIONAL DE VIALIDAD | L46: 42. CONSTRUCCIÓN DE AUTOPISTAS Y AUTOVÍAS | M46: 10 | N46: 3 | O46: 0 | P46: 51 | Q46: 14 | R46: 6 | S46: 8 | T46: 7 | U46: 0 | V46: 4 | W46: 3 | X46: 6 | Y46: 1 | Z46: - | AA46: - | AB46: EZEIZA - LA MATANZA - MERLO - PRESIDENTE PERÓN - SAN VICENTE | AC46: EZEIZA - LA MATANZA - MERLO - PRESIDENTE PERÓN - SAN VICENTE | AD46: CAMINO DEL BUEN AYRE | AE46: 2010-03-10 | AF46: 2016-05-31 | AG46: 483287977 | AH46: 2195495999 | AI46: 2734790346 | AJ46: 5413574322 | AK46: 0 | AL46: 48328797.66 | AM46: 87740942 | AN46: 64981559 | AO46: 37130578.47 | AP46: 33533956.57 | AQ46: 127878024.7 | AR46: 547997610.4 | AS46: 231100867.7 | AT46: 328962416.9 | AU46: 424539037.8 | AV46: 0 | AW46: 2339279312 | AX46: EN EJECUCIÓN | AY46: 0.2784952535 | AZ46: 0.509 | BA46: Actividad interna DB1. Linea agregada por cambio de Fuente/Inciso. PARTIDA Y PRESUPUESTO INICIAL GLOBAL.
B47: 2233 | C47: 1. ESTADO NACIONAL | D47: 04. ORDENAMIENTO TERRITORIAL | E47: OBRAS VIALES ESTRATÉGICAS | F47: AUTOPISTA PTE. PERÓN | G47: CAMINO DEL BUEN AYRE TRAMO II - SECCION ACCESO A Bº 20 DE JUNIO - RUTA PROV.Nº58- PROG. KM53,980) | H47: 2 | I47: 604. DIRECCIÓN NACIONAL DE VIALIDAD | J47: 604 | K47: DIRECCION NACIONAL DE VIALIDAD | L47: 42. CONSTRUCCIÓN DE AUTOPISTAS Y AUTOVÍAS | M47: 10 | N47: 3 | O47: 0 | P47: 51 | Q47: 14 | R47: 6 | S47: 8 | T47: 7 | U47: 0 | V47: 4 | W47: 3 | X47: 6 | Y47: 1 | Z47: - | AA47: - | AB47: EZEIZA - LA MATANZA - MERLO - PRESIDENTE PERÓN - SAN VICENTE | AC47: EZEIZA - LA MATANZA - MERLO - PRESIDENTE PERÓN - SAN VICENTE | AD47: CAMINO DEL BUEN AYRE | AE47: 2010-03-10 | AF47: 2016-07-01 | AG47: 555060595 | AH47: 2564581571 | AI47: 3689609871 | AJ47: 6809252037 | AK47: 0 | AL47: 55506059.49 | AM47: 0 | AN47: 25747282 | AO47: 40893287.55 | AP47: 27328173.54 | AQ47: 36638960.33 | AR47: 191462847.8 | AS47: 278653521.1 | AT47: 823640905.8 | AU47: 613889738 | AV47: 0 | AW47: 0 | AX47: EN EJECUCIÓN | AY47: 0.2173323927 | AZ47: 0.4354 | BA47: Actividad interna DB3. Linea agregada por cambio de Fuente/Inciso. PARTIDA Y PRESUPUESTO INICIAL GLOBAL.
B48: 2234 | C48: 1. ESTADO NACIONAL | D48: 04. ORDENAMIENTO TERRITORIAL | E48: OBRAS VIALES ESTRATÉGICAS | F48: AUTOPISTA PTE. PERÓN | G48: CAMINO DEL BUEN AYRE TRAMO III - SECCION RUTA PROV.Nº58- RUTA PROV.Nº53 (PROG. KM 72,60) | H48: 2 | I48: 604. DIRECCIÓN NACIONAL DE VIALIDAD | J48: 604 | K48: DIRECCION NACIONAL DE VIALIDAD | L48: 42. CONSTRUCCIÓN DE AUTOPISTAS Y AUTOVÍAS | M48: 10 | N48: 3 | O48: 0 | P48: 51 | Q48: 14 | R48: 6 | S48: 8 | T48: 7 | U48: 0 | V48: 4 | W48: 3 | X48: 6 | Y48: 1 | Z48: - | AA48: - | AB48: EZEIZA - LA MATANZA - MERLO - PRESIDENTE PERÓN - SAN VICENTE | AC48: EZEIZA - LA MATANZA - MERLO - PRESIDENTE PERÓN - SAN VICENTE | AD48: CAMINO DEL BUEN AYRE | AE48: 2010-03-11 | AF48: 2016-07-01 | AG48: 318183735 | AH48: 1696476940 | AI48: 1863528843 | AJ48: 3878189518 | AK48: 0 | AL48: 31818373.54 | AM48: 21816585 | AN48: 8565512.32 | AO48: 8249012.77 | AP48: 3449837.53 | AQ48: 90336963.19 | AR48: 123053170.5 | AS48: 583274235.5 | AT48: 119802233.3 | AU48: 16375976.76 | AV48: 0 | AW48: 0 | AX48: EN EJECUCIÓN | AY48: 0.255368109 | AZ48: 0.335 | BA48: Actividad interna DB2. Linea agregada por cambio de Fuente/Inciso. PARTIDA Y PRESUPUESTO INICIAL GLOBAL.
B49: 2283 | C49: 2. PROVINCIA DE BS AS | D49: 10. DESAGÜES PLUVIALES | E49: DESAGUES PLUVIALES | F49: DESAGÜES PLUVIALES - ALEJANDRO KORN Y SAN VICENTE | G49: DESAGÜES PLUVIALES EN ALEJANDRO KORN -SAN VICENTE | H49: 2 | I49: 14. MINISTERIO DE INFRAESTRUCTURA DE LA PROVINCIA DE BUENOS AIRES | J49: - | K49: MINISTERIO DE INFRAESTRUCTURA | L49: 34. CONTROL DE INUNDACIONES | M49: 4 | N49: 750 | O49: - | P49: 1 | Q49: 13 | R49: 4 | S49: 2 | T49: 2 | U49: - | V49: 3 | W49: 8 | X49: 595 | Y49: 1 | Z49: - | AA49: MINISTERIO DE INFRAESTRUCTURA | AB49: SAN VICENTE | AC49: - | AD49: - | AE49: 2015-04-28 | AF49: 2016-09-16 | AG49: 8000000 | AH49: 0 | AI49: 0 | AJ49: 13960131 | AK49: 0 | AL49: 0 | AM49: 0 | AN49: 0 | AO49: 0 | AP49: 0 | AQ49: 0 | AR49: 0 | AS49: 344661.8 | AT49: 0 | AU49: 0 | AV49: 485000 | AW49: =VLOOKUP(B49,'[10]FINAL F'!$A:$AY,51,0) -> 485000 | AX49: FINALIZADO | AY49: 0.97 | AZ49: 1 | BA49: -
B50: 2349 | C50: 1. ESTADO NACIONAL | D50: 08. URBANIZACIÓN DE VILLAS Y ASENTAMIENTOS URBANOS | E50: VIVIENDAS NUEVAS | F50: COMPLEJO BARRIO LINDO | G50: BARRIO LINDO - 300 VIV + INFRA - ETAPA I | H50: 2 | I50: 30. MINISTERIO DEL INTERIOR, OBRAS PÚBLICAS Y VIVIENDA | J50: 325 | K50: SECRETARIA DE VIVIENDA | L50: 71. URBANIZACIÓN DE VILLAS Y ASENTAMIENTOS PRECARIOS. | M50: - | N50: - | O50: 79. INFRAESTRUCTURA, NEXOS Y OBRAS COMPLEMENTARIAS EN LA CUENCA MATANZA RIACHUELO. | P50: 253/2011-4279100/2016 | Q50: 11 | R50: 5 | S50: 8 | T50: 6 | U50: 0 | V50: 3 | W50: 7 | X50: 6 | Y50: 1 | Z50: - | AA50: - | AB50: ALMIRANTE BROWN | AC50: - | AD50: CALLES AMENEDO,S ANTA ANA Y LA TORCAZA | AE50: 2011-09-08 | AF50: - | AG50: 8038281.35 | AH50: 2253535.28 | AI50: 0 | AJ50: 10291816.63 | AK50: 0 | AL50: 0 | AM50: 0 | AN50: 2945517.92 | AO50: 0 | AP50: 2411638.54 | AQ50: 0 | AR50: 0 | AS50: 10650372.54 | AT50: 0 | AU50: 0 | AV50: 12780447.05 | AW50: 0 | AX50: A INICIAR | AY50: 0.25 | AZ50: 0 | BA50: -
B51: 2350 | C51: 1. ESTADO NACIONAL | D51: 08. URBANIZACIÓN DE VILLAS Y ASENTAMIENTOS URBANOS | E51: VIVIENDAS NUEVAS | F51: COMPLEJO BARRIO LINDO | G51: BARRIO LINDO - 273 VIV + INFRA - ETAPA II | H51: 2 | I51: 30. MINISTERIO DEL INTERIOR, OBRAS PÚBLICAS Y VIVIENDA | J51: 354 | K51: SECRETARIA DE VIVIENDA | L51: 46. URBANIZACIÓN DE VILLAS Y ASENTAMIENTOS PRECARIOS. | M51: - | N51: - | O51: 79. INFRAESTRUCTURA, NEXOS Y OBRAS COMPLEMENTARIAS EN LA CUENCA MATANZA RIACHUELO. | P51: 254/2011-4279022/2016 | Q51: 11 | R51: 5 | S51: 8 | T51: 6 | U51: 0 | V51: 3 | W51: 7 | X51: 6 | Y51: 1 | Z51: - | AA51: - | AB51: ALMIRANTE BROWN | AC51: - | AD51: CALLES PINO, MATIENZO, RODRIGUEZ Y MADARIAGA | AE51: 2011-09-08 | AF51: - | AG51: 7285300 | AH51: 2042436.67 | AI51: 0 | AJ51: 9327736.67 | AK51: 0 | AL51: 0 | AM51: 0 | AN51: 2721833.56 | AO51: 0 | AP51: 2190124.95 | AQ51: 0 | AR51: 0 | AS51: 0 | AT51: 0 | AU51: 18768094.96 | AV51: 8887758.608 | AW51: 0 | AX51: - | AY51: 0.2918 | AZ51: 0.1416 | BA51: -
B52: 2354 | C52: 1. ESTADO NACIONAL | D52: 08. URBANIZACIÓN DE VILLAS Y ASENTAMIENTOS URBANOS | E52: VIVIENDAS NUEVAS | F52: COMPLEJO BARRIO SUIPACHA | G52: PREDIO SUIPACHA - 254 VIV | H52: 2 | I52: 30. MINISTERIO DEL INTERIOR, OBRAS PÚBLICAS Y VIVIENDA | J52: 325 | K52: SECRETARIA DE VIVIENDA | L52: 71. URBANIZACIÓN DE VILLAS Y ASENTAMIENTOS PRECARIOS. | M52: - | N52: - | O52: 77.VIVIENDAS NUEVAS EN LA CUENCA MATANZA RIACHUELO | P52: 1437/2011 | Q52: 11 | R52: 5 | S52: 8 | T52: 6 | U52: 0 | V52: 3 | W52: 7 | X52: 6 | Y52: 1 | Z52: - | AA52: - | AB52: AVELLANEDA | AC52: - | AD52: PREDIO SUIPACHA | AE52: 2012-12-01 | AF52: - | AG52: 61675670.6 | AH52: 0 | AI52: 0 | AJ52: 61675670.6 | AK52: 0 | AL52: 0 | AM52: 2446390.6 | AN52: 9755433.77 | AO52: 0 | AP52: 1049180.88 | AQ52: 0 | AR52: 19107674.74 | AS52: 0 | AT52: 0 | AU52: 1654148.29 | AV52: 57121722.78 | AW52: 0 | AX52: - | AY52: 0.2475 | AZ52: 0.2226 | BA52: -
B53: 2377 | C53: 1. ESTADO NACIONAL | D53: 08. URBANIZACIÓN DE VILLAS Y ASENTAMIENTOS URBANOS | E53: VIVIENDAS NUEVAS | F53: COMPLEJO BARRIO LACARRA | G53: LACARRA 2049/AV. S. DE COMPOSTELA 3768 - 24 DE 54 VIV | H53: 2 | I53: 30. MINISTERIO DEL INTERIOR, OBRAS PÚBLICAS Y VIVIENDA | J53: 354 | K53: SECRETARIA DE VIVIENDA | L53: 46. URBANIZACIÓN DE VILLAS Y ASENTAMIENTOS PRECARIOS. | M53: - | N53: - | O53: 77.VIVIENDAS NUEVAS EN LA CUENCA MATANZA RIACHUELO | P53: 170/2010- 2083285-16 | Q53: 11 | R53: 5 | S53: 8 | T53: 1 | U53: 0 | V53: 3 | W53: 7 | X53: 2 | Y53: 1 | Z53: - | AA53: - | AB53: CABA | AC53: - | AD53: LACARRA 249AV. S. DE COMPOSTELA 3768 | AE53: 2011-09-30 | AF53: - | AG53: 5926979.413 | AH53: 0 | AI53: 0 | AJ53: 5926979.413 | AK53: 0 | AL53: 0 | AM53: 0 | AN53: 0 | AO53: 0 | AP53: 0 | AQ53: 0 | AR53: 0 | AS53: 1483463.04 | AT53: 4268126.93 | AU53: 0 | AV53: 0 | AW53: 0 | AX53: - | AY53: 0.1709099335 | AZ53: 0 | BA53: -
B54: 2379 | C54: 1. ESTADO NACIONAL | D54: 08. URBANIZACIÓN DE VILLAS Y ASENTAMIENTOS URBANOS | E54: VIVIENDAS NUEVAS | F54: COMPLEJO BARRIO RIBERA IGUAZÚ | G54: 192 VIVIENDAS - Bº RIBERA IGUAZÚ - ETAPAS III, IV Y V | H54: 2 | I54: 30. MINISTERIO DEL INTERIOR, OBRAS PÚBLICAS Y VIVIENDA | J54: 354 | K54: SECRETARIA DE VIVIENDA | L54: 46. URBANIZACIÓN DE VILLAS Y ASENTAMIENTOS PRECARIOS. | M54: - | N54: - | O54: 77.VIVIENDAS NUEVAS EN LA CUENCA MATANZA RIACHUELO | P54: 1802/2012-2405057/16 | Q54: 11 | R54: 5 | S54: 8 | T54: 1 | U54: 0 | V54: 3 | W54: 7 | X54: 2 | Y54: 1 | Z54: - | AA54: - | AB54: CABA | AC54: - | AD54: - | AE54: 2010-10-15 | AF54: - | AG54: 78157466.47 | AH54: 0 | AI54: 0 | AJ54: 78157466.47 | AK54: 0 | AL54: 0 | AM54: 0 | AN54: 0 | AO54: 14798607.73 | AP54: 0 | AQ54: 0 | AR54: 0 | AS54: 10359824.67 | AT54: 25729188.03 | AU54: 0 | AV54: 7571703.84 | AW54: 0 | AX54: - | AY54: 0.9836280699 | AZ54: 0.9853 | BA54: -
B55: 2380 | C55: 1. ESTADO NACIONAL | D55: 08. URBANIZACIÓN DE VILLAS Y ASENTAMIENTOS URBANOS | E55: INFRAESTRUCTURA DE SERVICIOS BÁSICOS | F55: BARRIO RIBERA IGUAZU | G55: INFRAESTRUCTURA INTERNA PARA 192 VIVIENDAS - Bº RIBERA IGUAZÚ - ETAPAS III, IV Y V | H55: 2 | I55: 30. MINISTERIO DEL INTERIOR, OBRAS PÚBLICAS Y VIVIENDA | J55: 354 | K55: SECRETARIA DE VIVIENDA | L55: 46. URBANIZACIÓN DE VILLAS Y ASENTAMIENTOS PRECARIOS. | M55: - | N55: - | O55: 77.VIVIENDAS NUEVAS EN LA CUENCA MATANZA RIACHUELO | P55: 1802/2012-2402470/16 | Q55: 11 | R55: 5 | S55: 8 | T55: 1 | U55: 0 | V55: 3 | W55: 7 | X55: 2 | Y55: 1 | Z55: - | AA55: - | AB55: CABA | AC55: - | AD55: A DEFINIR | AE55: - | AF55: - | AG55: 5196305.11 | AH55: 0 | AI55: 0 | AJ55: 5196305.11 | AK55: 0 | AL55: 0 | AM55: 0 | AN55: 0 | AO55: 472344.13 | AP55: 0 | AQ55: 0 | AR55: 0 | AS55: 0 | AT55: 0 | AU55: 0 | AV55: 18822551.91 | AW55: 0 | AX55: - | AY55: 0.8919037264 | AZ55: 0.9944 | BA55: -
B56: 2386 | C56: 1. ESTADO NACIONAL | D56: 08. URBANIZACIÓN DE VILLAS Y ASENTAMIENTOS URBANOS | E56: MEJORAMIENTOS DE VIVIENDA EXISTENTE | F56: BARRIO LUJÁN | G56: VILLA LUJAN URBANIZACION + INFRA PARA 53 FLIAS | H56: 2 | I56: 30. MINISTERIO DEL INTERIOR, OBRAS PÚBLICAS Y VIVIENDA | J56: 325 | K56: SECRETARIA DE VIVIENDA | L56: 71. URBANIZACIÓN DE VILLAS Y ASENTAMIENTOS PRECARIOS. | M56: - | N56: - | O56: 77.VIVIENDAS NUEVAS EN LA CUENCA MATANZA RIACHUELO | P56: 911/2015 | Q56: 11 | R56: 5 | S56: 8 | T56: 1 | U56: 0 | V56: 3 | W56: 7 | X56: 2 | Y56: 1 | Z56: - | AA56: - | AB56: CABA | AC56: - | AD56: VILLA LUJAN | AE56: - | AF56: - | AG56: 13475250 | AH56: 0 | AI56: 0 | AJ56: 10795920.34 | AK56: 0 | AL56: 0 | AM56: 0 | AN56: 0 | AO56: 0 | AP56: 0 | AQ56: 822507.78 | AR56: 769113.09 | AS56: 271788.54 | AT56: 7574163.29 | AU56: 0 | AV56: 5228778.65 | AW56: 0 | AX56: EN EJECUCIÓN | AY56: 0.9293697218 | AZ56: 0.9776 | BA56: -
B57: 2388 | C57: 1. ESTADO NACIONAL | D57: 08. URBANIZACIÓN DE VILLAS Y ASENTAMIENTOS URBANOS | E57: VIVIENDAS NUEVAS | F57: COMPLEJO BARRIO MONTECARLO | G57: 240 VIV | H57: 2 | I57: 30. MINISTERIO DEL INTERIOR, OBRAS PÚBLICAS Y VIVIENDA | J57: 325 | K57: SECRETARIA DE VIVIENDA | L57: 71. URBANIZACIÓN DE VILLAS Y ASENTAMIENTOS PRECARIOS. | M57: - | N57: - | O57: 77.VIVIENDAS NUEVAS EN LA CUENCA MATANZA RIACHUELO | P57: 198/2012 | Q57: 11 | R57: 5 | S57: 8 | T57: 6 | U57: 0 | V57: 3 | W57: 7 | X57: 6 | Y57: 1 | Z57: - | AA57: - | AB57: ESTEBAN ECHEVERRÍA | AC57: MARCOS | AD57: Bº MONTECARLO | AE57: 2012-07-23 | AF57: - | AG57: 52347768.93 | AH57: 9847568.07 | AI57: 0 | AJ57: 62195337 | AK57: 0 | AL57: 0 | AM57: 0 | AN57: 8994557.13 | AO57: 22720153.4 | AP57: 22315721.88 | AQ57: 0 | AR57: 8454724.1 | AS57: 0 | AT57: 0 | AU57: 15611339.47 | AV57: 9445886.65 | AW57: 0 | AX57: - | AY57: 0.9792 | AZ57: 0.9304 | BA57: INCLUIDO EN CONVENIO MARCO 17771
B58: 2389 | C58: 1. ESTADO NACIONAL | D58: 08. URBANIZACIÓN DE VILLAS Y ASENTAMIENTOS URBANOS | E58: INFRAESTRUCTURA DE SERVICIOS BÁSICOS | F58: COMPLEJO BARRIO MONTECARLO | G58: INFRA PARA 240 VIV | H58: 2 | I58: 30. MINISTERIO DEL INTERIOR, OBRAS PÚBLICAS Y VIVIENDA | J58: 354 | K58: SECRETARIA DE VIVIENDA | L58: 46. URBANIZACIÓN DE VILLAS Y ASENTAMIENTOS PRECARIOS. | M58: - | N58: - | O58: 79. INFRAESTRUCTURA, NEXOS Y OBRAS COMPLEMENTARIAS EN LA CUENCA MATANZA RIACHUELO. | P58: 198/2012 | Q58: 11 | R58: 5 | S58: 8 | T58: 6 | U58: 0 | V58: 3 | W58: 7 | X58: 6 | Y58: 1 | Z58: - | AA58: - | AB58: ESTEBAN ECHEVERRÍA | AC58: - | AD58: Bº MONTECARLO | AE58: 2012-07-23 | AF58: - | AG58: 18926731.05 | AH58: 3560462.58 | AI58: 0 | AJ58: 22487193.63 | AK58: 0 | AL58: 0 | AM58: 0 | AN58: 4062139.18 | AO58: 7434557.79 | AP58: 6401905.2 | AQ58: 0 | AR58: 0 | AS58: 0 | AT58: 0 | AU58: 8479020.56 | AV58: 7076216.79 | AW58: 0 | AX58: - | AY58: 0.9635 | AZ58: 0.8476 | BA58: INCLUIDO EN CONVENIO MARCO 17771
B59: 2401 | C59: 1. ESTADO NACIONAL | D59: 08. URBANIZACIÓN DE VILLAS Y ASENTAMIENTOS URBANOS | E59: VIVIENDAS NUEVAS | F59: COMPLEJO FFMM | G59: PREDIO FFMM- ETAPA I - 174 VIV | H59: 2 | I59: 30. MINISTERIO DEL INTERIOR, OBRAS PÚBLICAS Y VIVIENDA | J59: 325 | K59: SECRETARIA DE VIVIENDA | L59: 71. URBANIZACIÓN DE VILLAS Y ASENTAMIENTOS PRECARIOS. | M59: - | N59: - | O59: 77.VIVIENDAS NUEVAS EN LA CUENCA MATANZA RIACHUELO | P59: 766/2012 | Q59: 11 | R59: 5 | S59: 8 | T59: 6 | U59: 0 | V59: 3 | W59: 7 | X59: 6 | Y59: 1 | Z59: - | AA59: - | AB59: LANÚS | AC59: - | AD59: AV. CARLOS PELLEGRINI, MORENO, PSJE AGUIRRE, CNEL. OSORIO | AE59: 2013-01-07 | AF59: - | AG59: 49365616.09 | AH59: 14137453.6 | AI59: 0 | AJ59: 63503069.69 | AK59: 0 | AL59: 0 | AM59: 0 | AN59: 8077893.22 | AO59: 25720831.19 | AP59: 23998578.4 | AQ59: 0 | AR59: 4239286.67 | AS59: 0 | AT59: 0 | AU59: 0 | AV59: 155001.16 | AW59: 0 | AX59: - | AY59: 1 | AZ59: 0.9979 | BA59: -
B60: 2690 | C60: 1. ESTADO NACIONAL | D60: 09. EXPANSIÓN DE LA RED DE AGUA POTABLE Y SANEAMIENTO DE CLOACAS | E60: MEJORA Y MANTENIMIENTO DE REDES DE AGUA | F60: SISTEMA AGUA CABA | G60: EQUIPAMIENTO ELECTROMECANICO | H60: 2 | I60: 91. OBLIGACIONES DEL TESORO | J60: 356 | K60: AYSA | L60: 95. ASISTENCIA FINANCIERA A EMPRESAS PÚBLICAS Y ENTE BINACIONAL | M60: 5 | N60: 1150501 | O60: 5 | P60: - | Q60: 11 | R60: 5 | S60: 5 | T60: 7 | U60: 753 | V60: 3 | W60: 8 | X60: 96 | Y60: 2 | Z60: SIN P3 | AA60: - | AB60: CABA | AC60: CIUDAD AUTÓNOMA DE BUENOS AIRES | AD60: AV. DE LOS OMBÚES 209 | AE60: 2011-07-26 | AF60: 2011-11-01 | AG60: 652156.3862 | AH60: 628970.5477 | AI60: 0 | AJ60: 1281126.934 | AK60: 0 | AL60: 0 | AM60: 628970.5477 | AN60: 652156.3862 | AO60: 192152.5738 | AP60: 0 | AQ60: 0 | AR60: 0 | AS60: 0 | AT60: 6054.84 | AU60: 0 | AV60: 0 | AW60: 0 | AX60: FINALIZADO | AY60: 0.8452866702 | AZ60: 1 | BA60: -
B61: 2701 | C61: 1. ESTADO NACIONAL | D61: 09. EXPANSIÓN DE LA RED DE AGUA POTABLE Y SANEAMIENTO DE CLOACAS | E61: GRANDES OBRAS DE INFRAESTRUCTURA CLOACALES | F61: PLANTA DE TRATAMIENTO ACUBA | G61: PLANTA DE TRATAMIENTO DE EFLUENTES LANÚS (ACUBA) - OBRA ELECTROMECANICA | H61: 2 | I61: 91. OBLIGACIONES DEL TESORO | J61: 356 | K61: AYSA | L61: 95. ASISTENCIA FINANCIERA A EMPRESAS PÚBLICAS Y ENTE BINACIONAL | M61: 5 Y CONVENIO ACUMAR | N61: 1161601 | O61: 77 | P61: - | Q61: 22 Y RECURSOS PROPIOS | R61: 5 | S61: 5 | T61: 7 | U61: 753 | V61: 3 | W61: 8 | X61: 2 | Y61: 2 | Z61: SCE003 | AA61: - | AB61: LANÚS | AC61: VALENTÍN ALSINA | AD61: PREDIO SITUADO ENTRE LAS CALLES GENERAL OLAZÁBAL, BOQUERÓN, HERNANDO DE MAGALLANES Y CORONEL MOLINEDO, PARTIDO DE LANÚS. | AE61: 2012-01-25 | AF61: 2016-10-31 | AG61: 44976057.06 | AH61: 163932701.6 | AI61: 5335349.038 | AJ61: 214244107.7 | AK61: 0 | AL61: 0 | AM61: 0 | AN61: 0 | AO61: 3477084.085 | AP61: 49756543.67 | AQ61: 50007820.61 | AR61: 84311586.18 | AS61: 1497398.244 | AT61: 3748106.503 | AU61: -568038.3599 | AV61: 0 | AW61: 0 | AX61: FINALIZADO | AY61: 0.9555110676 | AZ61: 1 | BA61: EN 2018 SE MODIFICA EL CÓDIGO DE ACTIVIDAD DE LA APERTURA PROGRAMÁTICA DE 5 A 77, UG DE 96 A 2 Y FF DE 11 A 22. EL PROYECTO TAMBIÉN SERÁ FINANCIADO CON RECURSOS PROPIOS DE AYSA. AÑOS ANTERIORES, EL PROYECTO RECIBIÓ FINANCIAMIENTO POR CONVENIO CON ACUMAR
B62: 2883 | C62: 1. ESTADO NACIONAL | D62: 08. URBANIZACIÓN DE VILLAS Y ASENTAMIENTOS URBANOS | E62: VIVIENDAS NUEVAS | F62: COMPLEJO BARRIO RIBERA IGUAZÚ | G62: Bº RIBERA IGUAZU INF PARA 128 + 192 VIV + 480 FAMILIAS VILLA 21-24 | H62: 2 | I62: 30. MINISTERIO DEL INTERIOR, OBRAS PÚBLICAS Y VIVIENDA | J62: 354 | K62: SECRETARIA DE VIVIENDA | L62: 46. URBANIZACIÓN DE VILLAS Y ASENTAMIENTOS PRECARIOS. | M62: - | N62: - | O62: 79. INFRAESTRUCTURA, NEXOS Y OBRAS COMPLEMENTARIAS EN LA CUENCA MATANZA RIACHUELO. | P62: 1801/2012-2646921/16 | Q62: 11 | R62: 5 | S62: 8 | T62: 1 | U62: 0 | V62: 3 | W62: 7 | X62: 2 | Y62: 1 | Z62: - | AA62: - | AB62: CABA | AC62: - | AD62: - | AE62: - | AF62: - | AG62: 22040654.98 | AH62: 0 | AI62: 0 | AJ62: 22040654.98 | AK62: 0 | AL62: 0 | AM62: 0 | AN62: 0 | AO62: 3187078.71 | AP62: 0 | AQ62: 0 | AR62: 0 | AS62: 0 | AT62: 5470974.47 | AU62: 1468495.67 | AV62: 2810016.15 | AW62: 0 | AX62: - | AY62: 0.6533720686 | AZ62: 0.5411 | BA62: -
B63: 2888 | C63: 1. ESTADO NACIONAL | D63: 08. URBANIZACIÓN DE VILLAS Y ASENTAMIENTOS URBANOS | E63: VIVIENDAS NUEVAS | F63: COMPLEJO BARRIO VILLA TALLERES | G63: Bº VILLA TALLERES - 28 DE 136 VIV + INFRA ETAPA I | H63: 2 | I63: 30. MINISTERIO DEL INTERIOR, OBRAS PÚBLICAS Y VIVIENDA | J63: 325 | K63: SECRETARIA DE VIVIENDA | L63: 71. URBANIZACIÓN DE VILLAS Y ASENTAMIENTOS PRECARIOS. | M63: - | N63: - | O63: 77.VIVIENDAS NUEVAS EN LA CUENCA MATANZA RIACHUELO | P63: 1693/2012 | Q63: 11 | R63: 5 | S63: 8 | T63: 6 | U63: 0 | V63: 3 | W63: 7 | X63: 6 | Y63: 1 | Z63: - | AA63: - | AB63: LANÚS | AC63: - | AD63: - | AE63: 2013-05-17 | AF63: - | AG63: 10902351.23 | AH63: 3513535.69 | AI63: 0 | AJ63: 14415886.92 | AK63: 0 | AL63: 0 | AM63: 0 | AN63: 0 | AO63: 3187617.34 | AP63: 4391897.35 | AQ63: 0 | AR63: 523425.74 | AS63: 0 | AT63: 0 | AU63: 0 | AV63: 2562311.48 | AW63: 0 | AX63: - | AY63: 0.936 | AZ63: 0.8359 | BA63: -
B64: 2889 | C64: 1. ESTADO NACIONAL | D64: 08. URBANIZACIÓN DE VILLAS Y ASENTAMIENTOS URBANOS | E64: VIVIENDAS NUEVAS | F64: COMPLEJO BARRIO VILLA TALLERES | G64: Bº VILLA TALLERES - INFRA PARA 28 VIV | H64: 2 | I64: 30. MINISTERIO DEL INTERIOR, OBRAS PÚBLICAS Y VIVIENDA | J64: 354 | K64: SECRETARIA DE VIVIENDA | L64: 46. URBANIZACIÓN DE VILLAS Y ASENTAMIENTOS PRECARIOS. | M64: - | N64: - | O64: 79. INFRAESTRUCTURA, NEXOS Y OBRAS COMPLEMENTARIAS EN LA CUENCA MATANZA RIACHUELO. | P64: 1693/2012 | Q64: 11 | R64: 5 | S64: 8 | T64: 6 | U64: 0 | V64: 3 | W64: 7 | X64: 6 | Y64: 1 | Z64: - | AA64: - | AB64: LANÚS | AC64: - | AD64: - | AE64: 2013-05-17 | AF64: - | AG64: 2928556.19 | AH64: 1236361.94 | AI64: 0 | AJ64: 4164918.13 | AK64: 0 | AL64: 0 | AM64: 0 | AN64: 0 | AO64: 574570.99 | AP64: 51430.23 | AQ64: 0 | AR64: 0 | AS64: 0 | AT64: 0 | AU64: 0 | AV64: 1670040.936 | AW64: 0 | AX64: - | AY64: 0.4685 | AZ64: 0.2787 | BA64: -
B65: 2892 | C65: 1. ESTADO NACIONAL | D65: 08. URBANIZACIÓN DE VILLAS Y ASENTAMIENTOS URBANOS | E65: VIVIENDAS NUEVAS | F65: COMPLEJO BARRIO LA MAQUINITA | G65: B° LA MAQUINITA, 88 VIV | H65: 2 | I65: 30. MINISTERIO DEL INTERIOR, OBRAS PÚBLICAS Y VIVIENDA | J65: 325 | K65: SECRETARIA DE VIVIENDA | L65: 71. URBANIZACIÓN DE VILLAS Y ASENTAMIENTOS PRECARIOS. | M65: - | N65: - | O65: 77.VIVIENDAS NUEVAS EN LA CUENCA MATANZA RIACHUELO | P65: 1515/2014 | Q65: 11 | R65: 5 | S65: 8 | T65: 6 | U65: 0 | V65: 3 | W65: 7 | X65: 6 | Y65: 1 | Z65: - | AA65: - | AB65: LANÚS | AC65: - | AD65: - | AE65: 2015-03-30 | AF65: - | AG65: 49485724 | AH65: 0 | AI65: 0 | AJ65: 49485724 | AK65: 0 | AL65: 0 | AM65: 0 | AN65: 0 | AO65: 0 | AP65: 1640805.22 | AQ65: 0 | AR65: 8016501.24 | AS65: 0 | AT65: 0 | AU65: 0 | AV65: 13034296.1 | AW65: 0 | AX65: - | AY65: 0.5606 | AZ65: 0.4439 | BA65: -
B66: 2893 | C66: 1. ESTADO NACIONAL | D66: 08. URBANIZACIÓN DE VILLAS Y ASENTAMIENTOS URBANOS | E66: MEJORAMIENTOS DE VIVIENDA EXISTENTE | F66: BARRIO LA MAQUINITA | G66: B° LA MAQUINITA, INFRA PARA 88 VIV | H66: 2 | I66: 30. MINISTERIO DEL INTERIOR, OBRAS PÚBLICAS Y VIVIENDA | J66: 354 | K66: SECRETARIA DE VIVIENDA | L66: 46. URBANIZACIÓN DE VILLAS Y ASENTAMIENTOS PRECARIOS. | M66: - | N66: - | O66: 79. INFRAESTRUCTURA, NEXOS Y OBRAS COMPLEMENTARIAS EN LA CUENCA MATANZA RIACHUELO. | P66: 1515/2014 | Q66: 11 | R66: 5 | S66: 8 | T66: 6 | U66: 0 | V66: 3 | W66: 7 | X66: 6 | Y66: 1 | Z66: - | AA66: - | AB66: LANÚS | AC66: - | AD66: - | AE66: 2015-03-30 | AF66: - | AG66: 11852977.07 | AH66: 0 | AI66: 0 | AJ66: 11852977.07 | AK66: 0 | AL66: 0 | AM66: 0 | AN66: 0 | AO66: 0 | AP66: 355417.25 | AQ66: 0 | AR66: 0 | AS66: 0 | AT66: 0 | AU66: 0 | AV66: 3927152.852 | AW66: 0 | AX66: - | AY66: 0.4525 | AZ66: 0.3133 | BA66: -
B67: 2894 | C67: 1. ESTADO NACIONAL | D67: 08. URBANIZACIÓN DE VILLAS Y ASENTAMIENTOS URBANOS | E67: VIVIENDAS NUEVAS | F67: COMPLEJO FFMM | G67: PREDIO FFMM - ETAPA I - INFRA PARA 174 VIV | H67: 2 | I67: 30. MINISTERIO DEL INTERIOR, OBRAS PÚBLICAS Y VIVIENDA | J67: 354 | K67: SECRETARIA DE VIVIENDA | L67: 46. URBANIZACIÓN DE VILLAS Y ASENTAMIENTOS PRECARIOS. | M67: - | N67: - | O67: 79. INFRAESTRUCTURA, NEXOS Y OBRAS COMPLEMENTARIAS EN LA CUENCA MATANZA RIACHUELO. | P67: 766/2012 | Q67: 11 | R67: 5 | S67: 8 | T67: 6 | U67: 0 | V67: 3 | W67: 7 | X67: 6 | Y67: 1 | Z67: - | AA67: - | AB67: LANÚS | AC67: - | AD67: AV. CARLOS PELLEGRINI, MORENO, PSJE AGUIRRE, CNEL. OSORIO | AE67: 2013-01-07 | AF67: - | AG67: 28072454.48 | AH67: 8581005.16 | AI67: 0 | AJ67: 36653459.64 | AK67: 0 | AL67: 0 | AM67: 0 | AN67: 5311548.02 | AO67: 4783487.23 | AP67: 5334236.75 | AQ67: 0 | AR67: 0 | AS67: 0 | AT67: 0 | AU67: 0 | AV67: 22768205.49 | AW67: 0 | AX67: - | AY67: 0.4813 | AZ67: 0.6583 | BA67: -
B68: 2935 | C68: 4. ACUMAR | D68: 07. MONITOREO DE LA CALIDAD DE AGUA, SEDIMENTOS Y AIRE | E68: MONITOREO DE CALIDAD DE AGUA Y SEDIMENTOS | F68: MONITOREO DE CALIDAD DE AGUA Y SEDIMENTOS | G68: CONVENIO ACUMAR/INA PROGRAMA DE MONITOREO DE CALIDAD DEL AGUA | H68: 1 | I68: ACUMAR | J68: - | K68: ACUMAR | L68: CALIDAD AMBIENTAL | M68: - | N68: - | O68: - | P68: - | Q68: - | R68: 3 | S68: 4 | T68: 1 | U68: - | V68: - | W68: - | X68: - | Y68: 1 | Z68: - | AA68: INSTITUTO NACIONAL DEL AGUA-FUNDACION ARGENTINA | AB68: CUENCA MATANZA RIACHUELO | AC68: - | AD68: - | AE68: - | AF68: - | AG68: 0 | AH68: 0 | AI68: 0 | AJ68: 0 | AK68: 0 | AL68: 2300000 | AM68: 400000 | AN68: 2542000 | AO68: 1633166.26 | AP68: 2877120 | AQ68: 1781680 | AR68: 3086152 | AS68: 1297740.5 | AT68: 1860000 | AU68: 1240000 | AV68: 0 | AW68: 0 | AX68: - | AY68: - | AZ68: - | BA68: -
B69: 2962 | C69: 4. ACUMAR | D69: 08. URBANIZACIÓN DE VILLAS Y ASENTAMIENTOS URBANOS | E69: ESTUDIOS Y EVALUACIONES AMBIENTALES | F69: DIAGNÓSTICO AMBIENTAL CUENCA ALTA MATANZA RIACHUELO | G69: DIAGNÓSTICO AMBIENTAL CUENCA ALTA MATANZA RIACHUELO | H69: 1 | I69: ACUMAR | J69: - | K69: ACUMAR | L69: ORDENAMIENTO TERRITORIAL | M69: - | N69: - | O69: - | P69: - | Q69: - | R69: - | S69: - | T69: - | U69: - | V69: - | W69: - | X69: - | Y69: 1 | Z69: - | AA69: ACUMAR | AB69: CUENCA MATANZA RIACHUELO | AC69: - | AD69: - | AE69: 2012-03-29 | AF69: 2013-01-29 | AG69: 378000 | AH69: 0 | AI69: 0 | AJ69: 378000 | AK69: 0 | AL69: 0 | AM69: 0 | AN69: 245700 | AO69: 0 | AP69: 26460 | AQ69: 0 | AR69: 0 | AS69: 0 | AT69: 146802.67 | AU69: 668723.36 | AV69: 0 | AW69: 0 | AX69: - | AY69: - | AZ69: - | BA69: SE RECTIFICO LA DENOMINACION
B70: 2979 | C70: 4. ACUMAR | D70: 13. SANEAMIENTO DE BASURALES | E70: RECOLECCIÓN DE RESIDUOS | F70: RECOLECCIÓN DE RESIDUOS | G70: CONVENIO ACUMAR MUNICIP AVELLANEDA LIMPIEZA | H70: 1 | I70: ACUMAR | J70: - | K70: ACUMAR | L70: LIMPIEZA DE BASURALES | M70: - | N70: - | O70: - | P70: - | Q70: - | R70: 5 | S70: 7 | T70: 6 | U70: - | V70: - | W70: - | X70: - | Y70: 1 | Z70: - | AA70: MUNICIPALIDAD DE AVELLANEDA | AB70: AVELLANEDA | AC70: - | AD70: - | AE70: 2012-09-04 | AF70: 2013-03-03 | AG70: 7350000 | AH70: 0 | AI70: 0 | AJ70: 7350000 | AK70: 0 | AL70: 0 | AM70: 0 | AN70: 2566179.4 | AO70: 0 | AP70: 0 | AQ70: 0 | AR70: 0 | AS70: 0 | AT70: 3685676.4 | AU70: 0 | AV70: 0 | AW70: 0 | AX70: - | AY70: - | AZ70: - | BA70: PROYECTO 158
B71: 3012 | C71: 4. ACUMAR | D71: 06. PLAN SANITARIO DE EMERGENCIA | E71: LIMPIEZA MÁRGENES Y ARROYOS | F71: LIMPIEZA DE MÁRGENES | G71: PROGRAMA LIMPIEZA DE MÁRGENES ENERO 2015 ENERO 2017 - MUNICIPIO LOMAS DE ZAMORA - | H71: 1 | I71: ACUMAR | J71: - | K71: ACUMAR | L71: LIMPIEZA DE MÁRGENES | M71: - | N71: - | O71: - | P71: - | Q71: - | R71: 5 | S71: 6 | T71: 5 | U71: - | V71: - | W71: - | X71: - | Y71: 1 | Z71: - | AA71: MUNICIPALIDAD DE LOMAS DE ZAMORA | AB71: LOMAS DE ZAMORA | AC71: - | AD71: - | AE71: 2017-06-30 | AF71: - | AG71: 272538734 | AH71: 0 | AI71: 0 | AJ71: 272538734 | AK71: 0 | AL71: 0 | AM71: 29217402.39 | AN71: 83217338.53 | AO71: 66180219.76 | AP71: 65763020.65 | AQ71: 35780911.59 | AR71: 42136517.14 | AS71: 8687190.42 | AT71: 0 | AU71: 0 | AV71: 0 | AW71: 0 | AX71: - | AY71: - | AZ71: - | BA71: PROYECTO 16
B72: 3033 | C72: 4. ACUMAR | D72: 06. PLAN SANITARIO DE EMERGENCIA | E72: NUEVO EFECTOR SALUD | F72: UNIDADES SANITARIAS AMBIENTALES | G72: UNIDAD SANITARIA MUNICIPALIDAD DE ESTEBAN ECHEVERRIA | H72: 1 | I72: ACUMAR | J72: - | K72: ACUMAR | L72: PLAN SANITARIO DE EMERGENCIA | M72: - | N72: - | O72: - | P72: - | Q72: - | R72: - | S72: - | T72: - | U72: - | V72: - | W72: - | X72: - | Y72: 1 | Z72: - | AA72: MUNICIPALIDAD DE ESTEBAN ECHEVERRIA | AB72: ESTEBAN ECHEVERRÍA | AC72: - | AD72: - | AE72: 2011-12-02 | AF72: 2012-07-02 | AG72: 2350000 | AH72: 0 | AI72: 0 | AJ72: 2350000 | AK72: 0 | AL72: 0 | AM72: 0 | AN72: 705000 | AO72: 0 | AP72: 0 | AQ72: 0 | AR72: 0 | AS72: 0 | AT72: 0 | AU72: 6978851.08 | AV72: 0 | AW72: 0 | AX72: - | AY72: - | AZ72: - | BA72: EL ID CABA 280.008, CONTINUA BAJO EL ID CABA 280.053. SE RECTIFICO LA DENOMINACION
B73: 3042 | C73: 4. ACUMAR | D73: 06. PLAN SANITARIO DE EMERGENCIA | E73: NUEVO EFECTOR DE SALUD | F73: UNIDADES SANITARIAS AMBIENTALES | G73: UNIDAD SANIT. AMB. MUNICP. LAS HERAS | H73: 1 | I73: ACUMAR | J73: - | K73: ACUMAR | L73: PLAN SANITARIO DE EMERGENCIA | M73: - | N73: - | O73: - | P73: - | Q73: - | R73: 5 | S73: 8 | T73: 6 | U73: - | V73: - | W73: - | X73: - | Y73: 1 | Z73: - | AA73: MUNICIPALIDAD DE LAS HERAS | AB73: GENERAL LAS HERAS | AC73: - | AD73: - | AE73: 2011-12-02 | AF73: 2012-08-02 | AG73: 2350000 | AH73: 0 | AI73: 0 | AJ73: 2350000 | AK73: 0 | AL73: 0 | AM73: 0 | AN73: 705000 | AO73: 0 | AP73: 0 | AQ73: 875941.4 | AR73: 0 | AS73: 3418258.53 | AT73: 3594452.35 | AU73: 0 | AV73: 0 | AW73: 0 | AX73: - | AY73: - | AZ73: - | BA73: PROYECTO 50
B74: 3043 | C74: 4. ACUMAR | D74: 06. PLAN SANITARIO DE EMERGENCIA | E74: NUEVO EFECTOR SALUD | F74: LABORATORIO TOXICOLÓGICO | G74: COMPRA EQUIPAMIENTO LABORATORIO TOXICOLÓGICO DE REFERENCIA PROVINCIAL Y NACIONAL - HOSPITAL CUENCA ALTA - CAÑUELAS | H74: 1 | I74: ACUMAR | J74: - | K74: ACUMAR | L74: PLAN SANITARIO DE EMERGENCIA | M74: - | N74: - | O74: - | P74: - | Q74: - | R74: - | S74: - | T74: - | U74: - | V74: - | W74: - | X74: - | Y74: 1 | Z74: - | AA74: JENCK S.A. | AB74: CUENCA MATANZA RIACHUELO | AC74: - | AD74: - | AE74: 2011-05-21 | AF74: 2013-05-21 | AG74: 894813.3 | AH74: 0 | AI74: 0 | AJ74: 894813.3 | AK74: 0 | AL74: 0 | AM74: 0 | AN74: 240604.92 | AO74: 0 | AP74: 0 | AQ74: 10984.42 | AR74: 0 | AS74: 0 | AT74: 0 | AU74: 989439.7 | AV74: 0 | AW74: 0 | AX74: - | AY74: - | AZ74: - | BA74: SE RECTIFICO LA DENOMINACION
B75: 3236 | C75: 3. CABA | D75: 08. URBANIZACIÓN DE VILLAS Y ASENTAMIENTOS URBANOS | E75: VIVIENDAS NUEVAS | F75: COMPLEJO RIBERA IGUAZÚ | G75: CONSTRUCCIÓN DE VIVIENDAS PARA LOS RESIDENTES DE LOS ASENTAMIENTOS Y VILLAS LOCALIZADAS EN LAS MÁRGENES DE LA CUENCA MATANZA-RIACHUELO.BENEFICIARIOS: HABITANTES ASENTAMIENTO EL PUEBLITO | H75: 2 | I75: 21. JEFATURA DE GABINETE DE MINISTROS | J75: - | K75: 219. INSTITUTO PARA LA VIVIENDA | L75: 109. VIVIENDAS CON AHORRO PREVIO | M75: 0. VIVIENDAS CON AHORRO PREVIO | N75: 60. ACUMAR | O75: 0. ACUMAR | P75: 56. BARRIO RIBERA IGUAZÚ | Q75: 11 | R75: 4 | S75: 2 | T75: 1 | U75: 0 | V75: 3 | W75: 7 | X75: 4 | Y75: 1 | Z75: CONSTRUCCIÓN DE VIVIENDAS | AA75: 290. INSTITUTO DE LA VIVIENDA LEY N° 1.251 | AB75: CABA | AC75: 4 | AD75: IGUAZÚ N° 1.835 | AE75: 2011-01-01 | AF75: - | AG75: 48116847.03 | AH75: 0 | AI75: 48116847.03 | AJ75: 113374682 | AK75: 0 | AL75: 0 | AM75: 5543143.43 | AN75: 11585287 | AO75: 1399506 | AP75: 982708 | AQ75: 0 | AR75: 29781868.95 | AS75: 0 | AT75: 9296653 | AU75: 22163000 | AV75: 22163000 | AW75: 0 | AX75: - | AY75: - | AZ75: - | BA75: -
B76: 3539 | C76: 4. ACUMAR | D76: 03. FORTALECIMIENTO INSTITUCIONAL | E76: INSTITUCIONAL ACUMAR | F76: INSTITUCIONAL ACUMAR | G76: VARIOS - FORTALECIMIENTO INSTITUCIONAL | H76: 1 | I76: ACUMAR | J76: - | K76: ACUMAR | L76: FORTALECIMIENTO INSTITUCIONAL | M76: - | N76: - | O76: - | P76: - | Q76: - | R76: - | S76: - | T76: - | U76: - | V76: - | W76: - | X76: - | Y76: 1 | Z76: - | AA76: ACUMAR | AB76: CUENCA MATANZA RIACHUELO | AC76: - | AD76: - | AE76: - | AF76: - | AG76: 0 | AH76: 0 | AI76: 0 | AJ76: 0 | AK76: 0 | AL76: 1193091.25 | AM76: 7284972.353 | AN76: 103759311.2 | AO76: 43348209.62 | AP76: 229683.54 | AQ76: 2728755.65 | AR76: 13205885.89 | AS76: 185493098 | AT76: 44432796.49 | AU76: 35551464.43 | AV76: 0 | AW76: 0 | AX76: - | AY76: - | AZ76: - | BA76: -
B77: 3543 | C77: 4. ACUMAR | D77: 03. FORTALECIMIENTO INSTITUCIONAL | E77: INSTITUCIONAL ACUMAR | F77: INSTITUCIONAL ACUMAR | G77: ADQUISICIÓN DE INSUMOS DE LIBRERÍA E INFORMÁTICA | H77: 1 | I77: ACUMAR | J77: - | K77: ACUMAR | L77: FORTALECIMIENTO INSTITUCIONAL | M77: - | N77: - | O77: - | P77: - | Q77: - | R77: 2 | S77: 9 | T77: 2 | U77: - | V77: - | W77: - | X77: - | Y77: 1 | Z77: - | AA77: ERRE DE S.R.L. | AB77: CUENCA MATANZA RIACHUELO | AC77: - | AD77: - | AE77: - | AF77: - | AG77: 0 | AH77: 0 | AI77: 0 | AJ77: 0 | AK77: 0 | AL77: 863861.5 | AM77: 1940918.62 | AN77: 0 | AO77: 5345125.87 | AP77: 5642761.37 | AQ77: 1235715.88 | AR77: 167401.57 | AS77: 0 | AT77: 562852.14 | AU77: 1567974.44 | AV77: 0 | AW77: 0 | AX77: - | AY77: - | AZ77: - | BA77: PROYECTO 152
B78: 3544 | C78: 4. ACUMAR | D78: 03. FORTALECIMIENTO INSTITUCIONAL | E78: INSTITUCIONAL ACUMAR | F78: INSTITUCIONAL ACUMAR | G78: CONTRATACION DE SERVICIO DE CARTA DOCUMENTO - CORREO OFICIAL | H78: 1 | I78: ACUMAR | J78: - | K78: ACUMAR | L78: FORTALECIMIENTO INSTITUCIONAL | M78: - | N78: - | O78: - | P78: - | Q78: - | R78: 3 | S78: 1 | T78: 5 | U78: - | V78: - | W78: - | X78: - | Y78: 1 | Z78: - | AA78: CORREO OFICIAL DE LA REP ARGENTINA | AB78: CUENCA MATANZA RIACHUELO | AC78: - | AD78: - | AE78: 2017-06-30 | AF78: - | AG78: 0 | AH78: 0 | AI78: 0 | AJ78: 0 | AK78: 0 | AL78: 255112.78 | AM78: 1329426.31 | AN78: 0 | AO78: 102846.15 | AP78: 664316.49 | AQ78: 188768.29 | AR78: 239574.45 | AS78: 171551.71 | AT78: 132561.5 | AU78: 0 | AV78: 0 | AW78: 0 | AX78: - | AY78: - | AZ78: - | BA78: PROYECTO 95
B79: 3553 | C79: 4. ACUMAR | D79: 06. PLAN SANITARIO DE EMERGENCIA | E79: - | F79: MATERIALES GRÁFICOS | G79: IMPRESION DE MATERIALES GRAFICOS | H79: 1 | I79: ACUMAR | J79: - | K79: ACUMAR | L79: PLAN SANITARIO DE EMERGENCIA | M79: - | N79: - | O79: - | P79: - | Q79: - | R79: - | S79: - | T79: - | U79: - | V79: - | W79: - | X79: - | Y79: 1 | Z79: - | AA79: ACUMAR | AB79: CUENCA MATANZA RIACHUELO | AC79: - | AD79: - | AE79: - | AF79: - | AG79: 0 | AH79: 0 | AI79: 0 | AJ79: 0 | AK79: 0 | AL79: 245251 | AM79: 0 | AN79: 0 | AO79: 0 | AP79: 1180815 | AQ79: 630703 | AR79: 0 | AS79: 0 | AT79: 0 | AU79: 30000 | AV79: 0 | AW79: 0 | AX79: - | AY79: - | AZ79: - | BA79: SON OBRAS QUE SE LLEVAN A CABO DE FORMA CONTINUA, MANTENIENDO LA APERTURA PROGRAMATICA PRESUPUESTARIA A TRAVES DE LOS PERIODOS. DIFIERE DE UNA AÑO A OTRO LA LOCALIZACION, LOS BENEFICIARIOS, LAS METAS FISICAS, EL CONTRATISTA, EL ESTADO DE LA OBRA, EL MONTO. SE RECTIFICO LA DENOMINACION. SE RECTIFICO EL MONTO ORIGINAL DE LA OBRA
B80: 3554 | C80: 4. ACUMAR | D80: 03. FORTALECIMIENTO INSTITUCIONAL | E80: INSTITUCIONAL ACUMAR | F80: INSTITUCIONAL ACUMAR | G80: CAJAS CHICAS | H80: 1 | I80: ACUMAR | J80: - | K80: ACUMAR | L80: FORTALECIMIENTO INSTITUCIONAL | M80: - | N80: - | O80: - | P80: - | Q80: - | R80: - | S80: - | T80: - | U80: - | V80: - | W80: - | X80: - | Y80: 1 | Z80: - | AA80: CAJA CHICA DIRECCION GRAL ADMINISTRATIVA | AB80: CUENCA MATANZA RIACHUELO | AC80: - | AD80: - | AE80: - | AF80: - | AG80: 0 | AH80: 0 | AI80: 0 | AJ80: 0 | AK80: 0 | AL80: 305024.78 | AM80: 0 | AN80: 0 | AO80: 382199.8 | AP80: 572552.87 | AQ80: 530843.85 | AR80: 565442.29 | AS80: 683956.68 | AT80: 673880.63 | AU80: 1123219.9 | AV80: 0 | AW80: 0 | AX80: - | AY80: - | AZ80: - | BA80: PROYECTO 129
B81: 3559 | C81: 4. ACUMAR | D81: 03. FORTALECIMIENTO INSTITUCIONAL | E81: INSTITUCIONAL ACUMAR | F81: INSTITUCIONAL ACUMAR | G81: CONVENIO ENTRE ACUMAR Y AGN | H81: 1 | I81: ACUMAR | J81: - | K81: ACUMAR | L81: FORTALECIMIENTO INSTITUCIONAL | M81: - | N81: - | O81: - | P81: - | Q81: - | R81: 3 | S81: 4 | T81: 4 | U81: - | V81: - | W81: - | X81: - | Y81: 1 | Z81: - | AA81: ACUMAR | AB81: CUENCA MATANZA RIACHUELO | AC81: - | AD81: - | AE81: 2018-05-16 | AF81: - | AG81: 0 | AH81: 0 | AI81: 0 | AJ81: 0 | AK81: 0 | AL81: 43200 | AM81: 129600 | AN81: 0 | AO81: 1200000 | AP81: 2600000 | AQ81: 2000000 | AR81: 0 | AS81: 4200000 | AT81: 800000 | AU81: 2000000 | AV81: 0 | AW81: 0 | AX81: - | AY81: - | AZ81: - | BA81: SON OBRAS QUE SE LLEVAN A CABO DE FORMA CONTINUA, MANTENIENDO LA APERTURA PROGRAMATICA PRESUPUESTARIA A TRAVES DE LOS PERIODOS. DIFIERE DE UNA AÑO A OTRO LA LOCALIZACION, LOS BENEFICIARIOS, LAS METAS FISICAS, EL CONTRATISTA, EL ESTADO DE LA OBRA, EL MONTO. SE RECTIFICO LA DENOMINACION. SE RECTIFICO LA DIRECCION. SE RECTIFICO EL MONTO ORIGINAL DE LA OBRA
B82: 3563 | C82: 4. ACUMAR | D82: 03. FORTALECIMIENTO INSTITUCIONAL | E82: - | F82: INSTITUCIONAL ACUMAR | G82: CONTRATACION DEL SERVICIO DE CATERING | H82: 1 | I82: ACUMAR | J82: - | K82: ACUMAR | L82: FORTALECIMIENTO INSTITUCIONAL | M82: - | N82: - | O82: - | P82: - | Q82: - | R82: - | S82: - | T82: - | U82: - | V82: - | W82: - | X82: - | Y82: 1 | Z82: - | AA82: ACUMAR | AB82: CUENCA MATANZA RIACHUELO | AC82: - | AD82: - | AE82: - | AF82: - | AG82: 0 | AH82: 0 | AI82: 0 | AJ82: 0 | AK82: 0 | AL82: 3500 | AM82: 0 | AN82: 0 | AO82: 42113 | AP82: 54682 | AQ82: 27734 | AR82: 0 | AS82: 0 | AT82: 0 | AU82: 0 | AV82: 0 | AW82: 0 | AX82: - | AY82: - | AZ82: - | BA82: SON OBRAS QUE SE LLEVAN A CABO DE FORMA CONTINUA, MANTENIENDO LA APERTURA PROGRAMATICA PRESUPUESTARIA A TRAVES DE LOS PERIODOS. DIFIERE DE UNA AÑO A OTRO LA LOCALIZACION, LOS BENEFICIARIOS, LAS METAS FISICAS, EL CONTRATISTA, EL ESTADO DE LA OBRA, EL MONTO. SE RECTIFICO LA DENOMINACION. SE RECTIFICO LA DIRECCION
B83: 3584 | C83: 1. ESTADO NACIONAL | D83: 06. PLAN SANITARIO DE EMERGENCIA | E83: MEJORA Y MANTENIMIENTO | F83: REGULARIZACIÓN CONEXIONES DE AGUA | G83: REGULARIZACIÓN CONEXIONES DE AGUA | H83: 2 | I83: 91. OBLIGACIONES DEL TESORO | J83: 356 | K83: AYSA | L83: 95. ASISTENCIA FINANCIERA A EMPRESAS PÚBLICAS Y ENTE BINACIONAL | M83: 5 | N83: 1011701 | O83: 5 | P83: - | Q83: 11 | R83: 5 | S83: 5 | T83: 7 | U83: 753 | V83: 3 | W83: 8 | X83: 96 | Y83: 2 | Z83: SIN P3 | AA83: - | AB83: LA MATANZA - MORÓN | AC83: LA MATANZA - MORÓN | AD83: LA MATANZA - MORÓN | AE83: 01/01/2010 - 01/08/2010 | AF83: 2010-12-31 | AG83: NOTA 6-NOTA 8-NOTA 9 | AH83: NOTA 6-NOTA 8-NOTA 9 | AI83: 0 | AJ83: NOTA 6-NOTA 8-NOTA 9 | AK83: - | AL83: 134239.094 | AM83: 5061.1517 | AN83: 5040.2429 | AO83: - | AP83: - | AQ83: 0 | AR83: -5040.2429 | AS83: 0 | AT83: 0 | AU83: -5040.2429 | AV83: 0 | AW83: 0 | AX83: FINALIZADO | AY83: 1 | AZ83: 1 | BA83: -
B84: 3702 | C84: 4. ACUMAR | D84: 06. PLAN SANITARIO DE EMERGENCIA | E84: EQUIPAMIENTO PARA EFECTOR DE SALUD | F84: FOTÓMETROS | G84: ADQUISICIÓN DE DOS FOTOMETROS PARA LA LECTURA DE HEMOGLOBINA, MICROCUBETAS Y LANCETAS PARA PUNCION DIGITAL | H84: 1 | I84: ACUMAR | J84: - | K84: ACUMAR | L84: PLAN SANITARIO DE EMERGENCIA | M84: - | N84: - | O84: - | P84: - | Q84: - | R84: - | S84: - | T84: - | U84: - | V84: - | W84: - | X84: - | Y84: 1 | Z84: - | AA84: ACUMAR | AB84: CUENCA MATANZA RIACHUELO | AC84: - | AD84: - | AE84: 2011-11-16 | AF84: - | AG84: 33560 | AH84: 0 | AI84: 0 | AJ84: 33560 | AK84: 0 | AL84: 0 | AM84: 33560 | AN84: 0 | AO84: 0 | AP84: - | AQ84: 0 | AR84: 0 | AS84: 0 | AT84: 0 | AU84: 94000 | AV84: 0 | AW84: 0 | AX84: - | AY84: - | AZ84: - | BA84: -
B85: 3703 | C85: 4. ACUMAR | D85: 06. PLAN SANITARIO DE EMERGENCIA | E85: EQUIPAMIENTO PARA EFECTOR DE SALUD | F85: ANALIZADORES DE PLOMO EN SANGRE | G85: ADQUISICIÓN DE DOS ANALIZADORES DE PLOMO EN SANGRE PORTABLES Y 85 KITS DE REACTIVOS | H85: 1 | I85: ACUMAR | J85: - | K85: ACUMAR | L85: PLAN SANITARIO DE EMERGENCIA | M85: - | N85: - | O85: - | P85: - | Q85: - | R85: - | S85: - | T85: - | U85: - | V85: - | W85: - | X85: - | Y85: 1 | Z85: - | AA85: ACUMAR | AB85: CUENCA MATANZA RIACHUELO | AC85: - | AD85: - | AE85: 2011-10-31 | AF85: - | AG85: 302033.9 | AH85: 0 | AI85: 0 | AJ85: 302033.9 | AK85: 0 | AL85: 0 | AM85: 302033.9 | AN85: 0 | AO85: 0 | AP85: 0 | AQ85: 0 | AR85: 0 | AS85: 0 | AT85: 1330243.72 | AU85: 0 | AV85: 0 | AW85: 0 | AX85: - | AY85: - | AZ85: - | BA85: -
B86: 3722 | C86: 4. ACUMAR | D86: 03. FORTALECIMIENTO INSTITUCIONAL | E86: INSTITUCIONAL ACUMAR | F86: INSTITUCIONAL ACUMAR | G86: CONTRATACIÓN SEGURO AUTOMOTOR | H86: 1 | I86: ACUMAR | J86: - | K86: ACUMAR | L86: FORTALECIMIENTO INSTITUCIONAL | M86: - | N86: - | O86: - | P86: - | Q86: - | R86: 3 | S86: 5 | T86: 4 | U86: - | V86: - | W86: - | X86: - | Y86: 1 | Z86: - | AA86: PROVINCIA SEGUROS | AB86: CUENCA MATANZA RIACHUELO | AC86: - | AD86: - | AE86: 2017-06-29 | AF86: - | AG86: 4471404.37 | AH86: 0 | AI86: 0 | AJ86: 4471404.37 | AK86: 0 | AL86: 0 | AM86: 122953.1 | AN86: 0 | AO86: 172678 | AP86: 3227989.64 | AQ86: 5518755.24 | AR86: 0 | AS86: 7488010.76 | AT86: 15821939.79 | AU86: 1424206.87 | AV86: 0 | AW86: 0 | AX86: - | AY86: - | AZ86: - | BA86: PROYECTO 94
B87: 3727 | C87: 4. ACUMAR | D87: 03. FORTALECIMIENTO INSTITUCIONAL | E87: INSTITUCIONAL ACUMAR | F87: INSTITUCIONAL ACUMAR | G87: SERVICIO DE ENLACE A INTERNET Y CUENTAS DE CORREO ELECTRÓNICO | H87: 1 | I87: ACUMAR | J87: - | K87: ACUMAR | L87: FORTALECIMIENTO INSTITUCIONAL | M87: - | N87: - | O87: - | P87: - | Q87: - | R87: - | S87: - | T87: - | U87: - | V87: - | W87: - | X87: - | Y87: 1 | Z87: - | AA87: ACUMAR | AB87: CUENCA MATANZA RIACHUELO | AC87: - | AD87: - | AE87: - | AF87: - | AG87: 0 | AH87: 0 | AI87: 0 | AJ87: 0 | AK87: 0 | AL87: 0 | AM87: 422911.62 | AN87: 0 | AO87: 860441.43 | AP87: 1642839.85 | AQ87: 2830510.26 | AR87: 947065 | AS87: 0 | AT87: 988178.45 | AU87: 720004.66 | AV87: 0 | AW87: 0 | AX87: - | AY87: - | AZ87: - | BA87: EL ID CABA 650.188, CONTINUA BAJO EL ID CABA 650.191. SE RECTIFICO ENTE EJECUTOR
B88: 3883 | C88: 1. ESTADO NACIONAL | D88: 09. EXPANSIÓN DE LA RED DE AGUA POTABLE Y SANEAMIENTO DE CLOACAS | E88: GRANDES OBRAS DE INFRAESTRUCTURA CLOACALES | F88: SISTEMA RIACHUELO | G88: COLECTOR MARGEN IZQUIERDO Y DESVIO BAJA COSTANERA | H88: 2 | I88: 91. OBLIGACIONES DEL TESORO | J88: 356 | K88: AYSA | L88: 95. ASISTENCIA FINANCIERA A EMPRESAS PÚBLICAS Y ENTE BINACIONAL | M88: 5 | N88: 1179L01 / 1479L99 / 1779L01 | O88: 77 | P88: - | Q88: 22 Y RECURSOS PROPIOS | R88: 5 | S88: 5 | T88: 7 | U88: 753 | V88: 3 | W88: 8 | X88: 2 | Y88: 2 | Z88: RC002 | AA88: - | AB88: CABA - AVELLANEDA | AC88: CABA - AVELLANEDA | AD88: MARGEN IZQUIERDA DEL RÍO MATANZA - RIACHUELO DESDE LA AVENIDA.GENERAL PAZ HASTA LA PLANTA DOCK SUD | AE88: 2015-01-15 | AF88: 2020-12-25 | AG88: 855087850.9 | AH88: 3828330509 | AI88: 70453805.82 | AJ88: 4753872166 | AK88: 0 | AL88: 0 | AM88: 0 | AN88: 0 | AO88: 0 | AP88: 85408980.67 | AQ88: 23328894.49 | AR88: 74607561.3 | AS88: 423621301.2 | AT88: 769368554.3 | AU88: 159702003.2 | AV88: 165559950.7 | AW88: 0 | AX88: EN EJECUCIÓN | AY88: 0.6273 | AZ88: 0.5297 | BA88: EL MONTO VIGENTE CORRESPONDE AL VALOR DE LA ADDENDA N° 3 -EN 2018 SE MODIFICA EL CÓDIGO DE ACTIVIDAD DE LA APERTURA PROGRAMÁTICA DE 5 A 77, UG DE 96 A 2 Y FF DE 11 A 22. EL PROYECTO TAMBIÉN SERÁ FINANCIADO CON RECURSOS PROPIOS DE AYSA
B89: 3884 | C89: 1. ESTADO NACIONAL | D89: 09. EXPANSIÓN DE LA RED DE AGUA POTABLE Y SANEAMIENTO DE CLOACAS | E89: GRANDES OBRAS DE INFRAESTRUCTURA CLOACALES | F89: SISTEMA RIACHUELO | G89: COLECTOR MARGEN IZQUIERDO Y DESVIO BAJA COSTANERA | H89: 2 | I89: 25. JEFATURA DE GABINETE DE MINISTROS | J89: 342 | K89: AYSA | L89: 44. UNIDAD DE COORDINACIÓN GENERAL DEL PROYECTO BIRF 7706-AR | M89: - | N89: 1179I01 / 1779I01 | O89: 2 | P89: - | Q89: 22 | R89: 5 | S89: 1 | T89: 9 | U89: 2117 | V89: 3 | W89: 8 | X89: 96 | Y89: 2 | Z89: RC002 | AA89: - | AB89: CABA - AVELLANEDA | AC89: CABA - AVELLANEDA | AD89: MARGEN IZQUIERDA DEL RÍO MATANZA - RIACHUELO DESDE LA AVENIDA.GENERAL PAZ HASTA LA PLANTA DOCK SUD | AE89: 2015-01-15 | AF89: 2020-12-25 | AG89: 1182750149 | AH89: 1.124412159e+10 | AI89: 67156817.66 | AJ89: 1.249402855e+10 | AK89: 0 | AL89: 0 | AM89: 0 | AN89: 0 | AO89: 0 | AP89: 0 | AQ89: 0 | AR89: 0 | AS89: 0 | AT89: 1278504217 | AU89: 3468852810 | AV89: 3694592976 | AW89: 7477093727 | AX89: EN EJECUCIÓN | AY89: 0.6273 | AZ89: 0.5297 | BA89: EL MONTO VIGENTE CORRESPONDE AL VALOR DE LA ADDENDA N° 3
B90: 3885 | C90: 1. ESTADO NACIONAL | D90: 09. EXPANSIÓN DE LA RED DE AGUA POTABLE Y SANEAMIENTO DE CLOACAS | E90: GRANDES OBRAS DE INFRAESTRUCTURA CLOACALES | F90: SISTEMA RIACHUELO | G90: EMISARIO PLANTA RIACHUELO + INSPECCIÓN | H90: 2 | I90: 25. JEFATURA DE GABINETE DE MINISTROS | J90: 342 | K90: AYSA | L90: 44. UNIDAD DE COORDINACIÓN GENERAL DEL PROYECTO BIRF 7706-AR | M90: - | N90: 1179I02 / 1779I02 | O90: 2 | P90: - | Q90: 22 | R90: 5 | S90: 1 | T90: 9 | U90: 2117 | V90: 3 | W90: 8 | X90: 96 | Y90: 2 | Z90: RC005 | AA90: - | AB90: AVELLANEDA | AC90: CABA - AVELLANEDA | AD90: RÍO DE LA PLATA | AE90: 2015-01-15 | AF90: 2021-03-31 | AG90: 1242214947 | AH90: 1.527325413e+10 | AI90: 124236586.7 | AJ90: 1.663970566e+10 | AK90: 0 | AL90: 0 | AM90: 0 | AN90: 0 | AO90: 0 | AP90: 0 | AQ90: 0 | AR90: 0 | AS90: 0 | AT90: 1346273693 | AU90: 4795949099 | AV90: 4753567802 | AW90: 7977337068 | AX90: EN EJECUCIÓN | AY90: 0.5845 | AZ90: 0.5951 | BA90: EL MONTO VIGENTE CORRESPONDE AL VALOR DE LA ADDENDA N° 3
B91: 3886 | C91: 1. ESTADO NACIONAL | D91: 09. EXPANSIÓN DE LA RED DE AGUA POTABLE Y SANEAMIENTO DE CLOACAS | E91: GRANDES OBRAS DE INFRAESTRUCTURA CLOACALES | F91: SISTEMA RIACHUELO | G91: EMISARIO PLANTA RIACHUELO + INSPECCIÓN | H91: 2 | I91: 91. OBLIGACIONES DEL TESORO | J91: 356 | K91: AYSA | L91: 95. ASISTENCIA FINANCIERA A EMPRESAS PÚBLICAS Y ENTE BINACIONAL | M91: 5 | N91: 1179L02 / 1479L98 / 1779L02 | O91: 77 | P91: - | Q91: 22 Y RECURSOS PROPIOS | R91: 5 | S91: 5 | T91: 7 | U91: 753 | V91: 3 | W91: 8 | X91: 2 | Y91: 2 | Z91: RC005 | AA91: - | AB91: AVELLANEDA | AC91: DOCK SUD | AD91: RÍO DE LA PLATA | AE91: 2015-01-15 | AF91: 2021-03-31 | AG91: 1183986122 | AH91: 2958452576 | AI91: 28885621.48 | AJ91: 4171324319 | AK91: 0 | AL91: 0 | AM91: 0 | AN91: 0 | AO91: 0 | AP91: 106057999.6 | AQ91: 40922811.04 | AR91: 211185444.5 | AS91: 293078181.2 | AT91: 686810875.8 | AU91: 169326757 | AV91: 188824668.4 | AW91: 0 | AX91: EN EJECUCIÓN | AY91: 0.5845 | AZ91: 0.5951 | BA91: EL MONTO VIGENTE CORRESPONDE AL VALOR DE LA ADDENDA N° 3-EN 2018 SE MODIFICA EL CÓDIGO DE ACTIVIDAD DE LA APERTURA PROGRAMÁTICA DE 5 A 77, UG DE 96 A 2 Y FF DE 11 A 22. EL PROYECTO TAMBIÉN SERÁ FINANCIADO CON RECURSOS PROPIOS DE AYSA
B92: 3912 | C92: 1. ESTADO NACIONAL | D92: 09. EXPANSIÓN DE LA RED DE AGUA POTABLE Y SANEAMIENTO DE CLOACAS | E92: GRANDES OBRAS DE INFRAESTRUCTURA CLOACALES | F92: SISTEMA RIACHUELO | G92: PLANTA DE TRATAMIENTO RIACHUELO - OBRA CIVIL | H92: 2 | I92: 91. OBLIGACIONES DEL TESORO | J92: 356 | K92: AYSA | L92: 95. ASISTENCIA FINANCIERA A EMPRESAS PÚBLICAS Y ENTE BINACIONAL | M92: 5 | N92: 1161607 | O92: 77 | P92: - | Q92: 22 Y RECURSOS PROPIOS | R92: 5 | S92: 5 | T92: 7 | U92: 753 | V92: 3 | W92: 8 | X92: 2 | Y92: 2 | Z92: RC004 | AA92: - | AB92: AVELLANEDA | AC92: DOCK SUD | AD92: LAS ESTACIONES DE BOMBEO Y LA PLANTA DE PRETRATAMIENTO SE UBICARÁN EN EL PREDIO DE 450M X 350M DE RELLENO SOBRE LA COSTA DEL RÍO DE LA PLATA EN LA ZONA POR EN LA PORTUARIA EN LAS PROXIMIDADES DE LA ESCOLLERA DE PROPANEROS PARTIDO DE AVELLANEDA. | AE92: 2015-06-15 | AF92: 2021-12-31 | AG92: 290774929.8 | AH92: 909575636.5 | AI92: 752829676.8 | AJ92: 1953180243 | AK92: 0 | AL92: 0 | AM92: 0 | AN92: 0 | AO92: 30715.0272 | AP92: 69012154.16 | AQ92: 7504717.103 | AR92: 6828348.799 | AS92: 287124286.8 | AT92: 235294658.2 | AU92: -6736447.629 | AV92: 218998169.3 | AW92: 850000000 | AX92: EN EJECUCIÓN | AY92: 0.3069739997 | AZ92: 0.4557 | BA92: EN 2018 SE MODIFICA EL CÓDIGO DE ACTIVIDAD DE LA APERTURA PROGRAMÁTICA DE 5 A 77, UG DE 96 A 2 Y FF DE 11 A 22. EL PROYECTO TAMBIÉN SERÁ FINANCIADO CON RECURSOS PROPIOS DE AYSA
B93: 3913 | C93: 1. ESTADO NACIONAL | D93: 09. EXPANSIÓN DE LA RED DE AGUA POTABLE Y SANEAMIENTO DE CLOACAS | E93: GRANDES OBRAS DE INFRAESTRUCTURA CLOACALES | F93: SISTEMA RIACHUELO | G93: PLANTA DE TRATAMIENTO RIACHUELO - OBRA ELECTROMECÁNICA | H93: 2 | I93: 91. OBLIGACIONES DEL TESORO | J93: 356 | K93: AYSA | L93: 95. ASISTENCIA FINANCIERA A EMPRESAS PÚBLICAS Y ENTE BINACIONAL | M93: 5 | N93: 1161609 | O93: 77 | P93: - | Q93: 22 Y RECURSOS PROPIOS | R93: 5 | S93: 5 | T93: 7 | U93: 753 | V93: 3 | W93: 8 | X93: 2 | Y93: 2 | Z93: RC004 | AA93: - | AB93: AVELLANEDA | AC93: DOCK SUD | AD93: LAS ESTACIONES DE BOMBEO Y LA PLANTA DE PRETRATAMIENTO SE UBICARÁN EN EL PREDIO DE 450M X 350M DE RELLENO SOBRE LA COSTA DEL RÍO DE LA PLATA EN LA ZONA POR EN LA PORTUARIA EN LAS PROXIMIDADES DE LA ESCOLLERA DE PROPANEROS PARTIDO DE AVELLANEDA. | AE93: 2015-06-15 | AF93: 2021-12-31 | AG93: 276446915.2 | AH93: 864756046.6 | AI93: 752686396.6 | AJ93: 1893889358 | AK93: 0 | AL93: 0 | AM93: 0 | AN93: 0 | AO93: 0 | AP93: 51341721.08 | AQ93: 0 | AR93: 0 | AS93: 1868649.924 | AT93: 0 | AU93: -466268.7447 | AV93: 278340000 | AW93: 820000000 | AX93: EN EJECUCIÓN | AY93: 0.02813557102 | AZ93: 0.0529 | BA93: EN 2018 SE MODIFICA EL CÓDIGO DE ACTIVIDAD DE LA APERTURA PROGRAMÁTICA DE 5 A 77, UG DE 96 A 2 Y FF DE 11 A 22. EL PROYECTO TAMBIÉN SERÁ FINANCIADO CON RECURSOS PROPIOS DE AYSA
B94: 3914 | C94: 1. ESTADO NACIONAL | D94: 09. EXPANSIÓN DE LA RED DE AGUA POTABLE Y SANEAMIENTO DE CLOACAS | E94: GRANDES OBRAS DE INFRAESTRUCTURA CLOACALES | F94: PLANTA DE TRATAMIENTO DE BARROS SUDOESTE | G94: PLANTA DE TRATAMIENTO DE BARROS SUDOESTE OBRA CIVIL | H94: 2 | I94: 91. OBLIGACIONES DEL TESORO | J94: 356 | K94: AYSA | L94: 95. ASISTENCIA FINANCIERA A EMPRESAS PÚBLICAS Y ENTE BINACIONAL | M94: 5 | N94: 1379L05/1479L95 | O94: 77 | P94: - | Q94: 22 Y RECURSOS PROPIOS | R94: 5 | S94: 5 | T94: 7 | U94: 753 | V94: 3 | W94: 8 | X94: 2 | Y94: 2 | Z94: OC4021 | AA94: - | AB94: LA MATANZA | AC94: LA MATANZA | AD94: ALDO BONZI EN A:M: JANER Y PALPA, | AE94: 2015-05-19 | AF94: 2019-01-19 | AG94: 64431627.28 | AH94: 782906127.6 | AI94: 6132126.874 | AJ94: 853469881.8 | AK94: 0 | AL94: 0 | AM94: 0 | AN94: 0 | AO94: 0 | AP94: 8029663.939 | AQ94: 4796060.992 | AR94: 31766327.61 | AS94: 75594901.12 | AT94: 116453012.1 | AU94: 11148382.69 | AV94: 12968888.86 | AW94: 0 | AX94: EN EJECUCIÓN | AY94: 0.5739220236 | AZ94: 0.8964 | BA94: EL MONTO VIGENTE CORRESPONDE AL VALOR DE LA ADDENDA N° 4-EN 2018 SE MODIFICA EL CÓDIGO DE ACTIVIDAD DE LA APERTURA PROGRAMÁTICA DE 5 A 77, UG DE 96 A 2 Y FF DE 11 A 22. EL PROYECTO TAMBIÉN SERÁ FINANCIADO CON RECURSOS PROPIOS DE AYSA
B95: 3917 | C95: 1. ESTADO NACIONAL | D95: 09. EXPANSIÓN DE LA RED DE AGUA POTABLE Y SANEAMIENTO DE CLOACAS | E95: GRANDES OBRAS DE INFRAESTRUCTURA CLOACALES | F95: PLANTA DE TRATAMIENTO DE BARROS SUDOESTE | G95: PLANTA DE TRATAMIENTO DE BARROS SUDOESTE OBRA ELECTROMECÁNICA | H95: 2 | I95: 91. OBLIGACIONES DEL TESORO | J95: 356 | K95: AYSA | L95: 95. ASISTENCIA FINANCIERA A EMPRESAS PÚBLICAS Y ENTE BINACIONAL | M95: 5 | N95: 1379L06 | O95: 77 | P95: - | Q95: 22 Y RECURSOS PROPIOS | R95: 5 | S95: 5 | T95: 7 | U95: 753 | V95: 3 | W95: 8 | X95: 2 | Y95: 2 | Z95: OC4022 | AA95: - | AB95: LA MATANZA | AC95: PARTIDO DE LA MATANZA | AD95: ALDO BONZI EN A:M: JANER Y PALPA, | AE95: 2015-05-19 | AF95: 2019-01-19 | AG95: 46354055 | AH95: 879158820 | AI95: 0 | AJ95: 925512875 | AK95: 0 | AL95: 0 | AM95: 0 | AN95: 0 | AO95: 0 | AP95: 6582275.757 | AQ95: 0 | AR95: 186963.4888 | AS95: 19605105.38 | AT95: 110292533.2 | AU95: 7066163.566 | AV95: 17206240.99 | AW95: 0 | AX95: EN EJECUCIÓN | AY95: 0.3227449465 | AZ95: 0.3933 | BA95: EL MONTO VIGENTE CORRESPONDE AL VALOR DE LA ADDENDA N° 4-EN 2018 SE MODIFICA EL CÓDIGO DE ACTIVIDAD DE LA APERTURA PROGRAMÁTICA DE 5 A 77, UG DE 96 A 2 Y FF DE 11 A 22. EL PROYECTO TAMBIÉN SERÁ FINANCIADO CON RECURSOS PROPIOS DE AYSA
B96: 3919 | C96: 1. ESTADO NACIONAL | D96: 09. EXPANSIÓN DE LA RED DE AGUA POTABLE Y SANEAMIENTO DE CLOACAS | E96: GRANDES OBRAS DE INFRAESTRUCTURA CLOACALES | F96: PLANTA DE TRATAMIENTO DE BARROS SUDOESTE | G96: PLANTA DE TRATAMIENTO DE BARROS SUDOESTE OBRA CIVIL | H96: 2 | I96: 25. JEFATURA DE GABINETE DE MINISTROS | J96: 342 | K96: AYSA | L96: 44. UNIDAD DE COORDINACIÓN GENERAL DEL PROYECTO BIRF 7706-AR | M96: - | N96: 1379I05 | O96: 2 | P96: - | Q96: 22 | R96: 5 | S96: 1 | T96: 9 | U96: 2117 | V96: 3 | W96: 8 | X96: 96 | Y96: 2 | Z96: OC4021 | AA96: - | AB96: LA MATANZA | AC96: PARTIDO DE LA MATANZA | AD96: ALDO BONZI EN A:M: JANER Y PALPA, | AE96: 2015-05-19 | AF96: 2019-01-19 | AG96: 310550260 | AH96: 253505366.6 | AI96: 0 | AJ96: 564055626.6 | AK96: 0 | AL96: 0 | AM96: 0 | AN96: 0 | AO96: 0 | AP96: 0 | AQ96: 0 | AR96: 0 | AS96: 0 | AT96: 80439324.59 | AU96: 148597472.2 | AV96: 240179500 | AW96: 464474666.4 | AX96: EN EJECUCIÓN | AY96: 0.5739220236 | AZ96: 0.8964 | BA96: EL MONTO VIGENTE CORRESPONDE AL VALOR DE LA ADDENDA N°4
B97: 3920 | C97: 1. ESTADO NACIONAL | D97: 09. EXPANSIÓN DE LA RED DE AGUA POTABLE Y SANEAMIENTO DE CLOACAS | E97: GRANDES OBRAS DE INFRAESTRUCTURA CLOACALES | F97: PLANTA DE TRATAMIENTO DE BARROS SUDOESTE | G97: PLANTA DE TRATAMIENTO DE BARROS SUDOESTE OBRA ELECTROMECÁNICA | H97: 2 | I97: 25. JEFATURA DE GABINETE DE MINISTROS | J97: 342 | K97: AYSA | L97: 44. UNIDAD DE COORDINACIÓN GENERAL DEL PROYECTO BIRF 7706-AR | M97: - | N97: 1379I06 | O97: 2 | P97: - | Q97: 22 | R97: 5 | S97: 1 | T97: 9 | U97: 2117 | V97: 3 | W97: 8 | X97: 96 | Y97: 2 | Z97: OC4022 | AA97: - | AB97: LA MATANZA | AC97: PARTIDO DE LA MATANZA | AD97: ALDO BONZI EN A:M: JANER Y PALPA, | AE97: 2015-05-19 | AF97: 2019-01-19 | AG97: 185416218 | AH97: -38435331.51 | AI97: 0 | AJ97: 146980886.5 | AK97: 0 | AL97: 0 | AM97: 0 | AN97: 0 | AO97: 0 | AP97: 0 | AQ97: 0 | AR97: 0 | AS97: 0 | AT97: 40147906.21 | AU97: 162011589.6 | AV97: 240179500 | AW97: 790862269.8 | AX97: EN EJECUCIÓN | AY97: 0.3227449465 | AZ97: 0.3933 | BA97: EL MONTO VIGENTE CORRESPONDE AL VALOR DE LA ADDENDA N° 4
B98: 3994 | C98: 3. CABA | D98: 06. PLAN SANITARIO DE EMERGENCIA | E98: CAMPAÑA DE PREVENCIÓN | F98: CAMPAÑA DE PREVENCIÓN | G98: CAMPAÑAS DE PREVENCIÓN Y MITIGACIÓN DE RIESGO. CAPACITACIONES Y DISTRIBUCIÓN DE FOLLETERÍA CON PERSONAL PROPIO | H98: 2 | I98: 26. MINISTERIO DE JUSTICIA Y SEGURIDAD | J98: - | K98: 0. MINISTERIO DE JUSTICIA Y SEGURIDAD | L98: 53. PLANIFICACIÓN Y CONTROL DEFENSA CIVIL | M98: 0. PLANIFICACIÓN Y CONTROL DEFENSA CIVIL | N98: 0. PLANIFICACIÓN Y CONTROL DEFENSA CIVIL | O98: 60. ACUMAR | P98: 0. ACUMAR | Q98: 11 | R98: 3 | S98: 5 | T98: 3 | U98: 0 | V98: 2 | W98: 2 | X98: 4 | Y98: 1 | Z98: PLANIFICACIÓN Y CONTROL DEFENSA CIVIL | AA98: 153. DIRECCIÓN GENERAL DE DEFENSA CIVIL | AB98: CABA | AC98: 4 | AD98: COMUNA 4 | AE98: - | AF98: - | AG98: 0 | AH98: 0 | AI98: 0 | AJ98: 0 | AK98: 0 | AL98: 0 | AM98: 0 | AN98: 0 | AO98: 0 | AP98: 0 | AQ98: 0 | AR98: 0 | AS98: 0 | AT98: 0 | AU98: 0 | AV98: 10000 | AW98: =VLOOKUP(B98,[11]Hoja1!$A:$AX,50,0) -> 240000 | AX98: EN EJECUCIÓN | AY98: - | AZ98: - | BA98: -
B99: 4004 | C99: 3. CABA | D99: 06. PLAN SANITARIO DE EMERGENCIA | E99: CAMPAÑA DE PREVENCIÓN | F99: CAMPAÑA DE PREVENCIÓN | G99: CAMPAÑAS DE PREVENCIÓN Y MITIGACIÓN DE RIESGO. CAPACITACIONES Y DISTRIBUCIÓN DE FOLLETERÍA CON PERSONAL PROPIO | H99: 2 | I99: 26. MINISTERIO DE JUSTICIA Y SEGURIDAD | J99: - | K99: 0. MINISTERIO DE JUSTICIA Y SEGURIDAD | L99: 53. PLANIFICACIÓN Y CONTROL DEFENSA CIVIL | M99: 0. PLANIFICACIÓN Y CONTROL DEFENSA CIVIL | N99: 0. PLANIFICACIÓN Y CONTROL DEFENSA CIVIL | O99: 60. ACUMAR | P99: 0. ACUMAR | Q99: 11 | R99: 3 | S99: 5 | T99: 3 | U99: 0 | V99: 2 | W99: 2 | X99: 8 | Y99: 1 | Z99: PLANIFICACIÓN Y CONTROL DEFENSA CIVIL | AA99: 153. DIRECCIÓN GENERAL DE DEFENSA CIVIL | AB99: CABA | AC99: 8 | AD99: COMUNA 8 | AE99: - | AF99: - | AG99: 0 | AH99: 0 | AI99: 0 | AJ99: 0 | AK99: 0 | AL99: 0 | AM99: 0 | AN99: 0 | AO99: 4000 | AP99: 0 | AQ99: 0 | AR99: 0 | AS99: 0 | AT99: 0 | AU99: 0 | AV99: 10000 | AW99: 0 | AX99: EN EJECUCIÓN | AY99: - | AZ99: - | BA99: -
B100: 4014 | C100: 3. CABA | D100: 06. PLAN SANITARIO DE EMERGENCIA | E100: CAMPAÑA DE PREVENCIÓN | F100: CAMPAÑA DE PREVENCIÓN | G100: CAMPAÑAS DE PREVENCIÓN Y MITIGACIÓN DE RIESGO. CAPACITACIONES Y DISTRIBUCIÓN DE FOLLETERÍA CON PERSONAL PROPIO | H100: 2 | I100: 26. MINISTERIO DE JUSTICIA Y SEGURIDAD | J100: - | K100: 0. MINISTERIO DE JUSTICIA Y SEGURIDAD | L100: 53. PLANIFICACIÓN Y CONTROL DEFENSA CIVIL | M100: 0. PLANIFICACIÓN Y CONTROL DEFENSA CIVIL | N100: 0. PLANIFICACIÓN Y CONTROL DEFENSA CIVIL | O100: 60. ACUMAR | P100: 0. ACUMAR | Q100: 11 | R100: 3 | S100: 5 | T100: 3 | U100: 0 | V100: 2 | W100: 2 | X100: 9 | Y100: 1 | Z100: PLANIFICACIÓN Y CONTROL DEFENSA CIVIL | AA100: 153. DIRECCIÓN GENERAL DE DEFENSA CIVIL | AB100: CABA | AC100: 9 | AD100: COMUNA 9 | AE100: - | AF100: - | AG100: 0 | AH100: 0 | AI100: 0 | AJ100: 0 | AK100: 0 | AL100: 0 | AM100: 0 | AN100: 0 | AO100: 9996 | AP100: 0 | AQ100: 0 | AR100: 0 | AS100: 0 | AT100: 0 | AU100: 0 | AV100: 10000 | AW100: 0 | AX100: - | AY100: - | AZ100: - | BA100: -
B101: 4273 | C101: 3. CABA | D101: 07. MONITOREO DE LA CALIDAD DE AGUA, SEDIMENTOS Y AIRE | E101: ESTUDIOS Y EVALUACIONES AMBIENTALES | F101: ANÁLISIS AMBIENTALES | G101: GESTIÓN AMBIENTAL BORDE COSTERO | H101: 2 | I101: 35. MINISTERIO DE AMBIENTE Y ESPACIO PÚBLICO | J101: - | K101: 933. AGENCIA DE PROTECCIÓN AMBIENTAL | L101: 93. ESTRATEGIAS AMBIENTALES | M101: 0. ESTRATEGIAS AMBIENTALES | N101: 0. ESTRATEGIAS AMBIENTALES | O101: 11. GESTIÓN AMBIENTAL BORDE COSTERO | P101: 0. GESTIÓN AMBIENTAL BORDE COSTERO | Q101: 11 | R101: 3 | S101: 5 | T101: 2 | U101: 0 | V101: 4 | W101: 4 | X101: 8 | Y101: 1 | Z101: ESTRATEGIAS AMBIENTALES | AA101: 8939. DIRECCIÓN GENERAL ESTRATEGIAS AMBIENTALES | AB101: CABA | AC101: 8 | AD101: COMUNA 8 | AE101: - | AF101: - | AG101: 0 | AH101: 0 | AI101: 0 | AJ101: 0 | AK101: 0 | AL101: 0 | AM101: 0 | AN101: 0 | AO101: 49241.2 | AP101: 0 | AQ101: 0 | AR101: 0 | AS101: 0 | AT101: 0 | AU101: 542664 | AV101: 615600 | AW101: 0 | AX101: - | AY101: - | AZ101: - | BA101: -
B102: 4376 | C102: 3. CABA | D102: 11. CONTAMINACIÓN DE ORIGEN INDUSTRIAL | E102: ESTUDIOS Y EVALUACIONES AMBIENTALES | F102: EVALUACIONES AMBIENTALES | G102: EL PROGRAMA BUENOS AIRES PRODUCE MÁS LIMPIO PROPONE, DESDE UN PUNTO DE VISTA AMBIENTAL, UNA GESTIÓN INSTITUCIONAL DE CARÁCTER INTEGRAL, ENTENDIENDO ESTE CONCEPTO COMO EL COMPROMISO Y LA PARTICIPACIÓN CONJUNTA DE ACTORES PÚBLICOS Y PRIVADOS. PARA ELLO, INVOLUCRA EN LA TOMA DE DECISIONES TANTO A LAS AUTORIDADES DEL GOBIERNO DE LA CIUDAD AUTÓNOMA DE BUENOS AIRES, COMO A LAS EMPRESAS Y SUS ENTIDADES REPRESENTATIVAS Y LAS ORGANIZACIONES CIVILES QUE SE ADHIERAN. | H102: 2 | I102: 35. MINISTERIO DE AMBIENTE Y ESPACIO PÚBLICO | J102: - | K102: 933. AGENCIA DE PROTECCIÓN AMBIENTAL | L102: 96. BUENOS AIRES PRODUCE MAS LIMPIO (P+L) | M102: 96. BUENOS AIRES PRODUCE MAS LIMPIO (P+L) | N102: 0. PROGRAMA BUENOS AIRES PRODUCE MÁS LIMPIO (P+L) | O102: 60. AUTORIDAD CUENCA MATANZA RIACHUELO | P102: 0. BUENOS AIRES PRODUCE MAS LIMPIO (P+L) | Q102: 12 | R102: 3 | S102: 5 | T102: 2 | U102: 0 | V102: 4 | W102: 4 | X102: 8 | Y102: 1 | Z102: ACTIVIDAD QUE TIENE COMO OBJETIVO ESTRATÉGICO SE PLANTEA PROMOVER LA ADOPCIÓN DE TECNOLOGÍAS, PROCESOS, PRODUCTOS Y SERVICIOS QUE PERMITAN ARMONIZAR DE MANERA EFICIENTE EL CRECIMIENTO ECONÓMICO, SOCIAL Y LA PROTECCIÓN AMBIENTAL DE LA CIUDAD DE BUENOS AIRES. | AA102: 8939. DIRECCIÓN GENERAL ESTRATEGIAS AMBIENTALES | AB102: CABA | AC102: 8 | AD102: COMUNA 8 | AE102: - | AF102: - | AG102: 0 | AH102: 0 | AI102: 0 | AJ102: 0 | AK102: 0 | AL102: 0 | AM102: 0 | AN102: 0 | AO102: 0 | AP102: 0 | AQ102: 0 | AR102: 0 | AS102: 64200 | AT102: 0 | AU102: 0 | AV102: 22000 | AW102: 0 | AX102: - | AY102: - | AZ102: - | BA102: -
B103: 4377 | C103: 3. CABA | D103: 11. CONTAMINACIÓN DE ORIGEN INDUSTRIAL | E103: ESTUDIOS Y EVALUACIONES AMBIENTALES | F103: EVALUACIONES AMBIENTALES | G103: EL PROGRAMA BUENOS AIRES PRODUCE MÁS LIMPIO PROPONE, DESDE UN PUNTO DE VISTA AMBIENTAL, UNA GESTIÓN INSTITUCIONAL DE CARÁCTER INTEGRAL, ENTENDIENDO ESTE CONCEPTO COMO EL COMPROMISO Y LA PARTICIPACIÓN CONJUNTA DE ACTORES PÚBLICOS Y PRIVADOS. PARA ELLO, INVOLUCRA EN LA TOMA DE DECISIONES TANTO A LAS AUTORIDADES DEL GOBIERNO DE LA CIUDAD AUTÓNOMA DE BUENOS AIRES, COMO A LAS EMPRESAS Y SUS ENTIDADES REPRESENTATIVAS Y LAS ORGANIZACIONES CIVILES QUE SE ADHIERAN. | H103: 2 | I103: 35. MINISTERIO DE AMBIENTE Y ESPACIO PÚBLICO | J103: - | K103: 933. AGENCIA DE PROTECCIÓN AMBIENTAL | L103: 96. BUENOS AIRES PRODUCE MAS LIMPIO (P+L) | M103: 96. BUENOS AIRES PRODUCE MAS LIMPIO (P+L) | N103: 0. PROGRAMA BUENOS AIRES PRODUCE MÁS LIMPIO (P+L) | O103: 60. AUTORIDAD CUENCA MATANZA RIACHUELO | P103: 0. BUENOS AIRES PRODUCE MAS LIMPIO (P+L) | Q103: 11 | R103: 3 | S103: 5 | T103: 3 | U103: 0 | V103: 4 | W103: 4 | X103: 8 | Y103: 1 | Z103: ACTIVIDAD QUE TIENE COMO OBJETIVO ESTRATÉGICO SE PLANTEA PROMOVER LA ADOPCIÓN DE TECNOLOGÍAS, PROCESOS, PRODUCTOS Y SERVICIOS QUE PERMITAN ARMONIZAR DE MANERA EFICIENTE EL CRECIMIENTO ECONÓMICO, SOCIAL Y LA PROTECCIÓN AMBIENTAL DE LA CIUDAD DE BUENOS AIRES. | AA103: 8939. DIRECCIÓN GENERAL ESTRATEGIAS AMBIENTALES | AB103: CABA | AC103: 8 | AD103: COMUNA 8 | AE103: - | AF103: - | AG103: 0 | AH103: 0 | AI103: 0 | AJ103: 0 | AK103: 0 | AL103: 0 | AM103: 0 | AN103: 0 | AO103: 0 | AP103: 0 | AQ103: 57326 | AR103: 0 | AS103: 0 | AT103: 0 | AU103: 558794.7 | AV103: 8000 | AW103: 0 | AX103: FINALIZADA | AY103: - | AZ103: - | BA103: -
B104: 4378 | C104: 3. CABA | D104: 11. CONTAMINACIÓN DE ORIGEN INDUSTRIAL | E104: ESTUDIOS Y EVALUACIONES AMBIENTALES | F104: EVALUACIONES AMBIENTALES | G104: EL PROGRAMA BUENOS AIRES PRODUCE MÁS LIMPIO PROPONE, DESDE UN PUNTO DE VISTA AMBIENTAL, UNA GESTIÓN INSTITUCIONAL DE CARÁCTER INTEGRAL, ENTENDIENDO ESTE CONCEPTO COMO EL COMPROMISO Y LA PARTICIPACIÓN CONJUNTA DE ACTORES PÚBLICOS Y PRIVADOS. PARA ELLO, INVOLUCRA EN LA TOMA DE DECISIONES TANTO A LAS AUTORIDADES DEL GOBIERNO DE LA CIUDAD AUTÓNOMA DE BUENOS AIRES, COMO A LAS EMPRESAS Y SUS ENTIDADES REPRESENTATIVAS Y LAS ORGANIZACIONES CIVILES QUE SE ADHIERAN. | H104: 2 | I104: 35. MINISTERIO DE AMBIENTE Y ESPACIO PÚBLICO | J104: - | K104: 933. AGENCIA DE PROTECCIÓN AMBIENTAL | L104: 96. BUENOS AIRES PRODUCE MAS LIMPIO (P+L) | M104: 96. BUENOS AIRES PRODUCE MAS LIMPIO (P+L) | N104: 0. PROGRAMA BUENOS AIRES PRODUCE MÁS LIMPIO (P+L) | O104: 60. AUTORIDAD CUENCA MATANZA RIACHUELO | P104: 0. BUENOS AIRES PRODUCE MAS LIMPIO (P+L) | Q104: 11 | R104: 2 | S104: 2 | T104: 2 | U104: 0 | V104: 4 | W104: 4 | X104: 8 | Y104: 1 | Z104: ACTIVIDAD QUE TIENE COMO OBJETIVO ESTRATÉGICO SE PLANTEA PROMOVER LA ADOPCIÓN DE TECNOLOGÍAS, PROCESOS, PRODUCTOS Y SERVICIOS QUE PERMITAN ARMONIZAR DE MANERA EFICIENTE EL CRECIMIENTO ECONÓMICO, SOCIAL Y LA PROTECCIÓN AMBIENTAL DE LA CIUDAD DE BUENOS AIRES. | AA104: 8939. DIRECCIÓN GENERAL ESTRATEGIAS AMBIENTALES | AB104: CABA | AC104: 8 | AD104: COMUNA 8 | AE104: - | AF104: - | AG104: 0 | AH104: 0 | AI104: 0 | AJ104: 0 | AK104: 0 | AL104: 0 | AM104: 0 | AN104: 0 | AO104: 0 | AP104: 0 | AQ104: 852 | AR104: 1315.82 | AS104: 0 | AT104: 0 | AU104: 20000 | AV104: 45000 | AW104: 0 | AX104: FINALIZADA | AY104: - | AZ104: - | BA104: -
B105: 4381 | C105: 3. CABA | D105: 11. CONTAMINACIÓN DE ORIGEN INDUSTRIAL | E105: ESTUDIOS Y EVALUACIONES AMBIENTALES | F105: EVALUACIONES AMBIENTALES | G105: EL PROGRAMA BUENOS AIRES PRODUCE MÁS LIMPIO PROPONE, DESDE UN PUNTO DE VISTA AMBIENTAL, UNA GESTIÓN INSTITUCIONAL DE CARÁCTER INTEGRAL, ENTENDIENDO ESTE CONCEPTO COMO EL COMPROMISO Y LA PARTICIPACIÓN CONJUNTA DE ACTORES PÚBLICOS Y PRIVADOS. PARA ELLO, INVOLUCRA EN LA TOMA DE DECISIONES TANTO A LAS AUTORIDADES DEL GOBIERNO DE LA CIUDAD AUTÓNOMA DE BUENOS AIRES, COMO A LAS EMPRESAS Y SUS ENTIDADES REPRESENTATIVAS Y LAS ORGANIZACIONES CIVILES QUE SE ADHIERAN. | H105: 2 | I105: 35. MINISTERIO DE AMBIENTE Y ESPACIO PÚBLICO | J105: - | K105: 933. AGENCIA DE PROTECCIÓN AMBIENTAL | L105: 96. BUENOS AIRES PRODUCE MAS LIMPIO (P+L) | M105: 96. BUENOS AIRES PRODUCE MAS LIMPIO (P+L) | N105: 0. PROGRAMA BUENOS AIRES PRODUCE MÁS LIMPIO (P+L) | O105: 60. AUTORIDAD CUENCA MATANZA RIACHUELO | P105: 0. BUENOS AIRES PRODUCE MAS LIMPIO (P+L) | Q105: 12 | R105: 3 | S105: 9 | T105: 6 | U105: 0 | V105: 4 | W105: 4 | X105: 4 | Y105: 1 | Z105: ACTIVIDAD QUE TIENE COMO OBJETIVO ESTRATÉGICO SE PLANTEA PROMOVER LA ADOPCIÓN DE TECNOLOGÍAS, PROCESOS, PRODUCTOS Y SERVICIOS QUE PERMITAN ARMONIZAR DE MANERA EFICIENTE EL CRECIMIENTO ECONÓMICO, SOCIAL Y LA PROTECCIÓN AMBIENTAL DE LA CIUDAD DE BUENOS AIRES. | AA105: 8940. DIRECCIÓN GENERAL POLITICA Y DE ESTRATEGIA AMBIENTAL | AB105: CABA | AC105: 4 | AD105: COMUNA 4 | AE105: - | AF105: - | AG105: 0 | AH105: 0 | AI105: 0 | AJ105: 0 | AK105: 0 | AL105: 0 | AM105: 0 | AN105: 0 | AO105: 0 | AP105: 0 | AQ105: 0 | AR105: 0 | AS105: 0 | AT105: 0 | AU105: 0 | AV105: 10000 | AW105: 0 | AX105: - | AY105: - | AZ105: - | BA105: -
B106: 4382 | C106: 3. CABA | D106: 11. CONTAMINACIÓN DE ORIGEN INDUSTRIAL | E106: ESTUDIOS Y EVALUACIONES AMBIENTALES | F106: EVALUACIONES AMBIENTALES | G106: EL PROGRAMA BUENOS AIRES PRODUCE MÁS LIMPIO PROPONE, DESDE UN PUNTO DE VISTA AMBIENTAL, UNA GESTIÓN INSTITUCIONAL DE CARÁCTER INTEGRAL, ENTENDIENDO ESTE CONCEPTO COMO EL COMPROMISO Y LA PARTICIPACIÓN CONJUNTA DE ACTORES PÚBLICOS Y PRIVADOS. PARA ELLO, INVOLUCRA EN LA TOMA DE DECISIONES TANTO A LAS AUTORIDADES DEL GOBIERNO DE LA CIUDAD AUTÓNOMA DE BUENOS AIRES, COMO A LAS EMPRESAS Y SUS ENTIDADES REPRESENTATIVAS Y LAS ORGANIZACIONES CIVILES QUE SE ADHIERAN. | H106: 2 | I106: 35. MINISTERIO DE AMBIENTE Y ESPACIO PÚBLICO | J106: - | K106: 933. AGENCIA DE PROTECCIÓN AMBIENTAL | L106: 96. BUENOS AIRES PRODUCE MAS LIMPIO (P+L) | M106: 96. BUENOS AIRES PRODUCE MAS LIMPIO (P+L) | N106: 0. PROGRAMA BUENOS AIRES PRODUCE MÁS LIMPIO (P+L) | O106: 60. AUTORIDAD CUENCA MATANZA RIACHUELO | P106: 0. BUENOS AIRES PRODUCE MAS LIMPIO (P+L) | Q106: 12 | R106: 3 | S106: 9 | T106: 6 | U106: 0 | V106: 4 | W106: 4 | X106: 9 | Y106: 1 | Z106: ACTIVIDAD QUE TIENE COMO OBJETIVO ESTRATÉGICO SE PLANTEA PROMOVER LA ADOPCIÓN DE TECNOLOGÍAS, PROCESOS, PRODUCTOS Y SERVICIOS QUE PERMITAN ARMONIZAR DE MANERA EFICIENTE EL CRECIMIENTO ECONÓMICO, SOCIAL Y LA PROTECCIÓN AMBIENTAL DE LA CIUDAD DE BUENOS AIRES. | AA106: 8940. DIRECCIÓN GENERAL POLITICA Y DE ESTRATEGIA AMBIENTAL | AB106: CABA | AC106: 9 | AD106: COMUNA 9 | AE106: - | AF106: - | AG106: 0 | AH106: 0 | AI106: 0 | AJ106: 0 | AK106: 0 | AL106: 0 | AM106: 0 | AN106: 0 | AO106: 0 | AP106: 0 | AQ106: 0 | AR106: 0 | AS106: 0 | AT106: 0 | AU106: 233102 | AV106: 303500 | AW106: 0 | AX106: - | AY106: - | AZ106: - | BA106: -
B107: 4383 | C107: 3. CABA | D107: 11. CONTAMINACIÓN DE ORIGEN INDUSTRIAL | E107: ESTUDIOS Y EVALUACIONES AMBIENTALES | F107: EVALUACIONES AMBIENTALES | G107: EL PROGRAMA BUENOS AIRES PRODUCE MÁS LIMPIO PROPONE, DESDE UN PUNTO DE VISTA AMBIENTAL, UNA GESTIÓN INSTITUCIONAL DE CARÁCTER INTEGRAL, ENTENDIENDO ESTE CONCEPTO COMO EL COMPROMISO Y LA PARTICIPACIÓN CONJUNTA DE ACTORES PÚBLICOS Y PRIVADOS. PARA ELLO, INVOLUCRA EN LA TOMA DE DECISIONES TANTO A LAS AUTORIDADES DEL GOBIERNO DE LA CIUDAD AUTÓNOMA DE BUENOS AIRES, COMO A LAS EMPRESAS Y SUS ENTIDADES REPRESENTATIVAS Y LAS ORGANIZACIONES CIVILES QUE SE ADHIERAN. | H107: 2 | I107: 35. MINISTERIO DE AMBIENTE Y ESPACIO PÚBLICO | J107: - | K107: 933. AGENCIA DE PROTECCIÓN AMBIENTAL | L107: 96. BUENOS AIRES PRODUCE MAS LIMPIO (P+L) | M107: 96. BUENOS AIRES PRODUCE MAS LIMPIO (P+L) | N107: 0. PROGRAMA BUENOS AIRES PRODUCE MÁS LIMPIO (P+L) | O107: 60. AUTORIDAD CUENCA MATANZA RIACHUELO | P107: 0. BUENOS AIRES PRODUCE MAS LIMPIO (P+L) | Q107: 11 | R107: 3 | S107: 9 | T107: 6 | U107: 0 | V107: 4 | W107: 4 | X107: 7 | Y107: 1 | Z107: ACTIVIDAD QUE TIENE COMO OBJETIVO ESTRATÉGICO SE PLANTEA PROMOVER LA ADOPCIÓN DE TECNOLOGÍAS, PROCESOS, PRODUCTOS Y SERVICIOS QUE PERMITAN ARMONIZAR DE MANERA EFICIENTE EL CRECIMIENTO ECONÓMICO, SOCIAL Y LA PROTECCIÓN AMBIENTAL DE LA CIUDAD DE BUENOS AIRES. | AA107: 8940. DIRECCIÓN GENERAL POLITICA Y DE ESTRATEGIA AMBIENTAL | AB107: CABA | AC107: 7 | AD107: COMUNA 7 | AE107: - | AF107: - | AG107: 0 | AH107: 0 | AI107: 0 | AJ107: 0 | AK107: 0 | AL107: 0 | AM107: 0 | AN107: 0 | AO107: 0 | AP107: 0 | AQ107: 0 | AR107: 0 | AS107: 0 | AT107: 0 | AU107: 3980 | AV107: 55000 | AW107: =VLOOKUP(B107,[11]Hoja1!$A:$AX,50,0) -> 23500 | AX107: - | AY107: - | AZ107: - | BA107: -
B108: 4384 | C108: 3. CABA | D108: 11. CONTAMINACIÓN DE ORIGEN INDUSTRIAL | E108: ESTUDIOS Y EVALUACIONES AMBIENTALES | F108: EVALUACIONES AMBIENTALES | G108: EL PROGRAMA BUENOS AIRES PRODUCE MÁS LIMPIO PROPONE, DESDE UN PUNTO DE VISTA AMBIENTAL, UNA GESTIÓN INSTITUCIONAL DE CARÁCTER INTEGRAL, ENTENDIENDO ESTE CONCEPTO COMO EL COMPROMISO Y LA PARTICIPACIÓN CONJUNTA DE ACTORES PÚBLICOS Y PRIVADOS. PARA ELLO, INVOLUCRA EN LA TOMA DE DECISIONES TANTO A LAS AUTORIDADES DEL GOBIERNO DE LA CIUDAD AUTÓNOMA DE BUENOS AIRES, COMO A LAS EMPRESAS Y SUS ENTIDADES REPRESENTATIVAS Y LAS ORGANIZACIONES CIVILES QUE SE ADHIERAN. | H108: 2 | I108: 35. MINISTERIO DE AMBIENTE Y ESPACIO PÚBLICO | J108: - | K108: 933. AGENCIA DE PROTECCIÓN AMBIENTAL | L108: 96. BUENOS AIRES PRODUCE MAS LIMPIO (P+L) | M108: 96. BUENOS AIRES PRODUCE MAS LIMPIO (P+L) | N108: 0. PROGRAMA BUENOS AIRES PRODUCE MÁS LIMPIO (P+L) | O108: 60. AUTORIDAD CUENCA MATANZA RIACHUELO | P108: 0. BUENOS AIRES PRODUCE MAS LIMPIO (P+L) | Q108: 11 | R108: 3 | S108: 9 | T108: 6 | U108: 0 | V108: 4 | W108: 4 | X108: 8 | Y108: 1 | Z108: ACTIVIDAD QUE TIENE COMO OBJETIVO ESTRATÉGICO SE PLANTEA PROMOVER LA ADOPCIÓN DE TECNOLOGÍAS, PROCESOS, PRODUCTOS Y SERVICIOS QUE PERMITAN ARMONIZAR DE MANERA EFICIENTE EL CRECIMIENTO ECONÓMICO, SOCIAL Y LA PROTECCIÓN AMBIENTAL DE LA CIUDAD DE BUENOS AIRES. | AA108: 8940. DIRECCIÓN GENERAL POLITICA Y DE ESTRATEGIA AMBIENTAL | AB108: CABA | AC108: 8 | AD108: COMUNA 8 | AE108: - | AF108: - | AG108: 0 | AH108: 0 | AI108: 0 | AJ108: 0 | AK108: 0 | AL108: 0 | AM108: 0 | AN108: 0 | AO108: 0 | AP108: 0 | AQ108: 0 | AR108: 0 | AS108: 0 | AT108: 0 | AU108: 70000 | AV108: 70000 | AW108: =VLOOKUP(B108,[11]Hoja1!$A:$AX,50,0) -> 220000 | AX108: - | AY108: - | AZ108: - | BA108: -
B109: 4513 | C109: 3. CABA | D109: 05. EDUCACIÓN AMBIENTAL | E109: CAPACITACIÓN EN EDUCACIÓN AMBIENTAL | F109: ESCUELAS VERDES | G109: CAPACITACIÓN DE GESTIÓN INTEGRAL DE RESIDUOS EN ESCUELAS VERDES | H109: 2 | I109: 55. MINISTERIO DE EDUCACIÓN | J109: - | K109: 0. MINISTERIO DE EDUCACIÓN | L109: 11. ESCUELAS VERDES | M109: 0. ESCUELAS VERDES | N109: 0. ESCUELAS VERDES | O109: 60. ACUMAR | P109: 0. ACUMAR | Q109: 11 | R109: 3 | S109: 5 | T109: 2 | U109: 0 | V109: 3 | W109: 4 | X109: 1 | Y109: 1 | Z109: CAPACITACIÓN | AA109: 550. MINISTERIO DE EDUCACIÓN | AB109: CABA | AC109: 4,7,8 Y 9 | AD109: ESCUELAS PRIMARIAS Y SECUNDARIAS COMUNAS 4, 7, 8 Y 9 | AE109: 2017-04-09 | AF109: 2017-08-09 | AG109: 97066.75 | AH109: 0 | AI109: 0 | AJ109: 97066.75 | AK109: 0 | AL109: 0 | AM109: 0 | AN109: 0 | AO109: 119911 | AP109: 120000 | AQ109: 120000 | AR109: 160000 | AS109: 97066.75 | AT109: 0 | AU109: 163000 | AV109: 181500 | AW109: 0 | AX109: EN EJECUCIÓN | AY109: - | AZ109: - | BA109: -
B110: 4634 | C110: 1. ESTADO NACIONAL | D110: 09. EXPANSIÓN DE LA RED DE AGUA POTABLE Y SANEAMIENTO DE CLOACAS | E110: MEJORA Y MANTENIMIENTO DE REDES CLOACALES | F110: REDES CLOACALES LANÚS | G110: RENOVACIÓN DE RED CLOACAL ARMENIA - TERMINACIÓN | H110: 2 | I110: 91. OBLIGACIONES DEL TESORO | J110: 356 | K110: AYSA | L110: 95. ASISTENCIA FINANCIERA A EMPRESAS PÚBLICAS Y ENTE BINACIONAL | M110: 5 | N110: 1362603 | O110: 77 | P110: - | Q110: 22 Y RECURSOS PROPIOS | R110: 5 | S110: 5 | T110: 7 | U110: 753 | V110: 3 | W110: 8 | X110: 2 | Y110: 2 | Z110: SC618 / SC70203 | AA110: - | AB110: LANÚS | AC110: VALENTÍN ALSINA | AD110: LA RENOVACIÓN SE HARÁ EFECTIVA EN CALLE ARMENIA ENTRE TUYUTI Y REPUBLICA ARGENTINA | AE110: 2016-12-05 | AF110: 2018-04-08 | AG110: 13794447.94 | AH110: 21119987.65 | AI110: 1522551.18 | AJ110: 36436986.77 | AK110: 0 | AL110: 0 | AM110: 0 | AN110: 0 | AO110: 24869.3841 | AP110: 219648.0451 | AQ110: 1385708.892 | AR110: 0 | AS110: 7892715.97 | AT110: 13138909.3 | AU110: 6611299.858 | AV110: 8087552.094 | AW110: 5201874.013 | AX110: FINALIZADO | AY110: 0.7784765315 | AZ110: 1 | BA110: REEMPLAZA A LA SC618. EN 2018 SE MODIFICA EL CÓDIGO DE ACTIVIDAD DE LA APERTURA PROGRAMÁTICA DE 5 A 77, UG DE 96 A 2 Y FF DE 11 A 22. EL PROYECTO TAMBIÉN SERÁ FINANCIADO CON RECURSOS PROPIOS DE AYSA
B111: 4904 | C111: 4. ACUMAR | D111: 11. CONTAMINACIÓN DE ORIGEN INDUSTRIAL | E111: INSPECCIONES | F111: INSPECCIONES | G111: ADQUISICION DE RODAMINA Y CINTAS DE MEDICION DE PH | H111: 1 | I111: ACUMAR | J111: - | K111: ACUMAR | L111: CONTROL INDUSTRIAL | M111: FISCALIZACION | N111: - | O111: - | P111: - | Q111: - | R111: 2 | S111: 9 | T111: 9 | U111: - | V111: - | W111: - | X111: - | Y111: 1 | Z111: - | AA111: DICROM INGENIERIA S.A. | AB111: CUENCA MATANZA RIACHUELO | AC111: - | AD111: - | AE111: - | AF111: - | AG111: 0 | AH111: 0 | AI111: 0 | AJ111: 0 | AK111: 0 | AL111: 0 | AM111: 0 | AN111: 0 | AO111: 12343.81 | AP111: 0 | AQ111: 0 | AR111: 0 | AS111: 0 | AT111: 32670 | AU111: 0 | AV111: 0 | AW111: 0 | AX111: - | AY111: - | AZ111: - | BA111: PROYECTO 165
B112: 4930 | C112: 4. ACUMAR | D112: 07. MONITOREO DE LA CALIDAD DE AGUA, SEDIMENTOS Y AIRE | E112: MONITOREO CALIDAD DE AGUA Y SEDIMENTOS | F112: MONITOREO DE CALIDAD DE AGUA Y SEDIMENTOS | G112: ANTICIPO CONVENIO ESPECIFICO COMPLEMENTARIO N° 3 2012-2014 FCNYM-ACUMAR "PROGRAMA DE MONITOREO INTEGRADO DE CALIDAD DE AGUA SUPERFICIAL Y SEDIMENTOS DE LA CMR Y DE LA FRANJA COSTERA SUR DEL RIO DE LA PLATA Y SISTEMATIZACION DE LA INFORMACION GENERADA | H112: 1 | I112: ACUMAR | J112: - | K112: ACUMAR | L112: CALIDAD AMBIENTAL | M112: - | N112: - | O112: - | P112: - | Q112: - | R112: 5 | S112: 6 | T112: 1 | U112: - | V112: - | W112: - | X112: - | Y112: 1 | Z112: - | AA112: UNIVERSIDAD DE LA PLATA | AB112: CUENCA MATANZA RIACHUELO | AC112: - | AD112: - | AE112: 2013-11-19 | AF112: 2014-11-19 | AG112: 985844.4 | AH112: 0 | AI112: 0 | AJ112: 985844.4 | AK112: 0 | AL112: 0 | AM112: 0 | AN112: 0 | AO112: 295753.32 | AP112: 148676.99 | AQ112: 276205.37 | AR112: 271855.24 | AS112: 0 | AT112: 74638.21 | AU112: 0 | AV112: 0 | AW112: 0 | AX112: - | AY112: - | AZ112: - | BA112: PROYECTO 160
B113: 5099 | C113: 3. CABA | D113: 06. PLAN SANITARIO DE EMERGENCIA | E113: CAMPAÑA DE PREVENCIÓN | F113: CAMPAÑA DE PREVENCIÓN | G113: CAMPAÑAS DE PREVENCIÓN Y MITIGACIÓN DE RIESGO. CAPACITACIONES Y DISTRIBUCIÓN DE FOLLETERÍA CON PERSONAL PROPIO | H113: 2 | I113: 26. MINISTERIO DE JUSTICIA Y SEGURIDAD | J113: - | K113: 0. MINISTERIO DE JUSTICIA Y SEGURIDAD | L113: 53. PLANIFICACIÓN Y CONTROL DEFENSA CIVIL | M113: 0. PLANIFICACIÓN Y CONTROL DEFENSA CIVIL | N113: 0. PLANIFICACIÓN Y CONTROL DEFENSA CIVIL | O113: 60. ACUMAR | P113: 0. ACUMAR | Q113: 11 | R113: 3 | S113: 5 | T113: 3 | U113: 0 | V113: 2 | W113: 2 | X113: 7 | Y113: 1 | Z113: PLANIFICACIÓN Y CONTROL DEFENSA CIVIL | AA113: 153. DIRECCIÓN GENERAL DE DEFENSA CIVIL | AB113: CABA | AC113: 7 | AD113: COMUNA 7 | AE113: - | AF113: - | AG113: 0 | AH113: 0 | AI113: 0 | AJ113: 0 | AK113: 0 | AL113: 0 | AM113: 0 | AN113: 0 | AO113: 0 | AP113: 0 | AQ113: 0 | AR113: 19500 | AS113: 0 | AT113: 0 | AU113: 0 | AV113: 10000 | AW113: 0 | AX113: EN EJECUCIÓN | AY113: - | AZ113: - | BA113: -
B114: 5124 | C114: 3. CABA | D114: 10. DESAGÜES PLUVIALES | E114: ESTACIONES DE BOMBEO | F114: ESTACIONES BOMBEO BARRACAS | G114: OPERACION Y PRESERVACION OBRAS BOMBAS BARRACAS | H114: 2 | I114: 35. MINISTERIO DE AMBIENTE Y ESPACIO PÚBLICO | J114: - | K114: 0. MINISTERIO DE AMBIENTE Y ESPACIO PÚBLICO | L114: 79. MANTENIMIENTO RED PLUVIAL | M114: 0. MANTENIMIENTO DE LA RED PLUVIAL | N114: 60. A.CU.MAR - MEJORAMIENTO DEL SISTEMA PLUVIAL | O114: 0. A.CU.MAR - MEJORAMIENTO DEL SISTEMA PLUVIAL | P114: 51. OPERACION Y PRESERVACION OBRAS BOMBAS BARRACAS | Q114: 11 | R114: 4 | S114: 2 | T114: 2 | U114: 0 | V114: 3 | W114: 8 | X114: 4 | Y114: 1 | Z114: MANTENIMIENTO DE LA RED PLUVIAL | AA114: 2504. DIRECCIÓN GENERAL SISTEMA PLUVIAL | AB114: CABA | AC114: 4 | AD114: COMUNA 4 | AE114: - | AF114: - | AG114: 0 | AH114: 0 | AI114: 0 | AJ114: 0 | AK114: 0 | AL114: 0 | AM114: 0 | AN114: 0 | AO114: 0 | AP114: 2774709 | AQ114: 0 | AR114: 0 | AS114: 22414177.36 | AT114: 21846604.44 | AU114: 0 | AV114: 127534230 | AW114: 0 | AX114: EN EJECUCIÓN | AY114: 0.595921392 | AZ114: - | BA114: -
B115: 5127 | C115: 3. CABA | D115: 10. DESAGÜES PLUVIALES | E115: SUMIDEROS | F115: SUMIDEROS CABA | G115: CONSERVACION Y ADECUACION DE SUMIDEROS | H115: 2 | I115: 35. MINISTERIO DE AMBIENTE Y ESPACIO PÚBLICO | J115: - | K115: 0. MINISTERIO DE AMBIENTE Y ESPACIO PÚBLICO | L115: 79. MANTENIMIENTO RED PLUVIAL | M115: 0. MANTENIMIENTO DE LA RED PLUVIAL | N115: 60. A.CU.MAR - MEJORAMIENTO DEL SISTEMA PLUVIAL | O115: 0. A.CU.MAR - MEJORAMIENTO DEL SISTEMA PLUVIAL | P115: 54. CONSERVACION Y ADECUACION DE SUMIDEROS | Q115: 11 | R115: 4 | S115: 2 | T115: 2 | U115: 0 | V115: 3 | W115: 8 | X115: 4 | Y115: 1 | Z115: MANTENIMIENTO DE LA RED PLUVIAL | AA115: 2504. DIRECCIÓN GENERAL SISTEMA PLUVIAL | AB115: CABA | AC115: 4 | AD115: COMUNA 4 | AE115: - | AF115: - | AG115: 0 | AH115: 0 | AI115: 0 | AJ115: 0 | AK115: 0 | AL115: 0 | AM115: 0 | AN115: 0 | AO115: 0 | AP115: 9985301 | AQ115: 19989274.23 | AR115: 0 | AS115: 0 | AT115: 0 | AU115: 161192255.5 | AV115: 34049447 | AW115: =VLOOKUP(B115,[11]Hoja1!$A:$AX,50,0) -> 76224836 | AX115: EN EJECUCIÓN | AY115: - | AZ115: - | BA115: -
B116: 5129 | C116: 3. CABA | D116: 10. DESAGÜES PLUVIALES | E116: SUMIDEROS | F116: SUMIDEROS CABA | G116: CONSERVACION Y ADECUACION DE SUMIDEROS | H116: 2 | I116: 35. MINISTERIO DE AMBIENTE Y ESPACIO PÚBLICO | J116: - | K116: 0. MINISTERIO DE AMBIENTE Y ESPACIO PÚBLICO | L116: 79. MANTENIMIENTO RED PLUVIAL | M116: 0. MANTENIMIENTO DE LA RED PLUVIAL | N116: 60. A.CU.MAR - MEJORAMIENTO DEL SISTEMA PLUVIAL | O116: 0. A.CU.MAR - MEJORAMIENTO DEL SISTEMA PLUVIAL | P116: 54. CONSERVACION Y ADECUACION DE SUMIDEROS | Q116: 11 | R116: 4 | S116: 2 | T116: 2 | U116: 0 | V116: 3 | W116: 8 | X116: 8 | Y116: 1 | Z116: MANTENIMIENTO DE LA RED PLUVIAL | AA116: 2504. DIRECCIÓN GENERAL SISTEMA PLUVIAL | AB116: CABA | AC116: 8 | AD116: COMUNA 8 | AE116: - | AF116: - | AG116: 0 | AH116: 0 | AI116: 0 | AJ116: 0 | AK116: 0 | AL116: 0 | AM116: 0 | AN116: 0 | AO116: 0 | AP116: 9185666 | AQ116: 31458121 | AR116: 0 | AS116: 0 | AT116: 0 | AU116: 0 | AV116: 22865007 | AW116: =VLOOKUP(B116,[11]Hoja1!$A:$AX,50,0) -> 51186776 | AX116: EN EJECUCIÓN | AY116: - | AZ116: - | BA116: -
B117: 5130 | C117: 3. CABA | D117: 10. DESAGÜES PLUVIALES | E117: SUMIDEROS | F117: SUMIDEROS CABA | G117: CONSERVACION Y ADECUACION DE SUMIDEROS | H117: 2 | I117: 35. MINISTERIO DE AMBIENTE Y ESPACIO PÚBLICO | J117: - | K117: 0. MINISTERIO DE AMBIENTE Y ESPACIO PÚBLICO | L117: 79. MANTENIMIENTO RED PLUVIAL | M117: 0. MANTENIMIENTO DE LA RED PLUVIAL | N117: 60. A.CU.MAR - MEJORAMIENTO DEL SISTEMA PLUVIAL | O117: 0. A.CU.MAR - MEJORAMIENTO DEL SISTEMA PLUVIAL | P117: 54. CONSERVACION Y ADECUACION DE SUMIDEROS | Q117: 11 | R117: 4 | S117: 2 | T117: 2 | U117: 0 | V117: 3 | W117: 8 | X117: 9 | Y117: 1 | Z117: MANTENIMIENTO DE LA RED PLUVIAL | AA117: 2504. DIRECCIÓN GENERAL SISTEMA PLUVIAL | AB117: CABA | AC117: 9 | AD117: COMUNA 9 | AE117: - | AF117: - | AG117: 0 | AH117: 0 | AI117: 0 | AJ117: 0 | AK117: 0 | AL117: 0 | AM117: 0 | AN117: 0 | AO117: 0 | AP117: 0 | AQ117: 76024 | AR117: 0 | AS117: 0 | AT117: 0 | AU117: 0 | AV117: 21074634 | AW117: =VLOOKUP(B117,[11]Hoja1!$A:$AX,50,0) -> 11444591 | AX117: EN EJECUCIÓN | AY117: - | AZ117: - | BA117: -
B118: 5169 | C118: 3. CABA | D118: 05. EDUCACIÓN AMBIENTAL | E118: NUEVO CENTRO EDUCATIVO | F118: ESCUELA MEDIA - PASO Y CHILAVERT | G118: VILLA 20 DIST ESC 19 POLA BARROS PASO Y CHILAVERT - COMP. EDUCACION POLO LUGANO | H118: 2 | I118: 55. MINISTERIO DE EDUCACIÓN | J118: - | K118: 0. MINISTERIO DE EDUCACIÓN | L118: 53. INFRAESTRUCTURA ESCOLAR | M118: 0. INFRAESTRUCTURA ESCOLAR | N118: 60. A.CU.MAR - OBRAS E INSTALACIONES | O118: 0. A.CU.MAR - OBRAS E INSTALACIONES | P118: 53. VILLA 20 DIST ESC 19 POLA BARROS PASO Y CHILAVERT - COMP. EDUCACION POLO LUGANO | Q118: 11 | R118: 4 | S118: 2 | T118: 1 | U118: 0 | V118: 3 | W118: 4 | X118: 8 | Y118: 1 | Z118: OBRA DE INFRAESTRUCTURA | AA118: 9761. DIR.GRAL.DE INFRAESTRUCTURA Y EQUIPAMIENTO | AB118: CABA | AC118: 8 | AD118: COMUNA 8 | AE118: - | AF118: - | AG118: 19925151.72 | AH118: 0 | AI118: 0 | AJ118: 0 | AK118: 0 | AL118: 0 | AM118: 0 | AN118: 0 | AO118: 0 | AP118: 1503476 | AQ118: 1367840 | AR118: 194825.6 | AS118: 34955431.01 | AT118: 14912319.77 | AU118: 4998923.78 | AV118: 10732786 | AW118: =VLOOKUP(B118,[11]Hoja1!$A:$AX,50,0) -> 0 | AX118: A INICIAR | AY118: - | AZ118: - | BA118: -
B119: 5176 | C119: 3. CABA | D119: 08. URBANIZACIÓN DE VILLAS Y ASENTAMIENTOS URBANOS | E119: CONTINGENCIA EN VILLAS Y ASENTAMIENTOS | F119: DISTRIBUCIÓN DE AGUA | G119: SERVICIO DE ALQUILER DE CAMIONES ATMOSFERICOS, HIDROCINETICOS, CAMIONES CISTERNA PARA LA DISTRIBUCIÓN DE AGUA POTABLE Y MAQUINARIAS VARIAS. | H119: 2 | I119: 45. MINISTERIO DE HABITAT DESARROLLO HUMANO | J119: - | K119: 9470. UNIDAD DE GESTIÓN INTERVENCIÓN SOCIAL | L119: 16. INTERVENCION SOCIAL EN VILLAS Y NHT | M119: 0. INTERVECIÓN SOCIAL EN VILLAS DE EMERGENCIA Y NHT | N119: 0. INTERVECIÓN SOCIAL EN VILLAS DE EMERGENCIA Y NHT | O119: 60. ACUMAR | P119: 0. ACUMAR | Q119: 11 | R119: 3 | S119: 2 | T119: 2 | U119: 0 | V119: 3 | W119: 7 | X119: 8 | Y119: 1 | Z119: SERVICIOS DE NECESIDAD PRIMARIA | AA119: 9470. UNIDAD DE GESTIÓN INTERVENCIÓN SOCIAL | AB119: CABA | AC119: 8 | AD119: COMUNA 8 | AE119: - | AF119: - | AG119: 0 | AH119: 0 | AI119: 0 | AJ119: 0 | AK119: 0 | AL119: 0 | AM119: 0 | AN119: 0 | AO119: 0 | AP119: 45821923 | AQ119: 68745119 | AR119: 0 | AS119: 0 | AT119: 0 | AU119: 378225440.9 | AV119: 300000000 | AW119: 0 | AX119: - | AY119: - | AZ119: - | BA119: -
B120: 5183 | C120: 3. CABA | D120: 08. URBANIZACIÓN DE VILLAS Y ASENTAMIENTOS URBANOS | E120: VIVIENDAS NUEVAS | F120: COMPLEJO LUZURIAGA | G120: CONSTRUCCIÓN DE VIVIENDAS PARA LOS RESIDENTES DE LOS ASENTAMIENTOS Y VILLAS LOCALIZADAS EN LAS MÁRGENES DE LA CUENCA MATANZA-RIACHUELO | H120: 2 | I120: 21. JEFATURA DE GABINETE DE MINISTROS | J120: - | K120: 219. INSTITUTO PARA LA VIVIENDA | L120: 109. VIVIENDAS CON AHORRO PREVIO | M120: 0. VIVIENDAS CON AHORRO PREVIO | N120: 60. ACUMAR | O120: 0. ACUMAR | P120: 52. LUZURIAGA N° 835 | Q120: 11 | R120: 3 | S120: 9 | T120: 9 | U120: 0 | V120: 3 | W120: 7 | X120: 4 | Y120: 1 | Z120: CONSTRUCCIÓN DE VIVIENDAS | AA120: 290. INSTITUTO DE LA VIVIENDA LEY N° 1.251 | AB120: CABA | AC120: 4 | AD120: LUZURIAGA N° 835 | AE120: - | AF120: - | AG120: 0 | AH120: 0 | AI120: 0 | AJ120: 0 | AK120: - | AL120: - | AM120: - | AN120: - | AO120: 3360299 | AP120: - | AQ120: 117296 | AR120: 0 | AS120: - | AT120: 0 | AU120: 0 | AV120: 576000 | AW120: 0 | AX120: - | AY120: - | AZ120: - | BA120: -
B121: 5184 | C121: 3. CABA | D121: 08. URBANIZACIÓN DE VILLAS Y ASENTAMIENTOS URBANOS | E121: VIVIENDAS NUEVAS | F121: COMPLEJO LACARRA | G121: CONSTRUCCIÓN DE VIVIENDAS PARA LOS RESIDENTES DE LOS ASENTAMIENTOS Y VILLAS LOCALIZADAS EN LAS MÁRGENES DE LA CUENCA MATANZA-RIACHUELO | H121: 2 | I121: 21. JEFATURA DE GABINETE DE MINISTROS | J121: - | K121: 219. INSTITUTO PARA LA VIVIENDA | L121: 109. VIVIENDAS CON AHORRO PREVIO | M121: 0. VIVIENDAS CON AHORRO PREVIO | N121: 60. ACUMAR | O121: 0. ACUMAR | P121: 51. LACARRA N° 2.049 (EX PEDRO CHUTRO) | Q121: 12 | R121: 4 | S121: 2 | T121: 1 | U121: 0 | V121: 3 | W121: 7 | X121: 9 | Y121: 1 | Z121: CONSTRUCCIÓN DE VIVIENDAS | AA121: 290. INSTITUTO DE LA VIVIENDA LEY N° 1.251 | AB121: CABA | AC121: 9 | AD121: LACARRA 2049 | AE121: 2016-07-25 | AF121: - | AG121: 6814178.09 | AH121: 28238126.1 | AI121: 35052304.19 | AJ121: 6814178.09 | AK121: 0 | AL121: 0 | AM121: 0 | AN121: 0 | AO121: 0 | AP121: 17087 | AQ121: 0 | AR121: 3601406.47 | AS121: 0 | AT121: 0 | AU121: 6391614.39 | AV121: 2500000 | AW121: 0 | AX121: EN EJECUCIÓN | AY121: - | AZ121: - | BA121: -
B122: 5186 | C122: 3. CABA | D122: 08. URBANIZACIÓN DE VILLAS Y ASENTAMIENTOS URBANOS | E122: VIVIENDAS NUEVAS | F122: COMPLEJO OSVALDO CRUZ | G122: CONSTRUCCIÓN DE VIVIENDAS PARA LOS RESIDENTES DE LOS ASENTAMIENTOS Y VILLAS LOCALIZADAS EN LAS MÁRGENES DE LA CUENCA MATANZA-RIACHUELO | H122: 2 | I122: 21. JEFATURA DE GABINETE DE MINISTROS | J122: - | K122: 219. INSTITUTO PARA LA VIVIENDA | L122: 109. VIVIENDAS CON AHORRO PREVIO | M122: 0. VIVIENDAS CON AHORRO PREVIO | N122: 60. ACUMAR | O122: 0. ACUMAR | P122: 64. OSVALDO CRUZ Y LUNA | Q122: 12 | R122: 4 | S122: 2 | T122: 1 | U122: 0 | V122: 3 | W122: 7 | X122: 7 | Y122: - | Z122: CONSTRUCCIÓN DE VIVIENDAS | AA122: 290. INSTITUTO DE LA VIVIENDA LEY N° 1.251 | AB122: CABA | AC122: 4 | AD122: OSVALDO CRUZ 3351/99 | AE122: - | AF122: - | AG122: 0 | AH122: 0 | AI122: 0 | AJ122: 0 | AK122: 0 | AL122: 0 | AM122: 0 | AN122: 0 | AO122: 0 | AP122: 0 | AQ122: 0 | AR122: 0 | AS122: - | AT122: 0 | AU122: 18766344.63 | AV122: 18766347 | AW122: 0 | AX122: - | AY122: - | AZ122: - | BA122: -
B123: 5207 | C123: 3. CABA | D123: 08. URBANIZACIÓN DE VILLAS Y ASENTAMIENTOS URBANOS | E123: VIVIENDAS NUEVAS | F123: COMPLEJO SAN ANTONIO | G123: CONSTRUCCIÓN DE 64 VIVIENDAS PARA LOS RESIDENTES DE LOS ASENTAMIENTOS Y VILLAS LOCALIZADAS EN LAS MÁRGENES DE LA CUENCA MATANZA-RIACHUELO | H123: 2 | I123: 21. JEFATURA DE GABINETE DE MINISTROS | J123: - | K123: 219. INSTITUTO PARA LA VIVIENDA | L123: 109. VIVIENDAS CON AHORRO PREVIO | M123: 0. VIVIENDAS CON AHORRO PREVIO | N123: 60. ACUMAR | O123: 0. ACUMAR | P123: 53. SAN ANTONIO N° 726 | Q123: 15 | R123: 4 | S123: 2 | T123: 1 | U123: 0 | V123: 3 | W123: 7 | X123: 4 | Y123: 1 | Z123: CONSTRUCCIÓN DE VIVIENDAS | AA123: 290. INSTITUTO DE LA VIVIENDA LEY N° 1.251 | AB123: CABA | AC123: 4 | AD123: SAN ANTONIO N° 721/725 Y GONCALVEZ DIAS 738 | AE123: 2013-01-09 | AF123: 2017-02-28 | AG123: 14631951.75 | AH123: 22027299.72 | AI123: 36659251.47 | AJ123: 13933820 | AK123: 0 | AL123: 0 | AM123: 0 | AN123: 0 | AO123: 1969835 | AP123: 1518667 | AQ123: 0 | AR123: 0 | AS123: 41675749.04 | AT123: 28612371.91 | AU123: 130200 | AV123: 1651000 | AW123: 0 | AX123: FINALIZADA | AY123: - | AZ123: - | BA123: -
B124: 5209 | C124: 3. CABA | D124: 08. URBANIZACIÓN DE VILLAS Y ASENTAMIENTOS URBANOS | E124: VIVIENDAS NUEVAS | F124: COMPLEJO RIBERA IGUAZÚ | G124: CONSTRUCCIÓN DE VIVIENDAS PARA LOS RESIDENTES DE LOS ASENTAMIENTOS Y VILLAS LOCALIZADAS EN LAS MÁRGENES DE LA CUENCA MATANZA-RIACHUELO.BENEFICIARIOS: MUNDO GRUA | H124: 2 | I124: 21. JEFATURA DE GABINETE DE MINISTROS | J124: - | K124: 219. INSTITUTO PARA LA VIVIENDA | L124: 109. VIVIENDAS CON AHORRO PREVIO | M124: 0. VIVIENDAS CON AHORRO PREVIO | N124: 60. ACUMAR | O124: 0. ACUMAR | P124: 56. BARRIO RIBERA IGUAZÚ | Q124: 12 | R124: 4 | S124: 2 | T124: 1 | U124: 0 | V124: 3 | W124: 7 | X124: 4 | Y124: ESPECÍFICA | Z124: CONSTRUCCIÓN DE VIVIENDAS | AA124: 290. INSTITUTO DE LA VIVIENDA LEY N° 1.251 | AB124: CABA | AC124: 4 | AD124: IGUAZÚ N° 1.835 CD 06/14 | AE124: 2015-08-01 | AF124: - | AG124: 48116847.03 | AH124: 0 | AI124: 48116847.03 | AJ124: 113374682 | AK124: 0 | AL124: 0 | AM124: 0 | AN124: 0 | AO124: 29416 | AP124: 0 | AQ124: 0 | AR124: 15896475.13 | AS124: 38047628.56 | AT124: 27607495.01 | AU124: 42050804 | AV124: 39601612 | AW124: 0 | AX124: - | AY124: - | AZ124: - | BA124: -
B125: 5243 | C125: 1. ESTADO NACIONAL | D125: 09. EXPANSIÓN DE LA RED DE AGUA POTABLE Y SANEAMIENTO DE CLOACAS | E125: EXPANSIÓN DE REDES CLOACALES | F125: REDES CLOACALES LA MATANZA | G125: READECUACION COLECTOR E IMPULSION DE ESTACION LAFERRERE CENTRO | H125: 2 | I125: 91. OBLIGACIONES DEL TESORO | J125: 356 | K125: AYSA | L125: 95. ASISTENCIA FINANCIERA A EMPRESAS PÚBLICAS Y ENTE BINACIONAL | M125: 5 | N125: 1460306 | O125: 77 | P125: - | Q125: 22 Y RECURSOS PROPIOS | R125: 5 | S125: 5 | T125: 7 | U125: 753 | V125: 3 | W125: 8 | X125: 2 | Y125: 2 | Z125: OC70017 | AA125: - | AB125: LA MATANZA | AC125: LAFERRERE | AD125: LA TRAZA DEL COLECTOR CLOACAL INICIA SU RECORRIDO EN BOCA DE REGISTRO EXISTENTE UBICADA EN LA INTERSECCIÓN DE LAS CALLES AMÉRICO VESPUCIO Y JAMACARÚ, CONTINUA POR JAMACARÚ HASTA E. SÁENZ, POR E. SÁENZ HASTA V. BOSCH Y POR V. BOSCH HASTA V. HUGO. | AE125: 2017-05-04 | AF125: 2018-09-12 | AG125: 24692871.7 | AH125: 18017289.93 | AI125: 1572112.944 | AJ125: 44282274.57 | AK125: 0 | AL125: 0 | AM125: 0 | AN125: 0 | AO125: 0 | AP125: 90280.6652 | AQ125: 11618.7588 | AR125: 0 | AS125: 5102300.775 | AT125: 37841919.71 | AU125: 1236154.658 | AV125: 0 | AW125: 0 | AX125: FINALIZADO | AY125: 1 | AZ125: 1 | BA125: EN 2018 SE MODIFICA EL CÓDIGO DE ACTIVIDAD DE LA APERTURA PROGRAMÁTICA DE 5 A 77, UG DE 96 A 2 Y FF DE 11 A 22. EL PROYECTO TAMBIÉN SERÁ FINANCIADO CON RECURSOS PROPIOS DE AYSA
B126: 5265 | C126: 1. ESTADO NACIONAL | D126: 09. EXPANSIÓN DE LA RED DE AGUA POTABLE Y SANEAMIENTO DE CLOACAS | E126: EXPANSIÓN DE REDES CLOACALES | F126: ESTACIÓN DE BOMBEO CLOACAL LAFERRERE | G126: NUEVA ESTACIÓN DE BOMBEO CLOACAL LAFERRERE CENTRO - OBRA CIVIL | H126: 2 | I126: 91. OBLIGACIONES DEL TESORO | J126: 356 | K126: AYSA | L126: 95. ASISTENCIA FINANCIERA A EMPRESAS PÚBLICAS Y ENTE BINACIONAL | M126: 5 | N126: 1460304 | O126: 77 | P126: - | Q126: 22 Y RECURSOS PROPIOS | R126: 5 | S126: 5 | T126: 7 | U126: 753 | V126: 3 | W126: 8 | X126: 2 | Y126: 2 | Z126: OC700071 | AA126: - | AB126: LA MATANZA | AC126: LAFERRERE | AD126: LA ESTACIÓN DE BOMBEO DE ENCUENTRA SOBRE LA CALLE VENTURA BOSCH ENTRE JUAN CRUZ VARELA Y EDUARDO SAENZ. | AE126: 2017-03-01 | AF126: 2018-10-18 | AG126: 11827381.91 | AH126: 3230937.846 | AI126: 1150494.357 | AJ126: 16208814.11 | AK126: 0 | AL126: 0 | AM126: 0 | AN126: 0 | AO126: 0 | AP126: 0 | AQ126: 5809.3794 | AR126: 0 | AS126: 8397249.827 | AT126: 6670325.497 | AU126: 1136438.437 | AV126: 3789214.926 | AW126: 0 | AX126: EN EJECUCIÓN | AY126: 1 | AZ126: 1 | BA126: EN 2018 SE MODIFICA EL CÓDIGO DE ACTIVIDAD DE LA APERTURA PROGRAMÁTICA DE 5 A 77, UG DE 96 A 2 Y FF DE 11 A 22. EL PROYECTO TAMBIÉN SERÁ FINANCIADO CON RECURSOS PROPIOS DE AYSA
B127: 5268 | C127: 1. ESTADO NACIONAL | D127: 09. EXPANSIÓN DE LA RED DE AGUA POTABLE Y SANEAMIENTO DE CLOACAS | E127: EXPANSIÓN DE REDES CLOACALES | F127: ESTACIÓN DE BOMBEO CLOACAL CABA | G127: ESTACIÓN DE BOMBEO CLOACAL COCA COLA - FEMSA - OBRA CIVIL | H127: 2 | I127: 91. OBLIGACIONES DEL TESORO | J127: 356 | K127: AYSA | L127: 95. ASISTENCIA FINANCIERA A EMPRESAS PÚBLICAS Y ENTE BINACIONAL | M127: 5 | N127: 1460311 | O127: 77 | P127: - | Q127: 22 Y RECURSOS PROPIOS | R127: 5 | S127: 5 | T127: 7 | U127: 753 | V127: 3 | W127: 8 | X127: 2 | Y127: 2 | Z127: CC700001 | AA127: - | AB127: CABA | AC127: BARRACAS | AD127: LA IMPLANTACIÓN DE LA ESTACIÓN DE BOMBEO EN EL PREDIO PRIVADO DE LA EMPRESA COCA COLA –FEMSA, UBICADA EN LA INTERSECCIÓN DE LAS CALLES CACHI Y AV. AMANCIO ALCORTA. | AE127: 2015-05-19 | AF127: 2019-01-04 | AG127: 3698575.104 | AH127: 6200370.874 | AI127: 2510738.953 | AJ127: 12409684.93 | AK127: 0 | AL127: 0 | AM127: 0 | AN127: 0 | AO127: 0 | AP127: 0 | AQ127: 260169.7593 | AR127: -40071.8846 | AS127: 11840358.45 | AT127: 298209.7272 | AU127: 51018.8756 | AV127: 0 | AW127: 0 | AX127: EN EJECUCIÓN | AY127: 1 | AZ127: 1 | BA127: EN 2018 SE MODIFICA EL CÓDIGO DE ACTIVIDAD DE LA APERTURA PROGRAMÁTICA DE 5 A 77, UG DE 96 A 2 Y FF DE 11 A 22. EL PROYECTO TAMBIÉN SERÁ FINANCIADO CON RECURSOS PROPIOS DE AYSA
B128: 5269 | C128: 1. ESTADO NACIONAL | D128: 09. EXPANSIÓN DE LA RED DE AGUA POTABLE Y SANEAMIENTO DE CLOACAS | E128: EXPANSIÓN DE REDES CLOACALES | F128: ESTACIÓN DE BOMBEO CLOACAL CABA | G128: ESTACIÓN DE BOMBEO CLOACAL COCA COLA - FEMSA - OBRA ELECTRO | H128: 2 | I128: 91. OBLIGACIONES DEL TESORO | J128: 356 | K128: AYSA | L128: 95. ASISTENCIA FINANCIERA A EMPRESAS PÚBLICAS Y ENTE BINACIONAL | M128: 5 | N128: 1460312 | O128: 77 | P128: - | Q128: 22 Y RECURSOS PROPIOS | R128: 5 | S128: 5 | T128: 7 | U128: 753 | V128: 3 | W128: 8 | X128: 2 | Y128: 2 | Z128: CC700002 | AA128: - | AB128: CABA | AC128: BARRACAS | AD128: LA IMPLANTACIÓN DE LA ESTACIÓN DE BOMBEO EN EL PREDIO PRIVADO DE LA EMPRESA COCA COLA –FEMSA, UBICADA EN LA INTERSECCIÓN DE LAS CALLES CACHI Y AV. AMANCIO ALCORTA. | AE128: 2015-05-19 | AF128: 2019-01-04 | AG128: 6697679.834 | AH128: 3452034.616 | AI128: 352449.2108 | AJ128: 10502163.66 | AK128: 0 | AL128: 0 | AM128: 0 | AN128: 0 | AO128: 0 | AP128: 0 | AQ128: 2501526.92 | AR128: 1080296.7 | AS128: 970185.9739 | AT128: 5916868.467 | AU128: 33285.5996 | AV128: 0 | AW128: 0 | AX128: EN EJECUCIÓN | AY128: 1 | AZ128: 0.9995 | BA128: EN 2018 SE MODIFICA EL CÓDIGO DE ACTIVIDAD DE LA APERTURA PROGRAMÁTICA DE 5 A 77, UG DE 96 A 2 Y FF DE 11 A 22. EL PROYECTO TAMBIÉN SERÁ FINANCIADO CON RECURSOS PROPIOS DE AYSA
B129: 5270 | C129: 1. ESTADO NACIONAL | D129: 09. EXPANSIÓN DE LA RED DE AGUA POTABLE Y SANEAMIENTO DE CLOACAS | E129: EXPANSIÓN DE REDES CLOACALES | F129: REDES CLOACALES CABA | G129: RED PRIMARIA CLOACAL - IMPULSIÓN COCA COLA - FEMSA | H129: 2 | I129: 91. OBLIGACIONES DEL TESORO | J129: 356 | K129: AYSA | L129: 95. ASISTENCIA FINANCIERA A EMPRESAS PÚBLICAS Y ENTE BINACIONAL | M129: 5 | N129: 1460310 | O129: 77 | P129: - | Q129: 22 Y RECURSOS PROPIOS | R129: 5 | S129: 5 | T129: 7 | U129: 753 | V129: 3 | W129: 8 | X129: 2 | Y129: 2 | Z129: CC70001 | AA129: - | AB129: CABA | AC129: BARRACAS | AD129: LA IMPULSIÓN INICIARÁ SU TRAZA EN LA INTERSECCIÓN DE LAS CALLES AV. AMANCIO ALCORTA Y CACHI, RECORRIENDO LAS CALLES CACHI, SANTO DOMINGO Y DIÓGENES TABORDA, DESCARGARAMDO FINALMENTE EN LA SEGUNDA CLOACA MÁXIMA EN UNA BOCA DE REGISTRO EXISTENTE EN LA CALLE DIÓGENES TABORDA INTERSECCIÓN CON EL RIACHUELO. | AE129: 2016-02-18 | AF129: 2018-09-20 | AG129: 6716121.638 | AH129: 6824741.431 | AI129: 434685.8656 | AJ129: 13975548.93 | AK129: 0 | AL129: 0 | AM129: 0 | AN129: 0 | AO129: 0 | AP129: 0 | AQ129: 18301.4315 | AR129: 784066.2544 | AS129: 6215874.193 | AT129: 4397724.624 | AU129: 2052076.643 | AV129: 2399608.088 | AW129: 0 | AX129: FINALIZADO | AY129: 0.9636861643 | AZ129: 1 | BA129: EN 2018 SE MODIFICA EL CÓDIGO DE ACTIVIDAD DE LA APERTURA PROGRAMÁTICA DE 5 A 77, UG DE 96 A 2 Y FF DE 11 A 22. EL PROYECTO TAMBIÉN SERÁ FINANCIADO CON RECURSOS PROPIOS DE AYSA
B130: 5278 | C130: 1. ESTADO NACIONAL | D130: 09. EXPANSIÓN DE LA RED DE AGUA POTABLE Y SANEAMIENTO DE CLOACAS | E130: EXPANSIÓN DE REDES CLOACALES | F130: REDES CLOACALES FIORITO | G130: RED PRIMARIA CLOACAL - COLECTOR FIORITO Y ENTRADA A PLANTA FIORITO | H130: 2 | I130: 91. OBLIGACIONES DEL TESORO | J130: 356 | K130: AYSA | L130: 95. ASISTENCIA FINANCIERA A EMPRESAS PÚBLICAS Y ENTE BINACIONAL | M130: 5 | N130: 1460303 | O130: 77 | P130: - | Q130: 22 Y RECURSOS PROPIOS | R130: 5 | S130: 5 | T130: 7 | U130: 753 | V130: 3 | W130: 8 | X130: 2 | Y130: 2 | Z130: SC627 | AA130: - | AB130: LOMAS DE ZAMORA | AC130: VILLA FIORITO | AD130: EL COLECTOR FIORITO INICIARÁ SU RECORRIDO CON UN DN 1500 MM POR LA CALLE GASPAR NÚÑEZ DE ARCE ESQUINA EJÉRCITO DE LOS ANDES HASTA LA CALLE AUSTRALIA, CONTINUANDO POR ÉSTA HASTA LA CALLE MIRO, ALLÍ DOBLA Y SEGUIRÁ HASTA FIGUEREDO DONDE DOBLA Y CONTINÚA POR FIGUEREDO HASTA LA MITAD DE CUADRA ENTRE LAS CALLES PÍO BAROJA Y BENITO P. GALDOS DONDE ESTÁ PREVISTA LA ENTRADA A LA PLANTA FIORITO. EL COLECTOR DENOMINADO “ENTRADA A PLANTA FIORITO” INICIARÁ SI RECORRIDO SOBRE LA CALLE FIGUEREDO ENTRE LAS CALLES PÍO BAROJA Y BENITO P. GALDOS E INGRESARÁ AL PREDIO DESTINADO A LA PLANTA FIORITO. | AE130: 2014-12-01 | AF130: 2018-03-16 | AG130: 207365246.2 | AH130: 264830903.9 | AI130: 11232764.52 | AJ130: 483428914.6 | AK130: 0 | AL130: 0 | AM130: 0 | AN130: 0 | AO130: 0 | AP130: 1302040.09 | AQ130: 12993486.37 | AR130: 33152634.47 | AS130: 292513770.4 | AT130: 143463716.7 | AU130: 3266.516 | AV130: 0 | AW130: 0 | AX130: FINALIZADO | AY130: 1 | AZ130: 1 | BA130: EN 2018 SE MODIFICA EL CÓDIGO DE ACTIVIDAD DE LA APERTURA PROGRAMÁTICA DE 5 A 77, UG DE 96 A 2 Y FF DE 11 A 22. EL PROYECTO TAMBIÉN SERÁ FINANCIADO CON RECURSOS PROPIOS DE AYSA
B131: 5290 | C131: 1. ESTADO NACIONAL | D131: 06. PLAN SANITARIO DE EMERGENCIA | E131: GRANDES OBRAS DE INFRAESTRUCTURA | F131: OBRA PRETRATAMIENTO SIST. BERAZATEGUI | G131: EQUIPOS | H131: 2 | I131: 91. OBLIGACIONES DEL TESORO | J131: 356 | K131: AYSA | L131: 95. ASISTENCIA FINANCIERA A EMPRESAS PÚBLICAS Y ENTE BINACIONAL | M131: 5 | N131: 1355901 | O131: 5 | P131: - | Q131: 11 | R131: 5 | S131: 5 | T131: 7 | U131: 753 | V131: 3 | W131: 8 | X131: 96 | Y131: 2 | Z131: SIN P3 | AA131: - | AB131: BERAZATEGUI | AC131: BERAZATEGUI | AD131: PLANTA PRETRATAMIENTO BERAZATEGUI - CALLE 14 Y EL RÍO DE LA PLATA - BERAZATEGUI | AE131: 2014-01-02 | AF131: 2015-12-31 | AG131: 2420000 | AH131: 0 | AI131: -440017.468 | AJ131: 1979982.532 | AK131: - | AL131: - | AM131: - | AN131: - | AO131: - | AP131: 1159435.6 | AQ131: 820546.9316 | AR131: 0 | AS131: 73689 | AT131: 0 | AU131: -48726.7 | AV131: 0 | AW131: 0 | AX131: EN EJECUCIÓN | AY131: 1.037216995 | AZ131: 1 | BA131: -
B132: 5294 | C132: 1. ESTADO NACIONAL | D132: 09. EXPANSIÓN DE LA RED DE AGUA POTABLE Y SANEAMIENTO DE CLOACAS | E132: GRANDES OBRAS DE INFRAESTRUCTURA DE AGUA | F132: PLANTA POTABILIZADORA EZEIZA | G132: PLANTA DE TRATAMIENTO DE AGUA CON REMOCION DE ARSENICO POR ADSORCION BATERIA EZEIZA. O. CIVIL | H132: 2 | I132: 30. MINISTERIO DEL INTERIOR, OBRAS PÚBLICAS Y VIVIENDA | J132: 325 | K132: AYSA | L132: 94. ASISTENCIA FINANCIERA A EMPRESAS PÚBLICAS Y ENTE BINACIONAL | M132: - | N132: 1360C05 | O132: 11 | P132: - | Q132: 22 | R132: 5 | S132: 5 | T132: 7 | U132: 753 | V132: 3 | W132: 8 | X132: 6 | Y132: 2 | Z132: SAE00910 | AA132: - | AB132: EZEIZA | AC132: EZEIZA | AD132: CALLE MAIPÚ, E/ EDUARDO GUTIÉRREZ (FFCCGB) Y LAS HERAS | AE132: 2014-08-11 | AF132: 2017-12-10 | AG132: 16369933.84 | AH132: 9216425.9 | AI132: 0 | AJ132: 25586359.74 | AK132: 0 | AL132: 0 | AM132: 0 | AN132: 0 | AO132: 0 | AP132: 9934352.41 | AQ132: 9741638.43 | AR132: 14286201.24 | AS132: -2477680.78 | AT132: 1047519.21 | AU132: 2045196.32 | AV132: 0 | AW132: 0 | AX132: FINALIZADO | AY132: 1 | AZ132: 1 | BA132: REEMPLAZA PROYECTO 1160C12. MONTO VIGENTE Y GRADO DE AVANCE ECONÓMICO, SE CONSIDERAN SOLO PARTIDAS CONTRACTUALES
B133: 5295 | C133: 1. ESTADO NACIONAL | D133: 09. EXPANSIÓN DE LA RED DE AGUA POTABLE Y SANEAMIENTO DE CLOACAS | E133: GRANDES OBRAS DE INFRAESTRUCTURA DE AGUA | F133: PLANTA POTABILIZADORA EZEIZA | G133: PLANTA DE TRATAMIENTO DE AGUA CON REMOCION DE ARSENICO POR ADSORCION BATERIA EZEIZA. O. CIVIL | H133: 2 | I133: 91. OBLIGACIONES DEL TESORO | J133: 356 | K133: AYSA | L133: 95. ASISTENCIA FINANCIERA A EMPRESAS PÚBLICAS Y ENTE BINACIONAL | M133: 5 | N133: 1360C05 | O133: 77 | P133: - | Q133: 22 Y RECURSOS PROPIOS | R133: 5 | S133: 5 | T133: 7 | U133: 753 | V133: 3 | W133: 8 | X133: 2 | Y133: 2 | Z133: SAE00910 | AA133: - | AB133: EZEIZA | AC133: EZEIZA | AD133: CALLE MAIPÚ, E/ EDUARDO GUTIÉRREZ (FFCCGB) Y LAS HERAS | AE133: 2014-08-11 | AF133: 2017-12-10 | AG133: 3437686.106 | AH133: 1935449.44 | AI133: 0 | AJ133: 5373135.546 | AK133: 0 | AL133: 0 | AM133: 0 | AN133: 0 | AO133: 0 | AP133: 2086214.006 | AQ133: 2045744.07 | AR133: 3000102.26 | AS133: -520312.9638 | AT133: 219979.0341 | AU133: 429491.2272 | AV133: 0 | AW133: 0 | AX133: FINALIZADO | AY133: 1 | AZ133: 1 | BA133: REEMPLAZA PROYECTO 1160C12. MONTO VIGENTE Y GRADO DE AVANCE ECONÓMICO, SE CONSIDERAN SOLO PARTIDAS CONTRACTUALES. EN 2018 SE MODIFICA EL CÓDIGO DE ACTIVIDAD DE LA APERTURA PROGRAMÁTICA DE 5 A 77, UG DE 96 A 2 Y FF DE 11 A 22. EL PROYECTO TAMBIÉN SERÁ FINANCIADO CON RECURSOS PROPIOS DE AYSA
B134: 5296 | C134: 1. ESTADO NACIONAL | D134: 09. EXPANSIÓN DE LA RED DE AGUA POTABLE Y SANEAMIENTO DE CLOACAS | E134: GRANDES OBRAS DE INFRAESTRUCTURA DE AGUA | F134: SISTEMA AGUA EZEIZA | G134: PLANTA DE TRATAMIENTO DE AGUA CON REMOCION DE ARSENICO POR ADSORCION BATERIA EZEIZA. O. CIVIL | H134: 2 | I134: 91. OBLIGACIONES DEL TESORO | J134: 356 | K134: AYSA | L134: 95. ASISTENCIA FINANCIERA A EMPRESAS PÚBLICAS Y ENTE BINACIONAL | M134: 5 | N134: 1360C05 | O134: 77 | P134: - | Q134: 22 Y RECURSOS PROPIOS | R134: 5 | S134: 5 | T134: 7 | U134: 753 | V134: 3 | W134: 8 | X134: 2 | Y134: 2 | Z134: SAE00910 | AA134: - | AB134: EZEIZA | AC134: EZEIZA | AD134: CALLE MAIPÚ, E/ EDUARDO GUTIÉRREZ (FFCCGB) Y LAS HERAS | AE134: 2014-08-11 | AF134: 2017-12-10 | AG134: 245549.01 | AH134: 28712825.07 | AI134: 0 | AJ134: 28958374.08 | AK134: 0 | AL134: 0 | AM134: 0 | AN134: 0 | AO134: 0 | AP134: 362171.2831 | AQ134: 121736.285 | AR134: 0 | AS134: 14575437.9 | AT134: 4380785.616 | AU134: 0 | AV134: 6050000 | AW134: 0 | AX134: FINALIZADO | AY134: 1 | AZ134: 1 | BA134: SE CAMBIÓ CÓDIGO DE ACTIVIDAD. REEMPLAZA PROYECTO 1160C12. MONTO VIGENTE Y GRADO DE AVANCE ECONÓMICO, SE CONSIDERAN SOLO PARTIDAS CONTRACTUALES. EN 2018 SE MODIFICA EL CÓDIGO DE ACTIVIDAD DE LA APERTURA PROGRAMÁTICA DE 5 A 77, UG DE 96 A 2 Y FF DE 11 A 22. EL PROYECTO TAMBIÉN SERÁ FINANCIADO CON RECURSOS PROPIOS DE AYSA
B135: 5297 | C135: 1. ESTADO NACIONAL | D135: 09. EXPANSIÓN DE LA RED DE AGUA POTABLE Y SANEAMIENTO DE CLOACAS | E135: GRANDES OBRAS DE INFRAESTRUCTURA DE AGUA | F135: PLANTA POTABILIZADORA EZEIZA | G135: PLANTA DE TRATAMIENTO DE AGUA CON REMOCION DE ARSENICO POR ADSORCION BATERIA EZEIZA. O. ELECTROMECANICA | H135: 2 | I135: 30. MINISTERIO DEL INTERIOR, OBRAS PÚBLICAS Y VIVIENDA | J135: 325 | K135: AYSA | L135: 94. ASISTENCIA FINANCIERA A EMPRESAS PÚBLICAS Y ENTE BINACIONAL | M135: - | N135: 1360C06 | O135: 11 | P135: - | Q135: 22 | R135: 5 | S135: 5 | T135: 7 | U135: 753 | V135: 3 | W135: 8 | X135: 6 | Y135: 2 | Z135: SAE00920 | AA135: - | AB135: EZEIZA | AC135: EZEIZA | AD135: CALLE MAIPÚ, E/ EDUARDO GUTIÉRREZ (FFCCGB) Y LAS HERAS | AE135: 2014-08-11 | AF135: 2017-12-10 | AG135: 33857043.95 | AH135: 32406844.48 | AI135: 0 | AJ135: 66263888.43 | AK135: 0 | AL135: 0 | AM135: 0 | AN135: 0 | AO135: 0 | AP135: 986866.45 | AQ135: 10878748.76 | AR135: 7836789.52 | AS135: 69288109.03 | AT135: 898212.18 | AU135: 5546750.61 | AV135: 0 | AW135: 0 | AX135: FINALIZADO | AY135: 0.98 | AZ135: 1 | BA135: REEMPLAZA PROYECTO 1160C12. MONTO VIGENTE Y GRADO DE AVANCE ECONÓMICO, SE CONSIDERAN SOLO PARTIDAS CONTRACTUALES
B136: 5298 | C136: 1. ESTADO NACIONAL | D136: 09. EXPANSIÓN DE LA RED DE AGUA POTABLE Y SANEAMIENTO DE CLOACAS | E136: GRANDES OBRAS DE INFRAESTRUCTURA DE AGUA | F136: PLANTA POTABILIZADORA EZEIZA | G136: PLANTA DE TRATAMIENTO DE AGUA CON REMOCION DE ARSENICO POR ADSORCION BATERIA EZEIZA. O. ELECTROMECANICA | H136: 2 | I136: 91. OBLIGACIONES DEL TESORO | J136: 356 | K136: AYSA | L136: 95. ASISTENCIA FINANCIERA A EMPRESAS PÚBLICAS Y ENTE BINACIONAL | M136: 5 | N136: 1360C06 | O136: 77 | P136: - | Q136: 22 Y RECURSOS PROPIOS | R136: 5 | S136: 5 | T136: 7 | U136: 753 | V136: 3 | W136: 8 | X136: 2 | Y136: 2 | Z136: SAE00920 | AA136: - | AB136: EZEIZA | AC136: EZEIZA | AD136: CALLE MAIPÚ, E/ EDUARDO GUTIÉRREZ (FFCCGB) Y LAS HERAS | AE136: 2014-08-11 | AF136: 2017-12-10 | AG136: 7109979.23 | AH136: 6805437.34 | AI136: 0 | AJ136: 13915416.57 | AK136: 0 | AL136: 0 | AM136: 0 | AN136: 0 | AO136: 0 | AP136: 207241.9545 | AQ136: 2284537.24 | AR136: 1645725.799 | AS136: 14550502.9 | AT136: 188624.5578 | AU136: 1164817.628 | AV136: 0 | AW136: 0 | AX136: FINALIZADO | AY136: 0.98 | AZ136: 1 | BA136: REEMPLAZA PROYECTO 1160C12. MONTO VIGENTE Y GRADO DE AVANCE ECONÓMICO, SE CONSIDERAN SOLO PARTIDAS CONTRACTUALES. EN 2018 SE MODIFICA EL CÓDIGO DE ACTIVIDAD DE LA APERTURA PROGRAMÁTICA DE 5 A 77, UG DE 96 A 2 Y FF DE 11 A 22. EL PROYECTO TAMBIÉN SERÁ FINANCIADO CON RECURSOS PROPIOS DE AYSA
B137: 5299 | C137: 1. ESTADO NACIONAL | D137: 09. EXPANSIÓN DE LA RED DE AGUA POTABLE Y SANEAMIENTO DE CLOACAS | E137: GRANDES OBRAS DE INFRAESTRUCTURA DE AGUA | F137: SISTEMA AGUA EZEIZA | G137: PLANTA DE TRATAMIENTO DE AGUA CON REMOCION DE ARSENICO POR ADSORCION BATERIA EZEIZA. O. ELECTROMECANICA | H137: 2 | I137: 91. OBLIGACIONES DEL TESORO | J137: 356 | K137: AYSA | L137: 95. ASISTENCIA FINANCIERA A EMPRESAS PÚBLICAS Y ENTE BINACIONAL | M137: 5 | N137: 1360C06 | O137: 77 | P137: - | Q137: 22 Y RECURSOS PROPIOS | R137: 5 | S137: 5 | T137: 7 | U137: 753 | V137: 3 | W137: 8 | X137: 2 | Y137: 2 | Z137: SAE00920 | AA137: - | AB137: EZEIZA | AC137: EZEIZA | AD137: CALLE MAIPÚ, E/ EDUARDO GUTIÉRREZ (FFCCGB) Y LAS HERAS | AE137: 2014-08-11 | AF137: 2017-12-10 | AG137: 507855.66 | AH137: 121949758.8 | AI137: 0 | AJ137: 122457614.4 | AK137: 0 | AL137: 0 | AM137: 0 | AN137: 0 | AO137: 0 | AP137: 0 | AQ137: 0 | AR137: 0 | AS137: 32581923.43 | AT137: 54625100.7 | AU137: 0 | AV137: 6050000 | AW137: 0 | AX137: FINALIZADO | AY137: 0.98 | AZ137: 1 | BA137: REEMPLAZA PROYECTO 1160C12. MONTO VIGENTE Y GRADO DE AVANCE ECONÓMICO, SE CONSIDERAN SOLO PARTIDAS CONTRACTUALES. EN 2018 SE MODIFICA EL CÓDIGO DE ACTIVIDAD DE LA APERTURA PROGRAMÁTICA DE 5 A 77, UG DE 96 A 2 Y FF DE 11 A 22. EL PROYECTO TAMBIÉN SERÁ FINANCIADO CON RECURSOS PROPIOS DE AYSA
B138: 5300 | C138: 1. ESTADO NACIONAL | D138: 09. EXPANSIÓN DE LA RED DE AGUA POTABLE Y SANEAMIENTO DE CLOACAS | E138: EXPANSIÓN DE REDES DE AGUA | F138: REDES DE AGUA LA MATANZA | G138: PLAN AYSA A+T D.R OESTE - LA MATANZA | H138: 2 | I138: 91. OBLIGACIONES DEL TESORO | J138: 356 | K138: AYSA | L138: 95. ASISTENCIA FINANCIERA A EMPRESAS PÚBLICAS Y ENTE BINACIONAL | M138: 5 | N138: 1448408 | O138: 77 | P138: - | Q138: 22 Y RECURSOS PROPIOS | R138: 5 | S138: 5 | T138: 7 | U138: 753 | V138: 3 | W138: 8 | X138: 2 | Y138: 2 | Z138: SIN P3 | AA138: - | AB138: LA MATANZA | AC138: LA MATANZA | AD138: SAN CAYETANO M4 - VINC POZOS LMO77-LMO65-LMO88 | AE138: 2014-09-20 | AF138: 2019-06-30 | AG138: 32206050.68 | AH138: 330547 | AI138: 5134943.993 | AJ138: 37671541.67 | AK138: 0 | AL138: 0 | AM138: 0 | AN138: 0 | AO138: 0 | AP138: 12220277.44 | AQ138: 20375598.25 | AR138: 2562678.31 | AS138: 2189068.027 | AT138: 283082.1499 | AU138: 40837.5 | AV138: 0 | AW138: 0 | AX138: EN EJECUCIÓN | AY138: 1 | AZ138: 1 | BA138: EN 2018 SE MODIFICA EL CÓDIGO DE ACTIVIDAD DE LA APERTURA PROGRAMÁTICA DE 5 A 77, UG DE 96 A 2 Y FF DE 11 A 22. EL PROYECTO TAMBIÉN SERÁ FINANCIADO CON RECURSOS PROPIOS DE AYSA
B139: 5364 | C139: 3. CABA | D139: 12. LIMPIEZA DE MÁRGENES Y CAMINO DE SIRGA | E139: ALUMBRADO PÚBLICO | F139: CAMINO DE SIRGA CABA | G139: COSSERVACIÓN DE LA SEÑALIZACIÓN LUMINOSA DE LA CUENCA, CONSIDERANDO LAS DE MAYOR CERCANIA CON EL RIACHUELO Y QUE FAVORECEN A COORDINAR EL TRANSITO EN LA ZONA. | H139: 2 | I139: 30. MINISTERIO DE DESARROLLO URBANO Y TRANSPORTE | J139: - | K139: 0. MINISTERIO DE DESARROLLO URBANO Y TRANSPORTE | L139: 92. SEÑALIZACIÓN LUMINOSA | M139: 0. SEÑALIZACIÓN LUMINOSA | N139: 60. A.CU.MAR - CENTRO DE CONTROL CENTRALIZADO DE TRANSITO | O139: 0. A.CU.MAR - CENTRO DE CONTROL CENTRALIZADO DE TRANSITO | P139: 51. CONSERVACION FUNCIONAMIENTO DE SEÑALES LUMINOSA | Q139: 11 | R139: 4 | S139: 2 | T139: 2 | U139: 0 | V139: 4 | W139: 3 | X139: 9 | Y139: 1 | Z139: CONSERVACIÓN DE LA SEÑALIZACIÓN LUMINOSA | AA139: 324. DIRECCIÓN GENERAL DE TRÁNSITO | AB139: CABA | AC139: 9 Y 10 | AD139: COMUNA 9-10 | AE139: 2012-02-01 | AF139: 2017-02-28 | AG139: 6247172.94 | AH139: 0 | AI139: 0 | AJ139: 6247172.94 | AK139: 0 | AL139: 0 | AM139: 0 | AN139: 0 | AO139: 0 | AP139: 2120892 | AQ139: 7505486 | AR139: 25160117.99 | AS139: 11725341.75 | AT139: 0 | AU139: 24037862.95 | AV139: 28013064 | AW139: =VLOOKUP(B139,[11]Hoja1!$A:$AX,50,0) -> 500000 | AX139: EN EJECUCIÓN | AY139: 1 | AZ139: 0.14 | BA139: -
B140: 5371 | C140: 3. CABA | D140: 12. LIMPIEZA DE MÁRGENES Y CAMINO DE SIRGA | E140: LIMPIEZA DE MÁRGENES Y ARROYOS | F140: LIMPIEZA DE MÁRGENES | G140: RECOLECCION Y LIMPIEZA DEL RIACHUELO | H140: 2 | I140: 35. MINISTERIO DE AMBIENTE Y ESPACIO PÚBLICO | J140: - | K140: 0. MINISTERIO DE AMBIENTE Y ESPACIO PÚBLICO | L140: 52. SERVICIOS DE HIGIENE URBANA | M140: 0. SERVICIOS DE HIGIENE URBANA | N140: 60. A.CU.MAR - RIACHUELO | O140: 0. A.CU.MAR - RIACHUELO | P140: 51. RECOLECIION Y LIMPIEZA DEL RIACHUELO | Q140: 11 | R140: 3 | S140: 3 | T140: 8 | U140: 0 | V140: 4 | W140: 9 | X140: 4 | Y140: 1 | Z140: RECOLECCIÓN DE RESIDUOS | AA140: 8737. DIRECCIÓN GENERAL DE LIMPIEZA | AB140: CABA | AC140: 4 | AD140: COMUNA 4 | AE140: 2015-05-10 | AF140: 2023-05-10 | AG140: 49291056 | AH140: 0 | AI140: 0 | AJ140: 49291056 | AK140: 0 | AL140: 0 | AM140: 0 | AN140: 0 | AO140: 0 | AP140: 3301170 | AQ140: 0 | AR140: 724998.17 | AS140: 33162959 | AT140: 14659120.76 | AU140: 24436568.79 | AV140: 43688862 | AW140: =VLOOKUP(B140,[11]Hoja1!$A:$AX,50,0) -> 500000 | AX140: EN EJECUCIÓN | AY140: 1 | AZ140: - | BA140: -
B141: 5390 | C141: 3. CABA | D141: 03. FORTALECIMIENTO INSTITUCIONAL | E141: INSTITUCIONAL CABA | F141: INSTITUCIONAL CABA | G141: UNIDAD DE PROYECTOS ESPECIALES CUMAR ES RESPONSABLE DE ARTICULAR CON LAS DIVERSAS ÁREAS DEL GCBA LAS ACCIONES DESARROLLADAS EN LAS COMUNAS N° 4, 7, 8 Y 9 EN POS DEL SANEAMIENTO DE LA CUENCA MATANZA-RIACHUELO | H141: 2 | I141: 28. MINISTERIO DE GOBIERNO | J141: - | K141: 0. MINISTERIO DE GOBIERNO | L141: 77. UNIDAD PROYECTOS ESPECIALES CUENCA MATANZA-RIACHUELO | M141: 0. UNIDAD PROYECTOS ESPECIALES CUENCA MATANZA-RIACHUELO | N141: 0. UNIDAD PROYECTOS ESPECIALES CUENCA MATANZA-RIACHUELO | O141: 60. COORDINACIÓN CUMAR CABA | P141: 0. COORDINACIÓN CUMAR CABA | Q141: 11 | R141: 3 | S141: 5 | T141: 3 | U141: 0 | V141: 3 | W141: 2 | X141: 1 | Y141: 1 | Z141: ACCIONES DE COORDINACIÓN INTERMINISTERIAL | AA141: 5013. UNIDAD PROYECTOS ESPECIALES CUENCA MATANZA-RIACHUELO | AB141: CABA | AC141: 4, 7, 8 Y 9 | AD141: COMUNA 4, 7, 8 Y 9 | AE141: - | AF141: - | AG141: - | AH141: - | AI141: - | AJ141: - | AK141: - | AL141: - | AM141: - | AN141: - | AO141: - | AP141: 3127 | AQ141: 7186 | AR141: 2843 | AS141: - | AT141: 0 | AU141: 278920 | AV141: 280000 | AW141: =VLOOKUP(B141,[11]Hoja1!$A:$AX,50,0) -> 0 | AX141: N/A | AY141: - | AZ141: - | BA141: -
B142: 5425 | C142: 4. ACUMAR | D142: 03. FORTALECIMIENTO INSTITUCIONAL | E142: INSTITUCIONAL ACUMAR | F142: INSTITUCIONAL ACUMAR | G142: ADQUISICIÓN DE MOBILIARIOS | H142: - | I142: ACUMAR | J142: - | K142: ACUMAR | L142: FORTALECIMIENTO INSTITUCIONAL | M142: - | N142: - | O142: - | P142: - | Q142: - | R142: - | S142: - | T142: - | U142: - | V142: - | W142: - | X142: - | Y142: - | Z142: - | AA142: - | AB142: CUENCA MATANZA RIACHUELO | AC142: - | AD142: - | AE142: - | AF142: - | AG142: 0 | AH142: 0 | AI142: 0 | AJ142: 0 | AK142: 0 | AL142: 0 | AM142: 0 | AN142: 0 | AO142: 0 | AP142: 252757.22 | AQ142: 390369.85 | AR142: 0 | AS142: 0 | AT142: 284550 | AU142: 0 | AV142: 0 | AW142: 0 | AX142: - | AY142: - | AZ142: - | BA142: -
B143: 5426 | C143: 4. ACUMAR | D143: 03. FORTALECIMIENTO INSTITUCIONAL | E143: INSTITUCIONAL ACUMAR | F143: INSTITUCIONAL ACUMAR | G143: PUBLICACIONES REALIZADAS EN EL BOLETIN OFICIAL- ADQUISICIÓN DE FORMULARIOS | H143: - | I143: ACUMAR | J143: - | K143: ACUMAR | L143: FORTALECIMIENTO INSTITUCIONAL | M143: - | N143: - | O143: - | P143: - | Q143: - | R143: 3 | S143: 5 | T143: 3 | U143: - | V143: - | W143: - | X143: - | Y143: - | Z143: - | AA143: BOLETIN OFICIAL DE LA REP. ARGENTINA- GRAFICA RICCIARDI S.A. | AB143: CUENCA MATANZA RIACHUELO | AC143: - | AD143: - | AE143: 2017-02-21 | AF143: - | AG143: 0 | AH143: 0 | AI143: 0 | AJ143: 0 | AK143: 0 | AL143: 0 | AM143: 0 | AN143: 0 | AO143: 0 | AP143: 218552 | AQ143: 86440 | AR143: 0 | AS143: 552272.04 | AT143: 350317.88 | AU143: 648342.17 | AV143: 0 | AW143: 0 | AX143: - | AY143: - | AZ143: - | BA143: PROYECTO 95
B144: 5435 | C144: 4. ACUMAR | D144: 03. FORTALECIMIENTO INSTITUCIONAL | E144: INSTITUCIONAL ACUMAR | F144: INSTITUCIONAL ACUMAR | G144: CONTRATACION DE UN SERVICIO DE GUARDA, CUSTODIA Y ADMINISTRACION | H144: - | I144: ACUMAR | J144: - | K144: ACUMAR | L144: FORTALECIMIENTO INSTITUCIONAL | M144: - | N144: - | O144: - | P144: - | Q144: - | R144: - | S144: - | T144: - | U144: - | V144: - | W144: - | X144: - | Y144: - | Z144: - | AA144: - | AB144: CUENCA MATANZA RIACHUELO | AC144: - | AD144: - | AE144: - | AF144: - | AG144: 0 | AH144: 0 | AI144: 0 | AJ144: 0 | AK144: 0 | AL144: 0 | AM144: 0 | AN144: 0 | AO144: 0 | AP144: 22901.6 | AQ144: 133200 | AR144: 0 | AS144: 0 | AT144: 1913400 | AU144: 0 | AV144: 0 | AW144: 0 | AX144: - | AY144: - | AZ144: - | BA144: -
B145: 5440 | C145: 4. ACUMAR | D145: 08. URBANIZACIÓN DE VILLAS Y ASENTAMIENTOS URBANOS | E145: CONTINGENCIA EN VILLAS Y ASENTAMIENTOS | F145: DISTRIBUCION DE AGUA VILLA INFLAMABLE | G145: DISTRIBUCION DE AGUA AL BARRIO VILLA INFLAMABLE | H145: 1 | I145: ACUMAR | J145: - | K145: ACUMAR | L145: SOCIAL AMBIENTAL | M145: - | N145: - | O145: - | P145: - | Q145: - | R145: 5 | S145: 7 | T145: 6 | U145: - | V145: - | W145: - | X145: - | Y145: 1 | Z145: - | AA145: MUNICIPALIDAD DE AVELLANEDA/HERMIDA MANUEL PERFECTO | AB145: AVELLANEDA | AC145: - | AD145: - | AE145: 2018-05-10 | AF145: - | AG145: 0 | AH145: 0 | AI145: 0 | AJ145: 0 | AK145: 0 | AL145: 0 | AM145: 0 | AN145: 0 | AO145: 0 | AP145: 1984431.55 | AQ145: 6944409.97 | AR145: 0 | AS145: 0 | AT145: 11442840.95 | AU145: 12220581.21 | AV145: 0 | AW145: 0 | AX145: - | AY145: - | AZ145: - | BA145: PROYECTO 174
B146: 5457 | C146: 1. ESTADO NACIONAL | D146: 06. PLAN SANITARIO DE EMERGENCIA | E146: OBRAS VIALES ESTRATÉGICAS | F146: AUTOPISTA PTE. PERÓN | G146: CAMINO DEL BUEN AYRE TRAMO I - SECCION ACCESO OESTE - ACCESO A Bº 20 DE JUNIO (PONTEVEDRA - PROG 25,55) | H146: 2 | I146: 604. DIRECCIÓN NACIONAL DE VIALIDAD | J146: 604 | K146: DIRECCION NACIONAL DE VIALIDAD | L146: 42. CONSTRUCCIÓN DE AUTOPISTAS Y AUTOVÍAS | M146: 10 | N146: 3 | O146: 0 | P146: 51 | Q146: 15 | R146: 6 | S146: 8 | T146: 7 | U146: 0 | V146: 4 | W146: 3 | X146: 6 | Y146: 1 | Z146: - | AA146: - | AB146: EZEIZA - LA MATANZA - MERLO - PRESIDENTE PERÓN - SAN VICENTE | AC146: EZEIZA - LA MATANZA - MERLO - PRESIDENTE PERÓN - SAN VICENTE | AD146: CAMINO DEL BUEN AYRE | AE146: 2010-03-10 | AF146: 2016-05-31 | AG146: 483287977 | AH146: 2195495999 | AI146: 1551288294 | AJ146: 4230072270 | AK146: 0 | AL146: 0 | AM146: 0 | AN146: 0 | AO146: 0 | AP146: 5963979.4 | AQ146: 0 | AR146: 557839636.7 | AS146: 0 | AT146: 0 | AU146: 40295499.6 | AV146: 0 | AW146: 840870180 | AX146: EN EJECUCIÓN | AY146: 0.1332846297 | AZ146: 0.509 | BA146: Actividad interna DB1. Linea agregada por cambio de Fuente/Inciso. PARTIDA Y PRESUPUESTO INICIAL GLOBAL.
B147: 5458 | C147: 1. ESTADO NACIONAL | D147: 06. PLAN SANITARIO DE EMERGENCIA | E147: OBRAS VIALES ESTRATÉGICAS | F147: AUTOPISTA PTE. PERÓN | G147: CAMINO DEL BUEN AYRE TRAMO II - SECCION ACCESO A Bº 20 DE JUNIO - RUTA PROV.Nº58- PROG. KM53,980) | H147: 2 | I147: 604. DIRECCIÓN NACIONAL DE VIALIDAD | J147: 604 | K147: DIRECCION NACIONAL DE VIALIDAD | L147: 42. CONSTRUCCIÓN DE AUTOPISTAS Y AUTOVÍAS | M147: 10 | N147: 3 | O147: 0 | P147: 51 | Q147: 15 | R147: 6 | S147: 8 | T147: 7 | U147: 0 | V147: 4 | W147: 3 | X147: 6 | Y147: 1 | Z147: - | AA147: - | AB147: EZEIZA - LA MATANZA - MERLO - PRESIDENTE PERÓN - SAN VICENTE | AC147: EZEIZA - LA MATANZA - MERLO - PRESIDENTE PERÓN - SAN VICENTE | AD147: CAMINO DEL BUEN AYRE | AE147: 2010-03-10 | AF147: 2016-07-01 | AG147: 555060595 | AH147: 2564581571 | AI147: 3689609871 | AJ147: 6809252037 | AK147: 0 | AL147: 0 | AM147: 0 | AN147: 0 | AO147: 0 | AP147: 779515.28 | AQ147: 0 | AR147: 117291743 | AS147: 0 | AT147: 0 | AU147: 399697894.2 | AV147: 0 | AW147: 0 | AX147: EN EJECUCIÓN | AY147: 0.01733982788 | AZ147: 0.4254 | BA147: Actividad interna DB3. Linea agregada por cambio de Fuente/Inciso. PARTIDA Y PRESUPUESTO INICIAL GLOBAL.
B148: 5459 | C148: 1. ESTADO NACIONAL | D148: 06. PLAN SANITARIO DE EMERGENCIA | E148: OBRAS VIALES ESTRATÉGICAS | F148: AUTOPISTA PTE. PERÓN | G148: CAMINO DEL BUEN AYRE TRAMO III - SECCION RUTA PROV.Nº58- RUTA PROV.Nº53 (PROG. KM 72,60) | H148: 2 | I148: 604. DIRECCIÓN NACIONAL DE VIALIDAD | J148: 604 | K148: DIRECCION NACIONAL DE VIALIDAD | L148: 42. CONSTRUCCIÓN DE AUTOPISTAS Y AUTOVÍAS | M148: 10 | N148: 3 | O148: 0 | P148: 51 | Q148: 15 | R148: 6 | S148: 8 | T148: 7 | U148: 0 | V148: 4 | W148: 3 | X148: 6 | Y148: 1 | Z148: - | AA148: - | AB148: EZEIZA - LA MATANZA - MERLO - PRESIDENTE PERÓN - SAN VICENTE | AC148: EZEIZA - LA MATANZA - MERLO - PRESIDENTE PERÓN - SAN VICENTE | AD148: CAMINO DEL BUEN AYRE | AE148: 2010-03-11 | AF148: 2016-07-01 | AG148: 318183735 | AH148: 1696476940 | AI148: 1863528843 | AJ148: 3878189518 | AK148: 0 | AL148: 0 | AM148: 0 | AN148: 0 | AO148: 0 | AP148: 7041469.64 | AQ148: 0 | AR148: 67688757.06 | AS148: 0 | AT148: 0 | AU148: 40821639.86 | AV148: 0 | AW148: 0 | AX148: EN EJECUCIÓN | AY148: 0.01926935916 | AZ148: 0.335 | BA148: Actividad interna DB2. Linea agregada por cambio de Fuente/Inciso. PARTIDA Y PRESUPUESTO INICIAL GLOBAL.
B149: 5464 | C149: 1. ESTADO NACIONAL | D149: 04. ORDENAMIENTO TERRITORIAL | E149: OBRAS VIALES ESTRATÉGICAS | F149: TRANSBORDADOR NICOLÁS AVELLANEDA | G149: REMOCION DEL GASODUCTO EN EL PUENTE TRANSBORADADOR "NICOLAS AVELLANEDA" TR.: AVELLANEDA - CABA. PCIA. DE BS. AS.- ACUMAR | H149: 2 | I149: 604. DIRECCIÓN NACIONAL DE VIALIDAD | J149: 604 | K149: DIRECCION NACIONAL DE VIALIDAD | L149: 22. CONSTRUCCIONES | M149: 4 | N149: 1 | O149: 0 | P149: 51 | Q149: 15 | R149: 4 | S149: 2 | T149: 2 | U149: 0 | V149: 4 | W149: 3 | X149: 6 | Y149: 1 | Z149: - | AA149: - | AB149: AVELLANEDA-CABA | AC149: AVELLANEDA-CABA | AD149: AVELLANEDA-CABA | AE149: 2014-01-03 | AF149: 2015-01-03 | AG149: 29382258.82 | AH149: 9492933.38 | AI149: 3530753.14 | AJ149: 42405945.34 | AK149: 0 | AL149: 0 | AM149: 0 | AN149: 0 | AO149: 0 | AP149: 8141226.63 | AQ149: 0 | AR149: 4388219.2 | AS149: 0 | AT149: 19841743.21 | AU149: 0 | AV149: 135269 | AW149: 0 | AX149: EN EJECUCIÓN | AY149: 0.7633644005 | AZ149: 1 | BA149: -
B150: 5473 | C150: 1. ESTADO NACIONAL | D150: 09. EXPANSIÓN DE LA RED DE AGUA POTABLE Y SANEAMIENTO DE CLOACAS | E150: GRANDES OBRAS DE INFRAESTRUCTURA CLOACALES | F150: PLANTA DE TRATAMIENTO DE BARROS SUDOESTE | G150: SERVICIOS DE INSPECCIÓN DE OBRA PLANTA DE BARROS EN ESTABLECIMIENTO SUDOESTE (OC402) | H150: 2 | I150: 91. OBLIGACIONES DEL TESORO | J150: 356 | K150: AYSA | L150: 95. ASISTENCIA FINANCIERA A EMPRESAS PÚBLICAS Y ENTE BINACIONAL | M150: 5 | N150: 1461603 | O150: 77 | P150: - | Q150: 22 Y RECURSOS PROPIOS | R150: 5 | S150: 5 | T150: 7 | U150: 753 | V150: 3 | W150: 8 | X150: 2 | Y150: 2 | Z150: OX70001 | AA150: - | AB150: LA MATANZA | AC150: VILLA CELINA | AD150: LA PLANTA SUDOESTE SE ENCUENTRA EN A. M. JANER Y PALPA, ALDO BONZI, PARTIDO DE LA MATANZA. | AE150: 2015-07-01 | AF150: 2020-12-31 | AG150: 10890000 | AH150: 92854014.44 | AI150: 0 | AJ150: 103744014.4 | AK150: 0 | AL150: 0 | AM150: 0 | AN150: 0 | AO150: 0 | AP150: 0 | AQ150: 4961727.404 | AR150: 15028511.2 | AS150: 18679079.94 | AT150: 20903077 | AU150: 2561558.166 | AV150: 29316182.57 | AW150: 36201969.44 | AX150: EN EJECUCIÓN | AY150: 0.5861959836 | AZ150: 0.5861959836 | BA150: POR SER INSPECCIÓN AVANCE FÍSICO = ECONÓMICO. EN 2018 SE MODIFICA EL CÓDIGO DE ACTIVIDAD DE LA APERTURA PROGRAMÁTICA DE 5 A 77, UG DE 96 A 2 Y FF DE 11 A 22. EL PROYECTO TAMBIÉN SERÁ FINANCIADO CON RECURSOS PROPIOS DE AYSA
B151: 5475 | C151: 1. ESTADO NACIONAL | D151: 09. EXPANSIÓN DE LA RED DE AGUA POTABLE Y SANEAMIENTO DE CLOACAS | E151: EXPANSIÓN DE REDES CLOACALES | F151: REDES CLOACALES LANÚS | G151: RED SECUNDARIA CLOACAL INTERNACIONAL SUR | H151: 2 | I151: 91. OBLIGACIONES DEL TESORO | J151: 356 | K151: AYSA | L151: 95. ASISTENCIA FINANCIERA A EMPRESAS PÚBLICAS Y ENTE BINACIONAL | M151: 5 | N151: 1460409 | O151: 77 | P151: - | Q151: 22 Y RECURSOS PROPIOS | R151: 5 | S151: 5 | T151: 7 | U151: 753 | V151: 3 | W151: 8 | X151: 2 | Y151: 2 | Z151: SC670 | AA151: - | AB151: LANÚS | AC151: LANÚS | AD151: EL ÁREA QUE ABARCA LA RED SECUNDARIA ESTÁ COMPRENDIDA POR LAS SIGUIENTES CALLES: URQUIZA, REPÚBLICA DEL LÍBANO, CALLE CONTIGUA A LAS VÍAS DEL FFCC EX ROCA Y PELLEGRINI. | AE151: 2015-10-19 | AF151: 2017-12-20 | AG151: 139030447.8 | AH151: 130337203.6 | AI151: 8035694.886 | AJ151: 277403346.2 | AK151: 0 | AL151: 0 | AM151: 0 | AN151: 0 | AO151: 0 | AP151: 0 | AQ151: 8045972.065 | AR151: 24967029.01 | AS151: 134649401.7 | AT151: 109586024.4 | AU151: 154918.9862 | AV151: 154918.9862 | AW151: 0 | AX151: FINALIZADO | AY151: 1 | AZ151: 1 | BA151: EN 2018 SE MODIFICA EL CÓDIGO DE ACTIVIDAD DE LA APERTURA PROGRAMÁTICA DE 5 A 77, UG DE 96 A 2 Y FF DE 11 A 22. EL PROYECTO TAMBIÉN SERÁ FINANCIADO CON RECURSOS PROPIOS DE AYSA
B152: 5476 | C152: 1. ESTADO NACIONAL | D152: 09. EXPANSIÓN DE LA RED DE AGUA POTABLE Y SANEAMIENTO DE CLOACAS | E152: EXPANSIÓN DE REDES CLOACALES | F152: REDES CLOACALES ACCIONES COMPLEMENTARIAS | G152: TRABAJOS COMPLEMENTARIOS PARA INTERVENCION EN ESTACIONES DE BOMBEO Y VALVULAS REGULADORAS | H152: 2 | I152: 91. OBLIGACIONES DEL TESORO | J152: 356 | K152: AYSA | L152: 95. ASISTENCIA FINANCIERA A EMPRESAS PÚBLICAS Y ENTE BINACIONAL | M152: 5 | N152: 1560301 | O152: 77 | P152: - | Q152: 22 Y RECURSOS PROPIOS | R152: 5 | S152: 5 | T152: 7 | U152: 753 | V152: 3 | W152: 8 | X152: 2 | Y152: 2 | Z152: VX70003 | AA152: - | AB152: AVELLANEDA - LOMAS DE ZAMORA - TIGRE | AC152: VARIOS | AD152: LAS PRINCIPALES OBRAS SE DESARROLLARÁN EN: • EBC RECONQUISTA 1 UBICADA SOBRE LA CALLE CALLAO E/CARRIEGO Y SEGUROLA, PARTIDO DE TIGRE. • EBC AVELLANEDA OESTE UBICADA SOBRE LA CALLE SUSPISICHE N°519 E/SOLIER Y CORDERO, PARTIDO DE AVELLANEDA. • CÁMARA REGULADORA 9 DE ABRIL UBICADA EN POTOSI, E/ ARANA GOIRI Y BUSTOS, PARTIDO DE LOMAS DE ZAMORA. | AE152: 2016-11-01 | AF152: 2020-12-31 | AG152: 42780536.21 | AH152: 26707590.81 | AI152: 3060168.659 | AJ152: 72548295.68 | AK152: 0 | AL152: 0 | AM152: 0 | AN152: 0 | AO152: 0 | AP152: 0 | AQ152: 0 | AR152: 1796969.754 | AS152: 30102167.91 | AT152: 27777068.07 | AU152: 16918794.25 | AV152: 9845818.63 | AW152: 34427.14812 | AX152: EN EJECUCIÓN | AY152: 0.8953884589 | AZ152: 0.9649 | BA152: EN 2018 SE MODIFICA EL CÓDIGO DE ACTIVIDAD DE LA APERTURA PROGRAMÁTICA DE 5 A 77, UG DE 96 A 2 Y FF DE 11 A 22. EL PROYECTO TAMBIÉN SERÁ FINANCIADO CON RECURSOS PROPIOS DE AYSA
B153: 5481 | C153: 1. ESTADO NACIONAL | D153: 09. EXPANSIÓN DE LA RED DE AGUA POTABLE Y SANEAMIENTO DE CLOACAS | E153: GRANDES OBRAS DE INFRAESTRUCTURA CLOACALES | F153: SISTEMA RIACHUELO | G153: ESTACION ELEVADORA DE SALIDA - SISTEMA RIACHUELO OBRA CIVIL | H153: 2 | I153: 91. OBLIGACIONES DEL TESORO | J153: 356 | K153: AYSA | L153: 95. ASISTENCIA FINANCIERA A EMPRESAS PÚBLICAS Y ENTE BINACIONAL | M153: 5 | N153: 1161612 | O153: 77 | P153: - | Q153: 22 Y RECURSOS PROPIOS | R153: 5 | S153: 5 | T153: 7 | U153: 753 | V153: 3 | W153: 8 | X153: 2 | Y153: 2 | Z153: RC004 | AA153: - | AB153: AVELLANEDA | AC153: DOCK SUD | AD153: LAS ESTACIONES DE BOMBEO Y LA PLANTA DE PRETRATAMIENTO SE UBICARÁN EN EL PREDIO DE 450M X 350M DE RELLENO SOBRE LA COSTA DEL RÍO DE LA PLATA EN LA ZONA POR EN LA PORTUARIA EN LAS PROXIMIDADES DE LA ESCOLLERA DE PROPANEROS PARTIDO DE AVELLANEDA. | AE153: 2015-06-15 | AF153: 2021-12-31 | AG153: 42400612 | AH153: 132633730.5 | AI153: 300392777.1 | AJ153: 475427119.6 | AK153: 0 | AL153: 0 | AM153: 0 | AN153: 0 | AO153: 0 | AP153: 7874641.667 | AQ153: 0 | AR153: 0 | AS153: 8962026.886 | AT153: 28612872.29 | AU153: -49171.5565 | AV153: 74476512.34 | AW153: 108000000 | AX153: EN EJECUCIÓN | AY153: 0.09878289196 | AZ153: 0.2085 | BA153: EN 2018 SE MODIFICA EL CÓDIGO DE ACTIVIDAD DE LA APERTURA PROGRAMÁTICA DE 5 A 77, UG DE 96 A 2 Y FF DE 11 A 22. EL PROYECTO TAMBIÉN SERÁ FINANCIADO CON RECURSOS PROPIOS DE AYSA
B154: 5482 | C154: 1. ESTADO NACIONAL | D154: 09. EXPANSIÓN DE LA RED DE AGUA POTABLE Y SANEAMIENTO DE CLOACAS | E154: GRANDES OBRAS DE INFRAESTRUCTURA CLOACALES | F154: SISTEMA RIACHUELO | G154: ESTACION DE SALIDA - SISTEMA RIACHUELO OBRA ELECTROMECANICA | H154: 2 | I154: 91. OBLIGACIONES DEL TESORO | J154: 356 | K154: AYSA | L154: 95. ASISTENCIA FINANCIERA A EMPRESAS PÚBLICAS Y ENTE BINACIONAL | M154: 5 | N154: 1161613 | O154: 77 | P154: - | Q154: 22 Y RECURSOS PROPIOS | R154: 5 | S154: 5 | T154: 7 | U154: 753 | V154: 3 | W154: 8 | X154: 2 | Y154: 2 | Z154: RC004 | AA154: - | AB154: AVELLANEDA | AC154: DOCK SUD | AD154: LAS ESTACIONES DE BOMBEO Y LA PLANTA DE PRETRATAMIENTO SE UBICARÁN EN EL PREDIO DE 450M X 350M DE RELLENO SOBRE LA COSTA DEL RÍO DE LA PLATA EN LA ZONA POR EN LA PORTUARIA EN LAS PROXIMIDADES DE LA ESCOLLERA DE PROPANEROS PARTIDO DE AVELLANEDA. | AE154: 2015-06-15 | AF154: 2021-12-31 | AG154: 204477790 | AH154: 639628789 | AI154: 601982319.9 | AJ154: 1446088899 | AK154: 0 | AL154: 0 | AM154: 0 | AN154: 0 | AO154: 0 | AP154: 37975615.2 | AQ154: 0 | AR154: 0 | AS154: 0 | AT154: 0 | AU154: 0 | AV154: 280834784.5 | AW154: 830000000 | AX154: EN EJECUCIÓN | AY154: 0.0262609133 | AZ154: 0 | BA154: EN 2018 SE MODIFICA EL CÓDIGO DE ACTIVIDAD DE LA APERTURA PROGRAMÁTICA DE 5 A 77, UG DE 96 A 2 Y FF DE 11 A 22. EL PROYECTO TAMBIÉN SERÁ FINANCIADO CON RECURSOS PROPIOS DE AYSA
B155: 5483 | C155: 1. ESTADO NACIONAL | D155: 09. EXPANSIÓN DE LA RED DE AGUA POTABLE Y SANEAMIENTO DE CLOACAS | E155: GRANDES OBRAS DE INFRAESTRUCTURA CLOACALES | F155: SISTEMA RIACHUELO | G155: ESTACION ELEVADORA DE ENTRADA - SISTEMA RIACHUELO OBRA CIVIL | H155: 2 | I155: 91. OBLIGACIONES DEL TESORO | J155: 356 | K155: AYSA | L155: 95. ASISTENCIA FINANCIERA A EMPRESAS PÚBLICAS Y ENTE BINACIONAL | M155: 5 | N155: 1161610 | O155: 77 | P155: - | Q155: 22 Y RECURSOS PROPIOS | R155: 5 | S155: 5 | T155: 7 | U155: 753 | V155: 3 | W155: 8 | X155: 2 | Y155: 2 | Z155: RC004 | AA155: - | AB155: AVELLANEDA | AC155: DOCK SUD | AD155: LAS ESTACIONES DE BOMBEO Y LA PLANTA DE PRETRATAMIENTO SE UBICARÁN EN EL PREDIO DE 450M X 350M DE RELLENO SOBRE LA COSTA DEL RÍO DE LA PLATA EN LA ZONA POR EN LA PORTUARIA EN LAS PROXIMIDADES DE LA ESCOLLERA DE PROPANEROS PARTIDO DE AVELLANEDA. | AE155: 2015-06-15 | AF155: 2021-12-31 | AG155: 158750246 | AH155: 496588049.7 | AI155: 526532851.7 | AJ155: 1181871147 | AK155: 0 | AL155: 0 | AM155: 0 | AN155: 0 | AO155: 0 | AP155: 29483095.57 | AQ155: 0 | AR155: 35569165.76 | AS155: 33912714.59 | AT155: 23968218.85 | AU155: -31452142.88 | AV155: 169000000 | AW155: 435000000 | AX155: EN EJECUCIÓN | AY155: 0.1071492989 | AZ155: 0 | BA155: EN 2018 SE MODIFICA EL CÓDIGO DE ACTIVIDAD DE LA APERTURA PROGRAMÁTICA DE 5 A 77, UG DE 96 A 2 Y FF DE 11 A 22. EL PROYECTO TAMBIÉN SERÁ FINANCIADO CON RECURSOS PROPIOS DE AYSA
B156: 5484 | C156: 1. ESTADO NACIONAL | D156: 09. EXPANSIÓN DE LA RED DE AGUA POTABLE Y SANEAMIENTO DE CLOACAS | E156: GRANDES OBRAS DE INFRAESTRUCTURA CLOACALES | F156: SISTEMA RIACHUELO | G156: ESTACION DE ENTRADA - SISTEMA RIACHUELO OBRA ELECTROMECANICA | H156: 2 | I156: 91. OBLIGACIONES DEL TESORO | J156: 356 | K156: AYSA | L156: 95. ASISTENCIA FINANCIERA A EMPRESAS PÚBLICAS Y ENTE BINACIONAL | M156: 5 | N156: 1161611 | O156: 77 | P156: - | Q156: 22 Y RECURSOS PROPIOS | R156: 5 | S156: 5 | T156: 7 | U156: 753 | V156: 3 | W156: 8 | X156: 2 | Y156: 2 | Z156: RC004 | AA156: - | AB156: AVELLANEDA | AC156: DOCK SUD | AD156: LAS ESTACIONES DE BOMBEO Y LA PLANTA DE PRETRATAMIENTO SE UBICARÁN EN EL PREDIO DE 450M X 350M DE RELLENO SOBRE LA COSTA DEL RÍO DE LA PLATA EN LA ZONA POR EN LA PORTUARIA EN LAS PROXIMIDADES DE LA ESCOLLERA DE PROPANEROS PARTIDO DE AVELLANEDA. | AE156: 2015-06-15 | AF156: 2021-12-31 | AG156: 286488703 | AH156: 896167849.6 | AI156: 752786814.5 | AJ156: 1935443367 | AK156: 0 | AL156: 0 | AM156: 0 | AN156: 0 | AO156: 0 | AP156: 53206681.8 | AQ156: 0 | AR156: 0 | AS156: 0 | AT156: 0 | AU156: 0 | AV156: 253793465.7 | AW156: 995000000 | AX156: EN EJECUCIÓN | AY156: 0.02749069423 | AZ156: 0 | BA156: EN 2018 SE MODIFICA EL CÓDIGO DE ACTIVIDAD DE LA APERTURA PROGRAMÁTICA DE 5 A 77, UG DE 96 A 2 Y FF DE 11 A 22. EL PROYECTO TAMBIÉN SERÁ FINANCIADO CON RECURSOS PROPIOS DE AYSA
B157: 5511 | C157: 4. ACUMAR | D157: 08. URBANIZACIÓN DE VILLAS Y ASENTAMIENTOS URBANOS | E157: CONTINGENCIA EN VILLAS Y ASENTAMIENTOS | F157: SEGURIDAD VILLA 21-24 | G157: CONTRATACIÓN INTERADMINISTRATIVA PARA LA PRESTACIÓN DEL SERVICIO DE POLICÍA ADICIONAL - PREDIO VILLA 21-24.- | H157: 1 | I157: ACUMAR | J157: - | K157: ACUMAR | L157: ORDENAMIENTO TERRITORIAL | M157: - | N157: - | O157: - | P157: - | Q157: - | R157: - | S157: - | T157: - | U157: - | V157: - | W157: - | X157: - | Y157: - | Z157: - | AA157: - | AB157: CABA | AC157: - | AD157: - | AE157: 2014-07-04 | AF157: 2014-12-31 | AG157: 0 | AH157: 0 | AI157: 0 | AJ157: 0 | AK157: 0 | AL157: 0 | AM157: 0 | AN157: 0 | AO157: 0 | AP157: 1814440 | AQ157: 0 | AR157: 7355892.5 | AS157: 7532286.87 | AT157: 13999043.7 | AU157: 19336993.5 | AV157: 0 | AW157: 0 | AX157: - | AY157: - | AZ157: - | BA157: -
B158: 5526 | C158: 4. ACUMAR | D158: 03. FORTALECIMIENTO INSTITUCIONAL | E158: INSTITUCIONAL ACUMAR | F158: INSTITUCIONAL ACUMAR | G158: ADQUISICION DE EQUIPAMIENTO AUDIOVISUAL DE LA ACUMAR | H158: 1 | I158: ACUMAR | J158: - | K158: ACUMAR | L158: FORTALECIMIENTO INSTITUCIONAL | M158: - | N158: - | O158: - | P158: - | Q158: - | R158: 2 | S158: 9 | T158: 9 | U158: - | V158: - | W158: - | X158: - | Y158: - | Z158: - | AA158: GALZZI S.R.L. | AB158: CUENCA MATANZA RIACHUELO | AC158: - | AD158: - | AE158: 2013-06-04 | AF158: - | AG158: 127931 | AH158: 0 | AI158: 0 | AJ158: 127931 | AK158: 0 | AL158: 0 | AM158: 0 | AN158: 0 | AO158: 0 | AP158: 14205 | AQ158: 0 | AR158: 0 | AS158: 0 | AT158: 349510 | AU158: 220081 | AV158: 0 | AW158: 0 | AX158: - | AY158: - | AZ158: - | BA158: -
B159: 5561 | C159: 1. ESTADO NACIONAL | D159: 08. URBANIZACIÓN DE VILLAS Y ASENTAMIENTOS URBANOS | E159: VIVIENDAS NUEVAS | F159: COMPLEJO BARRIO ALIANZA | G159: Bº ALIANZA - 440 VIVIENDAS SIN INFRA FRENTISTA | H159: 2 | I159: 30. MINISTERIO DEL INTERIOR, OBRAS PÚBLICAS Y VIVIENDA | J159: 325 | K159: SECRETARIA DE VIVIENDA | L159: 71. URBANIZACIÓN DE VILLAS Y ASENTAMIENTOS PRECARIOS. | M159: - | N159: - | O159: 77.VIVIENDAS NUEVAS EN LA CUENCA MATANZA RIACHUELO | P159: 666-15 | Q159: 11 | R159: 5 | S159: 8 | T159: 6 | U159: 0 | V159: - | W159: - | X159: - | Y159: - | Z159: - | AA159: - | AB159: AVELLANEDA | AC159: - | AD159: - | AE159: - | AF159: - | AG159: 0 | AH159: 0 | AI159: 0 | AJ159: 229702869 | AK159: 0 | AL159: 0 | AM159: 0 | AN159: 0 | AO159: 0 | AP159: 0 | AQ159: 0 | AR159: 11521416.05 | AS159: 19060105.12 | AT159: 0 | AU159: 0 | AV159: 93167418.88 | AW159: 0 | AX159: EN EJECUCIÓN | AY159: 0.27 | AZ159: 0.08 | BA159: INCLUIDO EN CONVENIO MARCO 17771
B160: 5573 | C160: 1. ESTADO NACIONAL | D160: 08. URBANIZACIÓN DE VILLAS Y ASENTAMIENTOS URBANOS | E160: MEJORAMIENTOS DE VIVIENDA EXISTENTE | F160: BARRIO 7 DE ENERO | G160: Bº 7 DE ENERO - 100 MEJORAMIENTOS | H160: 2 | I160: 30. MINISTERIO DEL INTERIOR, OBRAS PÚBLICAS Y VIVIENDA | J160: 354 | K160: SECRETARIA DE VIVIENDA | L160: 46. URBANIZACIÓN DE VILLAS Y ASENTAMIENTOS PRECARIOS. | M160: - | N160: - | O160: 77.VIVIENDAS NUEVAS EN LA CUENCA MATANZA RIACHUELO | P160: 2349558-16 | Q160: 11 | R160: 5 | S160: 8 | T160: 6 | U160: 0 | V160: - | W160: - | X160: - | Y160: - | Z160: - | AA160: - | AB160: AVELLANEDA | AC160: - | AD160: - | AE160: - | AF160: - | AG160: 0 | AH160: 0 | AI160: 0 | AJ160: 20460000 | AK160: 0 | AL160: 0 | AM160: 0 | AN160: 0 | AO160: 0 | AP160: 0 | AQ160: 0 | AR160: 0 | AS160: 0 | AT160: 5060574.96 | AU160: 0 | AV160: 0 | AW160: 0 | AX160: - | AY160: 0 | AZ160: 0 | BA160: INCLUIDO EN CONVENIO MARCO 17771
B161: 5579 | C161: 1. ESTADO NACIONAL | D161: 08. URBANIZACIÓN DE VILLAS Y ASENTAMIENTOS URBANOS | E161: VIVIENDAS NUEVAS | F161: COMPLEJO BARRIO VILLA AZUL | G161: Bº VILLA AZUL - 22 VIV (EX 100) | H161: 2 | I161: 30. MINISTERIO DEL INTERIOR, OBRAS PÚBLICAS Y VIVIENDA | J161: 354 | K161: SECRETARIA DE VIVIENDA | L161: 46. URBANIZACIÓN DE VILLAS Y ASENTAMIENTOS PRECARIOS. | M161: - | N161: - | O161: 77.VIVIENDAS NUEVAS EN LA CUENCA MATANZA RIACHUELO | P161: 2093-15 | Q161: 11 | R161: 5 | S161: 8 | T161: 6 | U161: 0 | V161: - | W161: - | X161: - | Y161: - | Z161: - | AA161: - | AB161: AVELLANEDA | AC161: - | AD161: - | AE161: - | AF161: - | AG161: 0 | AH161: 0 | AI161: 0 | AJ161: 16015742.5 | AK161: 0 | AL161: 0 | AM161: 0 | AN161: 0 | AO161: 0 | AP161: 0 | AQ161: 0 | AR161: 0 | AS161: 0 | AT161: 4426601.07 | AU161: 9552085.41 | AV161: 4452086.17 | AW161: 0 | AX161: - | AY161: 0 | AZ161: 0 | BA161: INCLUIDO EN CONVENIO MARCO 17771
B162: 5583 | C162: 1. ESTADO NACIONAL | D162: 08. URBANIZACIÓN DE VILLAS Y ASENTAMIENTOS URBANOS | E162: MEJORAMIENTOS DE VIVIENDA EXISTENTE | F162: BARRIO ALIANZA | G162: Bº ALIANZA - INFRA FRENTISTA PARA 440 VIVIENDAS | H162: 2 | I162: 30. MINISTERIO DEL INTERIOR, OBRAS PÚBLICAS Y VIVIENDA | J162: 354 | K162: SECRETARIA DE VIVIENDA | L162: 46. URBANIZACIÓN DE VILLAS Y ASENTAMIENTOS PRECARIOS. | M162: - | N162: - | O162: 79. INFRAESTRUCTURA, NEXOS Y OBRAS COMPLEMENTARIAS EN LA CUENCA MATANZA RIACHUELO. | P162: 2727457-16 | Q162: 11 | R162: 5 | S162: 8 | T162: 6 | U162: 0 | V162: - | W162: - | X162: - | Y162: - | Z162: - | AA162: - | AB162: AVELLANEDA | AC162: - | AD162: - | AE162: - | AF162: - | AG162: 0 | AH162: 0 | AI162: 0 | AJ162: 31431873.01 | AK162: 0 | AL162: 0 | AM162: 0 | AN162: 0 | AO162: 0 | AP162: 0 | AQ162: 0 | AR162: 0 | AS162: 0 | AT162: 0 | AU162: 0 | AV162: 3311410.336 | AW162: 0 | AX162: - | AY162: 0 | AZ162: 0 | BA162: INCLUIDO EN CONVENIO MARCO 17771
B163: 5605 | C163: 1. ESTADO NACIONAL | D163: 08. URBANIZACIÓN DE VILLAS Y ASENTAMIENTOS URBANOS | E163: VIVIENDAS NUEVAS | F163: COMPLEJO BARRIO MONTECARLO | G163: Bº MONTECARLO - AMPLIAC CONTR PARA 240 VIV | H163: 2 | I163: 30. MINISTERIO DEL INTERIOR, OBRAS PÚBLICAS Y VIVIENDA | J163: 354 | K163: SECRETARIA DE VIVIENDA | L163: 46. URBANIZACIÓN DE VILLAS Y ASENTAMIENTOS PRECARIOS. | M163: - | N163: - | O163: 79. INFRAESTRUCTURA, NEXOS Y OBRAS COMPLEMENTARIAS EN LA CUENCA MATANZA RIACHUELO. | P163: 667-15 | Q163: 11 | R163: 5 | S163: 8 | T163: 6 | U163: 0 | V163: - | W163: - | X163: - | Y163: - | Z163: - | AA163: - | AB163: ESTEBAN ECHEVERRÍA | AC163: ESTEBAN ECHEVERRÍA | AD163: - | AE163: - | AF163: - | AG163: 0 | AH163: 0 | AI163: 0 | AJ163: 2002833.9 | AK163: 0 | AL163: 0 | AM163: 0 | AN163: 0 | AO163: 0 | AP163: 0 | AQ163: 0 | AR163: 0 | AS163: 0 | AT163: 0 | AU163: 4613819.47 | AV163: 7145043.4 | AW163: 0 | AX163: - | AY163: 0 | AZ163: 0 | BA163: INCLUIDO EN CONVENIO MARCO 17771
B164: 5607 | C164: 1. ESTADO NACIONAL | D164: 08. URBANIZACIÓN DE VILLAS Y ASENTAMIENTOS URBANOS | E164: ENTUBAMIENTOS | F164: ENTUBAMIENTO DEL ARROYO ORTEGA | G164: Bº MONTECARLO - ENTUBAMIENTO DE ARROYO ORTEGA | H164: 2 | I164: 30. MINISTERIO DEL INTERIOR, OBRAS PÚBLICAS Y VIVIENDA | J164: 354 | K164: SECRETARIA DE VIVIENDA | L164: 46. URBANIZACIÓN DE VILLAS Y ASENTAMIENTOS PRECARIOS. | M164: - | N164: - | O164: 79. INFRAESTRUCTURA, NEXOS Y OBRAS COMPLEMENTARIAS EN LA CUENCA MATANZA RIACHUELO. | P164: 1051-15 | Q164: 11 | R164: 5 | S164: 8 | T164: 6 | U164: 0 | V164: - | W164: - | X164: - | Y164: - | Z164: - | AA164: - | AB164: ESTEBAN ECHEVERRÍA | AC164: - | AD164: - | AE164: - | AF164: - | AG164: 0 | AH164: 0 | AI164: 0 | AJ164: 52570254.62 | AK164: 0 | AL164: 0 | AM164: 0 | AN164: 0 | AO164: 0 | AP164: 0 | AQ164: 0 | AR164: 0 | AS164: 1297464.81 | AT164: 0 | AU164: 12707214.98 | AV164: 759792.53 | AW164: 0 | AX164: - | AY164: 0 | AZ164: 0 | BA164: INCLUIDO EN CONVENIO MARCO 17771
B165: 5609 | C165: 1. ESTADO NACIONAL | D165: 08. URBANIZACIÓN DE VILLAS Y ASENTAMIENTOS URBANOS | E165: VIVIENDAS NUEVAS | F165: COMPLEJO BARRIO JUAN PABLO II | G165: Bº JUAN PABLO II - GRUPO I - 238 VIV MAS OBRAS COMPLEMENTARIAS | H165: 2 | I165: 30. MINISTERIO DEL INTERIOR, OBRAS PÚBLICAS Y VIVIENDA | J165: 354 | K165: SECRETARIA DE VIVIENDA | L165: 46. URBANIZACIÓN DE VILLAS Y ASENTAMIENTOS PRECARIOS. | M165: - | N165: - | O165: 77.VIVIENDAS NUEVAS EN LA CUENCA MATANZA RIACHUELO | P165: 259-15 | Q165: 11 | R165: 5 | S165: 8 | T165: 6 | U165: 0 | V165: - | W165: - | X165: - | Y165: - | Z165: - | AA165: - | AB165: ESTEBAN ECHEVERRÍA | AC165: ESTEBAN ECHEVERRÍA | AD165: - | AE165: - | AF165: - | AG165: 0 | AH165: 0 | AI165: 0 | AJ165: 144640633.4 | AK165: 0 | AL165: 0 | AM165: 0 | AN165: 0 | AO165: 0 | AP165: 0 | AQ165: 0 | AR165: 0 | AS165: 82445830.28 | AT165: 0 | AU165: 23350919.95 | AV165: 91619918.43 | AW165: 0 | AX165: - | AY165: 0 | AZ165: 0 | BA165: INCLUIDO EN CONVENIO MARCO 17771
B166: 5610 | C166: 1. ESTADO NACIONAL | D166: 08. URBANIZACIÓN DE VILLAS Y ASENTAMIENTOS URBANOS | E166: VIVIENDAS NUEVAS | F166: COMPLEJO BARRIO JUAN PABLO II | G166: Bº JUAN PABLO II - GRUPO II - 308 VIV MAS OBRAS COMPLEMENTARIAS | H166: 2 | I166: 30. MINISTERIO DEL INTERIOR, OBRAS PÚBLICAS Y VIVIENDA | J166: 354 | K166: SECRETARIA DE VIVIENDA | L166: 46. URBANIZACIÓN DE VILLAS Y ASENTAMIENTOS PRECARIOS. | M166: - | N166: - | O166: 77.VIVIENDAS NUEVAS EN LA CUENCA MATANZA RIACHUELO | P166: 260/15 | Q166: 11 | R166: 5 | S166: 8 | T166: 6 | U166: 0 | V166: - | W166: - | X166: - | Y166: - | Z166: - | AA166: - | AB166: ESTEBAN ECHEVERRÍA | AC166: ESTEBAN ECHEVERRÍA | AD166: - | AE166: - | AF166: - | AG166: 0 | AH166: 0 | AI166: 0 | AJ166: 188653124.7 | AK166: 0 | AL166: 0 | AM166: 0 | AN166: 0 | AO166: 0 | AP166: 0 | AQ166: 0 | AR166: 0 | AS166: 0 | AT166: 40669285.6 | AU166: 20538269.23 | AV166: 0 | AW166: 0 | AX166: - | AY166: 0 | AZ166: 0 | BA166: INCLUIDO EN CONVENIO MARCO 17771
B167: 5611 | C167: 1. ESTADO NACIONAL | D167: 08. URBANIZACIÓN DE VILLAS Y ASENTAMIENTOS URBANOS | E167: VIVIENDAS NUEVAS | F167: COMPLEJO BARRIO JUAN PABLO II | G167: Bº JUAN PABLO II - 238 VIV | H167: 2 | I167: 30. MINISTERIO DEL INTERIOR, OBRAS PÚBLICAS Y VIVIENDA | J167: 354 | K167: SECRETARIA DE VIVIENDA | L167: 46. URBANIZACIÓN DE VILLAS Y ASENTAMIENTOS PRECARIOS. | M167: - | N167: - | O167: 77.VIVIENDAS NUEVAS EN LA CUENCA MATANZA RIACHUELO | P167: 267-15 | Q167: 11 | R167: 5 | S167: 8 | T167: 6 | U167: 0 | V167: - | W167: - | X167: - | Y167: - | Z167: - | AA167: - | AB167: ESTEBAN ECHEVERRÍA | AC167: ESTEBAN ECHEVERRÍA | AD167: - | AE167: - | AF167: - | AG167: 0 | AH167: 0 | AI167: 0 | AJ167: 144928882.4 | AK167: 0 | AL167: 0 | AM167: 0 | AN167: 0 | AO167: 0 | AP167: 0 | AQ167: 0 | AR167: 0 | AS167: 41438670.06 | AT167: 62756285.66 | AU167: 40151684.24 | AV167: 0 | AW167: 0 | AX167: - | AY167: 0 | AZ167: 0 | BA167: INCLUIDO EN CONVENIO MARCO 17771
B168: 5612 | C168: 1. ESTADO NACIONAL | D168: 08. URBANIZACIÓN DE VILLAS Y ASENTAMIENTOS URBANOS | E168: RED VIAL Y PEATONAL | F168: BARRIO JUAN PABLO II | G168: Bº JUAN PABLO II - INFRA PARA 784 VIV - PAVIMENTO, NEXOS DE AGUA Y CLOACA | H168: 2 | I168: 30. MINISTERIO DEL INTERIOR, OBRAS PÚBLICAS Y VIVIENDA | J168: 354 | K168: SECRETARIA DE VIVIENDA | L168: 46. URBANIZACIÓN DE VILLAS Y ASENTAMIENTOS PRECARIOS. | M168: - | N168: - | O168: 79. INFRAESTRUCTURA, NEXOS Y OBRAS COMPLEMENTARIAS EN LA CUENCA MATANZA RIACHUELO. | P168: 269-15 | Q168: 11 | R168: 5 | S168: 8 | T168: 6 | U168: 0 | V168: - | W168: - | X168: - | Y168: - | Z168: - | AA168: - | AB168: ESTEBAN ECHEVERRÍA | AC168: - | AD168: - | AE168: - | AF168: - | AG168: 0 | AH168: 0 | AI168: 0 | AJ168: 101979120.7 | AK168: 0 | AL168: 0 | AM168: 0 | AN168: 0 | AO168: 0 | AP168: 0 | AQ168: 0 | AR168: 0 | AS168: 0 | AT168: 0 | AU168: 0 | AV168: 23912030.99 | AW168: 0 | AX168: - | AY168: 0 | AZ168: 0 | BA168: INCLUIDO EN CONVENIO MARCO 17771
B169: 5617 | C169: 1. ESTADO NACIONAL | D169: 08. URBANIZACIÓN DE VILLAS Y ASENTAMIENTOS URBANOS | E169: VIVIENDAS NUEVAS | F169: COMPLEJO BARRIO NESTOR KIRCHNER | G169: Bº NESTOR KIRCHNER II ETAPA 102 VIV | H169: 2 | I169: 30. MINISTERIO DEL INTERIOR, OBRAS PÚBLICAS Y VIVIENDA | J169: 354 | K169: SECRETARIA DE VIVIENDA | L169: 46. URBANIZACIÓN DE VILLAS Y ASENTAMIENTOS PRECARIOS. | M169: - | N169: - | O169: 77.VIVIENDAS NUEVAS EN LA CUENCA MATANZA RIACHUELO | P169: 668-15 | Q169: 11 | R169: 5 | S169: 8 | T169: 6 | U169: 0 | V169: - | W169: - | X169: - | Y169: - | Z169: - | AA169: - | AB169: LANÚS | AC169: - | AD169: - | AE169: - | AF169: - | AG169: 0 | AH169: 0 | AI169: 0 | AJ169: 62446444 | AK169: 0 | AL169: 0 | AM169: 0 | AN169: 0 | AO169: 0 | AP169: 0 | AQ169: 0 | AR169: 0 | AS169: 0 | AT169: 0 | AU169: 0 | AV169: 26629729.08 | AW169: 0 | AX169: - | AY169: 0 | AZ169: 0 | BA169: INCLUIDO EN CONVENIO MARCO 17771
B170: 5620 | C170: 1. ESTADO NACIONAL | D170: 08. URBANIZACIÓN DE VILLAS Y ASENTAMIENTOS URBANOS | E170: MEJORAMIENTOS DE VIVIENDA EXISTENTE | F170: COMPLEJO FFMM | G170: PREDIO FFMM INFRA PARA 198 VIV - ETAPA 3 | H170: 2 | I170: 30. MINISTERIO DEL INTERIOR, OBRAS PÚBLICAS Y VIVIENDA | J170: 325 | K170: SECRETARIA DE VIVIENDA | L170: 71. URBANIZACIÓN DE VILLAS Y ASENTAMIENTOS PRECARIOS. | M170: - | N170: - | O170: 79. INFRAESTRUCTURA, NEXOS Y OBRAS COMPLEMENTARIAS EN LA CUENCA MATANZA RIACHUELO. | P170: 424-15 | Q170: 11 | R170: 5 | S170: 8 | T170: 6 | U170: 0 | V170: - | W170: - | X170: - | Y170: - | Z170: - | AA170: - | AB170: LANÚS | AC170: - | AD170: - | AE170: - | AF170: - | AG170: 0 | AH170: 0 | AI170: 0 | AJ170: 17114516.36 | AK170: 0 | AL170: 0 | AM170: 0 | AN170: 0 | AO170: 0 | AP170: 0 | AQ170: 0 | AR170: 0 | AS170: 11262042.6 | AT170: 0 | AU170: 14763118.58 | AV170: 50224868.05 | AW170: 0 | AX170: EN ANÁLISIS | AY170: 0.3 | AZ170: 0.11 | BA170: INCLUIDO EN CONVENIO MARCO 17771
B171: 5622 | C171: 1. ESTADO NACIONAL | D171: 08. URBANIZACIÓN DE VILLAS Y ASENTAMIENTOS URBANOS | E171: VIVIENDAS NUEVAS | F171: COMPLEJO FFMM | G171: PREDIO FFMM 157 VIV + INF - ETAPA 2 | H171: 2 | I171: 30. MINISTERIO DEL INTERIOR, OBRAS PÚBLICAS Y VIVIENDA | J171: 354 | K171: SECRETARIA DE VIVIENDA | L171: 46. URBANIZACIÓN DE VILLAS Y ASENTAMIENTOS PRECARIOS. | M171: - | N171: - | O171: 79. INFRAESTRUCTURA, NEXOS Y OBRAS COMPLEMENTARIAS EN LA CUENCA MATANZA RIACHUELO. | P171: 449-15 | Q171: 11 | R171: 5 | S171: 8 | T171: 6 | U171: 0 | V171: - | W171: - | X171: - | Y171: - | Z171: - | AA171: - | AB171: LANÚS | AC171: - | AD171: - | AE171: - | AF171: - | AG171: 0 | AH171: 0 | AI171: 0 | AJ171: 19979473.76 | AK171: 0 | AL171: 0 | AM171: 0 | AN171: 0 | AO171: 0 | AP171: 0 | AQ171: 0 | AR171: 0 | AS171: 0 | AT171: 61996358.06 | AU171: 146827097.4 | AV171: 112876423.3 | AW171: 0 | AX171: - | AY171: 0 | AZ171: 0 | BA171: INCLUIDO EN CONVENIO MARCO 17771
B172: 5623 | C172: 1. ESTADO NACIONAL | D172: 08. URBANIZACIÓN DE VILLAS Y ASENTAMIENTOS URBANOS | E172: VIVIENDAS NUEVAS | F172: COMPLEJO BARRIO ACUBA | G172: BARRIO ACUBA 111 VIV + INF | H172: 2 | I172: 30. MINISTERIO DEL INTERIOR, OBRAS PÚBLICAS Y VIVIENDA | J172: 354 | K172: SECRETARIA DE VIVIENDA | L172: 46. URBANIZACIÓN DE VILLAS Y ASENTAMIENTOS PRECARIOS. | M172: - | N172: - | O172: 77.VIVIENDAS NUEVAS EN LA CUENCA MATANZA RIACHUELO | P172: 422-15 | Q172: 11 | R172: 5 | S172: 8 | T172: 6 | U172: 0 | V172: - | W172: - | X172: - | Y172: - | Z172: - | AA172: - | AB172: LANÚS | AC172: - | AD172: - | AE172: - | AF172: - | AG172: 0 | AH172: 0 | AI172: 0 | AJ172: 71092196 | AK172: 0 | AL172: 0 | AM172: 0 | AN172: 0 | AO172: 0 | AP172: 0 | AQ172: 0 | AR172: 0 | AS172: 0 | AT172: 0 | AU172: 52181260.6 | AV172: 28814011.78 | AW172: 0 | AX172: - | AY172: 0 | AZ172: 0 | BA172: INCLUIDO EN CONVENIO MARCO 17771
B173: 5625 | C173: 1. ESTADO NACIONAL | D173: 08. URBANIZACIÓN DE VILLAS Y ASENTAMIENTOS URBANOS | E173: VIVIENDAS NUEVAS | F173: COMPLEJO BARRIO ACUBA | G173: BARRIO ACUBA 50 VIV + INF | H173: 2 | I173: 30. MINISTERIO DEL INTERIOR, OBRAS PÚBLICAS Y VIVIENDA | J173: 325 | K173: SECRETARIA DE VIVIENDA | L173: 71. URBANIZACIÓN DE VILLAS Y ASENTAMIENTOS PRECARIOS. | M173: - | N173: - | O173: 77.VIVIENDAS NUEVAS EN LA CUENCA MATANZA RIACHUELO | P173: 448-15 | Q173: 11 | R173: 5 | S173: 8 | T173: 6 | U173: 0 | V173: - | W173: - | X173: - | Y173: - | Z173: - | AA173: - | AB173: LANÚS | AC173: - | AD173: - | AE173: - | AF173: - | AG173: 0 | AH173: 0 | AI173: 0 | AJ173: 32429237 | AK173: 0 | AL173: 0 | AM173: 0 | AN173: 0 | AO173: 0 | AP173: 0 | AQ173: 0 | AR173: 0 | AS173: 3052970.87 | AT173: 0 | AU173: 25293151.98 | AV173: 16099022.4 | AW173: 0 | AX173: EN ANÁLISIS | AY173: 0.21 | AZ173: 0.05 | BA173: INCLUIDO EN CONVENIO MARCO 17771
B174: 5630 | C174: 3. CABA | D174: 12. LIMPIEZA DE MÁRGENES Y CAMINO DE SIRGA | E174: ALUMBRADO PÚBLICO | F174: CAMINO DE SIRGA CABA | G174: COSSERVACIÓN DE LA SEÑALIZACIÓN LUMINOSA DE LA CUENCA, CONSIDERANDO LAS DE MAYOR CERCANIA CON EL RIACHUELO Y QUE FAVORECEN A COORDINAR EL TRANSITO EN LA ZONA. | H174: 2 | I174: 30. MINISTERIO DE DESARROLLO URBANO Y TRANSPORTE | J174: - | K174: 0. MINISTERIO DE DESARROLLO URBANO Y TRANSPORTE | L174: 92. SEÑALIZACIÓN LUMINOSA | M174: 0. SEÑALIZACIÓN LUMINOSA | N174: 60. A.CU.MAR - CENTRO DE CONTROL CENTRALIZADO DE TRANSITO | O174: 0. A.CU.MAR - CENTRO DE CONTROL CENTRALIZADO DE TRANSITO | P174: 51. CONSERVACION FUNCIONAMIENTO DE SEÑALES LUMINOSA | Q174: 11 | R174: 4 | S174: 2 | T174: 2 | U174: 0 | V174: 4 | W174: 3 | X174: 4 | Y174: 1 | Z174: CONSERVACIÓN DE LA SEÑALIZACIÓN LUMINOSA | AA174: 324. DIRECCIÓN GENERAL DE TRÁNSITO | AB174: CABA | AC174: 4 | AD174: COMUNA 4 | AE174: 2012-02-01 | AF174: 2017-02-28 | AG174: 13468923 | AH174: 0 | AI174: 0 | AJ174: 13468923 | AK174: 0 | AL174: 0 | AM174: 0 | AN174: 0 | AO174: 0 | AP174: 0 | AQ174: 25352193.92 | AR174: 20713801.62 | AS174: 48936284.89 | AT174: 41406640 | AU174: 33219350.95 | AV174: 28013064 | AW174: =VLOOKUP(B174,[11]Hoja1!$A:$AX,50,0) -> 39050054 | AX174: EN EJECUCIÓN | AY174: 0.1817366136 | AZ174: 0.56 | BA174: -
B175: 5634 | C175: 3. CABA | D175: 06. PLAN SANITARIO DE EMERGENCIA | E175: CAMPAÑA DE PREVENCIÓN | F175: CAMPAÑA DE PREVENCIÓN | G175: CAMPAÑAS DE PREVENCIÓN Y MITIGACIÓN DE RIESGO. CAPACITACIONES Y DISTRIBUCIÓN DE FOLLETERÍA CON PERSONAL PROPIO | H175: 2 | I175: 26. MINISTERIO DE JUSTICIA Y SEGURIDAD | J175: - | K175: 0. MINISTERIO DE JUSTICIA Y SEGURIDAD | L175: 53. PLANIFICACIÓN Y CONTROL DEFENSA CIVIL | M175: 0. PLANIFICACIÓN Y CONTROL DEFENSA CIVIL | N175: 0. PLANIFICACIÓN Y CONTROL DEFENSA CIVIL | O175: 60. ACUMAR | P175: 0. ACUMAR | Q175: 11 | R175: 4 | S175: 3 | T175: 5 | U175: 0 | V175: 2 | W175: 2 | X175: 4 | Y175: 1 | Z175: PLANIFICACIÓN Y CONTROL DEFENSA CIVIL | AA175: 153. DIRECCIÓN GENERAL DE DEFENSA CIVIL | AB175: CABA | AC175: 4 | AD175: COMUNA 4 | AE175: - | AF175: - | AG175: 0 | AH175: 0 | AI175: 0 | AJ175: 0 | AK175: 0 | AL175: 0 | AM175: 0 | AN175: 0 | AO175: 0 | AP175: 0 | AQ175: 0 | AR175: 9000 | AS175: 0 | AT175: 0 | AU175: 0 | AV175: 6315 | AW175: 0 | AX175: EN EJECUCIÓN | AY175: - | AZ175: - | BA175: -
B176: 5635 | C176: 3. CABA | D176: 06. PLAN SANITARIO DE EMERGENCIA | E176: CAMPAÑA DE PREVENCIÓN | F176: CAMPAÑA DE PREVENCIÓN | G176: CAMPAÑAS DE PREVENCIÓN Y MITIGACIÓN DE RIESGO. CAPACITACIONES Y DISTRIBUCIÓN DE FOLLETERÍA CON PERSONAL PROPIO | H176: 2 | I176: 26. MINISTERIO DE JUSTICIA Y SEGURIDAD | J176: - | K176: 0. MINISTERIO DE JUSTICIA Y SEGURIDAD | L176: 53. PLANIFICACIÓN Y CONTROL DEFENSA CIVIL | M176: 0. PLANIFICACIÓN Y CONTROL DEFENSA CIVIL | N176: 0. PLANIFICACIÓN Y CONTROL DEFENSA CIVIL | O176: 60. ACUMAR | P176: 0. ACUMAR | Q176: 11 | R176: 4 | S176: 3 | T176: 5 | U176: 0 | V176: 2 | W176: 2 | X176: 7 | Y176: ESPECÍFICA | Z176: PLANIFICACIÓN Y CONTROL DEFENSA CIVIL | AA176: 153. DIRECCIÓN GENERAL DE DEFENSA CIVIL | AB176: CABA | AC176: 7 | AD176: COMUNA 7 | AE176: - | AF176: - | AG176: 0 | AH176: 0 | AI176: 0 | AJ176: 0 | AK176: 0 | AL176: 0 | AM176: 0 | AN176: 0 | AO176: 0 | AP176: 0 | AQ176: 0 | AR176: 0 | AS176: 0 | AT176: 0 | AU176: 0 | AV176: 6315 | AW176: 0 | AX176: - | AY176: - | AZ176: - | BA176: -
B177: 5636 | C177: 3. CABA | D177: 06. PLAN SANITARIO DE EMERGENCIA | E177: CAMPAÑA DE PREVENCIÓN | F177: CAMPAÑA DE PREVENCIÓN | G177: CAMPAÑAS DE PREVENCIÓN Y MITIGACIÓN DE RIESGO. CAPACITACIONES Y DISTRIBUCIÓN DE FOLLETERÍA CON PERSONAL PROPIO | H177: 2 | I177: 26. MINISTERIO DE JUSTICIA Y SEGURIDAD | J177: - | K177: 0. MINISTERIO DE JUSTICIA Y SEGURIDAD | L177: 53. PLANIFICACIÓN Y CONTROL DEFENSA CIVIL | M177: 0. PLANIFICACIÓN Y CONTROL DEFENSA CIVIL | N177: 0. PLANIFICACIÓN Y CONTROL DEFENSA CIVIL | O177: 60. ACUMAR | P177: 0. ACUMAR | Q177: 11 | R177: 4 | S177: 3 | T177: 5 | U177: 0 | V177: 2 | W177: 2 | X177: 8 | Y177: ESPECÍFICA | Z177: PLANIFICACIÓN Y CONTROL DEFENSA CIVIL | AA177: 153. DIRECCIÓN GENERAL DE DEFENSA CIVIL | AB177: CABA | AC177: 8 | AD177: COMUNA 8 | AE177: - | AF177: - | AG177: 0 | AH177: 0 | AI177: 0 | AJ177: 0 | AK177: 0 | AL177: 0 | AM177: 0 | AN177: 0 | AO177: 0 | AP177: 0 | AQ177: 0 | AR177: 0 | AS177: 0 | AT177: 0 | AU177: 0 | AV177: 6315 | AW177: 0 | AX177: - | AY177: - | AZ177: - | BA177: -
B178: 5637 | C178: 3. CABA | D178: 06. PLAN SANITARIO DE EMERGENCIA | E178: CAMPAÑA DE PREVENCIÓN | F178: CAMPAÑA DE PREVENCIÓN | G178: CAMPAÑAS DE PREVENCIÓN Y MITIGACIÓN DE RIESGO. CAPACITACIONES Y DISTRIBUCIÓN DE FOLLETERÍA CON PERSONAL PROPIO | H178: 2 | I178: 26. MINISTERIO DE JUSTICIA Y SEGURIDAD | J178: - | K178: 0. MINISTERIO DE JUSTICIA Y SEGURIDAD | L178: 53. PLANIFICACIÓN Y CONTROL DEFENSA CIVIL | M178: 0. PLANIFICACIÓN Y CONTROL DEFENSA CIVIL | N178: 0. PLANIFICACIÓN Y CONTROL DEFENSA CIVIL | O178: 60. ACUMAR | P178: 0. ACUMAR | Q178: 11 | R178: 4 | S178: 3 | T178: 5 | U178: 0 | V178: 2 | W178: 2 | X178: 9 | Y178: ESPECÍFICA | Z178: PLANIFICACIÓN Y CONTROL DEFENSA CIVIL | AA178: 153. DIRECCIÓN GENERAL DE DEFENSA CIVIL | AB178: CABA | AC178: 9 | AD178: COMUNA 9 | AE178: - | AF178: - | AG178: 0 | AH178: 0 | AI178: 0 | AJ178: 0 | AK178: 0 | AL178: 0 | AM178: 0 | AN178: 0 | AO178: 0 | AP178: 0 | AQ178: 0 | AR178: 0 | AS178: 0 | AT178: 0 | AU178: 0 | AV178: 5261 | AW178: =VLOOKUP(B178,[11]Hoja1!$A:$AX,50,0) -> 272000 | AX178: - | AY178: - | AZ178: - | BA178: -
B179: 5713 | C179: 3. CABA | D179: 07. MONITOREO DE LA CALIDAD DE AGUA, SEDIMENTOS Y AIRE | E179: ESTUDIOS Y EVALUACIONES AMBIENTALES | F179: ANÁLISIS AMBIENTALES | G179: ANÁLISIS AMBIENTALES | H179: 2 | I179: 35. MINISTERIO DE AMBIENTE Y ESPACIO PÚBLICO | J179: - | K179: 933. AGENCIA DE PROTECCIÓN AMBIENTAL | L179: 95. LABORATORIO DE ANÁLISIS Y CALIDAD AMBIENTAL | M179: 0. LABORATORIO DE ANÁLISIS Y CALIDAD AMBIENTAL | N179: 0. LABORATORIO DE ANALISIS Y CALIDAD AMBIENTAL | O179: 60. AUTORIDAD CUENCA MATANZA RIACHUELO | P179: 0. AUTORIDAD CUENCA MATANZA RIACHUELO | Q179: 11 | R179: 2 | S179: 5 | T179: 9 | U179: 0 | V179: 4 | W179: 4 | X179: 8 | Y179: 1 | Z179: LABORATORIO DE ANÁLISIS Y CALIDAD AMBIENTAL | AA179: 8934. DIRECCIÓN GENERAL DE CONTROL | AB179: CABA | AC179: 8 | AD179: COMUNA 8 | AE179: - | AF179: - | AG179: 0 | AH179: 0 | AI179: 0 | AJ179: 0 | AK179: 0 | AL179: 0 | AM179: 0 | AN179: 0 | AO179: 0 | AP179: 0 | AQ179: 4197 | AR179: 121057 | AS179: 0 | AT179: 0 | AU179: 142283.72 | AV179: 231068 | AW179: =VLOOKUP(B179,[11]Hoja1!$A:$AX,50,0) -> 1480000 | AX179: - | AY179: - | AZ179: - | BA179: -
B180: 5724 | C180: 3. CABA | D180: 07. MONITOREO DE LA CALIDAD DE AGUA, SEDIMENTOS Y AIRE | E180: ESTUDIOS Y EVALUACIONES AMBIENTALES | F180: ANÁLISIS AMBIENTALES | G180: ANÁLISIS AMBIENTALES | H180: 2 | I180: 35. MINISTERIO DE AMBIENTE Y ESPACIO PÚBLICO | J180: - | K180: 933. AGENCIA DE PROTECCIÓN AMBIENTAL | L180: 95. LABORATORIO DE ANÁLISIS Y CALIDAD AMBIENTAL | M180: 0. LABORATORIO DE ANÁLISIS Y CALIDAD AMBIENTAL | N180: 0. LABORATORIO DE ANALISIS Y CALIDAD AMBIENTAL | O180: 60. AUTORIDAD CUENCA MATANZA RIACHUELO | P180: 0. AUTORIDAD CUENCA MATANZA RIACHUELO | Q180: 11 | R180: 4 | S180: 3 | T180: 3 | U180: 0 | V180: 4 | W180: 4 | X180: 8 | Y180: 1 | Z180: LABORATORIO DE ANÁLISIS Y CALIDAD AMBIENTAL | AA180: 8934. DIRECCIÓN GENERAL DE CONTROL | AB180: CABA | AC180: 8 | AD180: COMUNA 8 | AE180: - | AF180: - | AG180: 0 | AH180: 0 | AI180: 0 | AJ180: 0 | AK180: 0 | AL180: 0 | AM180: 0 | AN180: 0 | AO180: 0 | AP180: 0 | AQ180: 778849 | AR180: 248000 | AS180: 0 | AT180: 0 | AU180: 671789 | AV180: 380753 | AW180: 0 | AX180: - | AY180: - | AZ180: - | BA180: -
B181: 5784 | C181: 3. CABA | D181: 08. URBANIZACIÓN DE VILLAS Y ASENTAMIENTOS URBANOS | E181: VIVIENDAS NUEVAS | F181: COMPLEJO LUZURIAGA | G181: CONSTRUCCIÓN DE VIVIENDAS PARA LOS RESIDENTES DE LOS ASENTAMIENTOS Y VILLAS LOCALIZADAS EN LAS MÁRGENES DE LA CUENCA MATANZA-RIACHUELO | H181: 2 | I181: 21. JEFATURA DE GABINETE DE MINISTROS | J181: - | K181: 219. INSTITUTO PARA LA VIVIENDA | L181: 109. VIVIENDAS CON AHORRO PREVIO | M181: 0. VIVIENDAS CON AHORRO PREVIO | N181: 60. ACUMAR | O181: 0. ACUMAR | P181: 52. LUZURIAGA N° 835 | Q181: 12 | R181: 4 | S181: 2 | T181: 1 | U181: 0 | V181: 3 | W181: 7 | X181: 8 | Y181: 1 | Z181: CONSTRUCCIÓN DE VIVIENDAS | AA181: 290. INSTITUTO DE LA VIVIENDA LEY N° 1.251 | AB181: CABA | AC181: 8 | AD181: LUZURIAGA N° 835 | AE181: 2008-01-01 | AF181: 2014-10-01 | AG181: 24205996.4 | AH181: 38438391.47 | AI181: 62644387.87 | AJ181: 150000 | AK181: 0 | AL181: 0 | AM181: 0 | AN181: 0 | AO181: 0 | AP181: 1148089 | AQ181: 0 | AR181: 0 | AS181: 0 | AT181: 0 | AU181: 360000 | AV181: 604800 | AW181: 0 | AX181: - | AY181: - | AZ181: - | BA181: -
B182: 5788 | C182: 3. CABA | D182: 08. URBANIZACIÓN DE VILLAS Y ASENTAMIENTOS URBANOS | E182: EQUIPAMIENTO COMUNITARIO | F182: COMPLEJO LACARRA | G182: MUDANZA DE VILLA 26 A COMPLEJO LACARRA | H182: 2 | I182: 21. JEFATURA DE GABINETE DE MINISTROS | J182: - | K182: 219. INSTITUTO PARA LA VIVIENDA | L182: 109. VIVIENDAS CON AHORRO PREVIO | M182: 0. VIVIENDAS CON AHORRO PREVIO | N182: 60. ACUMAR | O182: 0. ACUMAR | P182: 60. OBRAS DE MEJORAMIENTO | Q182: 15 | R182: 3 | S182: 9 | T182: 9 | U182: 0 | V182: 3 | W182: 7 | X182: 4 | Y182: 1 | Z182: MEJORAMIENTO | AA182: 290. INSTITUTO DE LA VIVIENDA LEY N° 1.251 | AB182: CABA | AC182: 4 | AD182: 54 FAMILLIAS DE VILLAS 26 | AE182: - | AF182: - | AG182: 1728000 | AH182: 0 | AI182: 0 | AJ182: 1728000 | AK182: 0 | AL182: 0 | AM182: 0 | AN182: 0 | AO182: 0 | AP182: 0 | AQ182: 0 | AR182: 0 | AS182: 0 | AT182: 2697191 | AU182: 7369160 | AV182: 7369160 | AW182: =VLOOKUP(B182,[11]Hoja1!$A:$AX,50,0) -> 1601636 | AX182: - | AY182: - | AZ182: - | BA182: -
B183: 5931 | C183: 1. ESTADO NACIONAL | D183: 10. DESAGÜES PLUVIALES | E183: ESTACIONES DE BOMBEO | F183: ARROYO DEL REY | G183: ESTACIÓN DE BOMBEO ARROYO DEL REY | H183: - | I183: 30. MINISTERIO DEL INTERIOR, OBRAS PÚBLICAS Y VIVIENDA | J183: 325 | K183: SECRETARÍA DE INFRAESTRUCTURA Y POLÍTICA HÍDRICA | L183: EXTRAPRESUPUESTARIO - FFIH - FONDO FIDUCIARIO INFRAESTRUCTURA HÍDRICA | M183: - | N183: - | O183: - | P183: BUE197791 | Q183: FFIH | R183: - | S183: - | T183: - | U183: - | V183: - | W183: - | X183: - | Y183: - | Z183: - | AA183: MUNICIPIO | AB183: LOMAS DE ZAMORA | AC183: ING. BUDGE | AD183: ARROYO DEL REY | AE183: 2015-01-12 | AF183: - | AG183: 146607448.9 | AH183: - | AI183: 154134822.3 | AJ183: 300742271.2 | AK183: 0 | AL183: 0 | AM183: 0 | AN183: 0 | AO183: 0 | AP183: 0 | AQ183: 36395467.11 | AR183: 32206260.06 | AS183: 81834289.49 | AT183: 120871527.8 | AU183: 12898921.76 | AV183: 29434726.72 | AW183: 52101893.33 | AX183: EN EJECUCIÓN | AY183: 0.9256 | AZ183: 0.9476 | BA183: -
B184: 5937 | C184: 1. ESTADO NACIONAL | D184: 09. EXPANSIÓN DE LA RED DE AGUA POTABLE Y SANEAMIENTO DE CLOACAS | E184: GRANDES OBRAS DE INFRAESTRUCTURA DE AGUA | F184: PLANTA POTABILIZADORA ECHEVERRÍA | G184: PLANTA POTABILIZADORA DE ÓSMOSIS INVERSA MARTÍNEZ MORENO Y LA MORITA - OBRA CIVIL | H184: 2 | I184: 91. OBLIGACIONES DEL TESORO | J184: 356 | K184: AYSA | L184: 95. ASISTENCIA FINANCIERA A EMPRESAS PÚBLICAS Y ENTE BINACIONAL | M184: 5 | N184: 1560502 | O184: 77 | P184: - | Q184: 22 Y RECURSOS PROPIOS | R184: 5 | S184: 5 | T184: 7 | U184: 753 | V184: 3 | W184: 8 | X184: 2 | Y184: 2 | Z184: SA7661 | AA184: - | AB184: ESTEBAN ECHEVERRÍA | AC184: MONTE GRANDE | AD184: EL TERRENO SE ENCUENTRA UBICADO EN LA INTERSECCIÓN DE LAS CALLES MAXIMO PAZ Y CATAMARCA, PARTIDO DE ESTEBAN ECHEVERRÍA, REGION SUDOESTE. | AE184: 2016-07-25 | AF184: 2019-12-31 | AG184: 19852427.87 | AH184: 35825693.93 | AI184: 2186233.706 | AJ184: 57864355.51 | AK184: 0 | AL184: 0 | AM184: 0 | AN184: 0 | AO184: 0 | AP184: 0 | AQ184: 23237.5176 | AR184: 837803.8548 | AS184: 30694629.19 | AT184: 24560289.45 | AU184: 1822012.543 | AV184: 1913554.972 | AW184: 2089413.832 | AX184: EN EJECUCIÓN | AY184: 1 | AZ184: 0.9978 | BA184: EN 2018 SE MODIFICA EL CÓDIGO DE ACTIVIDAD DE LA APERTURA PROGRAMÁTICA DE 5 A 77, UG DE 96 A 2 Y FF DE 11 A 22. EL PROYECTO TAMBIÉN SERÁ FINANCIADO CON RECURSOS PROPIOS DE AYSA
B185: 5938 | C185: 1. ESTADO NACIONAL | D185: 09. EXPANSIÓN DE LA RED DE AGUA POTABLE Y SANEAMIENTO DE CLOACAS | E185: GRANDES OBRAS DE INFRAESTRUCTURA DE AGUA | F185: PLANTA POTABILIZADORA ECHEVERRÍA | G185: PLANTA POTABILIZADORA DE ÓSMOSIS INVERSA MARTÍNEZ MORENO Y LA MORITA - OBRA ELECTRO | H185: 2 | I185: 91. OBLIGACIONES DEL TESORO | J185: 356 | K185: AYSA | L185: 95. ASISTENCIA FINANCIERA A EMPRESAS PÚBLICAS Y ENTE BINACIONAL | M185: 5 | N185: 1560503 | O185: 77 | P185: - | Q185: 22 Y RECURSOS PROPIOS | R185: 5 | S185: 5 | T185: 7 | U185: 753 | V185: 3 | W185: 8 | X185: 2 | Y185: 2 | Z185: SA7662 | AA185: - | AB185: ESTEBAN ECHEVERRÍA | AC185: MONTE GRANDE | AD185: EL TERRENO SE ENCUENTRA UBICADO EN LA INTERSECCIÓN DE LAS CALLES MAXIMO PAZ Y CATAMARCA, PARTIDO DE ESTEBAN ECHEVERRÍA, REGION SUDOESTE. | AE185: 2016-07-25 | AF185: 2019-12-31 | AG185: 40058901.59 | AH185: 34452910.86 | AI185: 2607524.435 | AJ185: 77119336.88 | AK185: 0 | AL185: 0 | AM185: 0 | AN185: 0 | AO185: 0 | AP185: 0 | AQ185: 0 | AR185: 10330496.53 | AS185: 39576509.16 | AT185: 16353906.87 | AU185: 11172663.49 | AV185: 14329269.44 | AW185: 3050579.944 | AX185: EN EJECUCIÓN | AY185: 1 | AZ185: 0.984 | BA185: EN 2018 SE MODIFICA EL CÓDIGO DE ACTIVIDAD DE LA APERTURA PROGRAMÁTICA DE 5 A 77, UG DE 96 A 2 Y FF DE 11 A 22. EL PROYECTO TAMBIÉN SERÁ FINANCIADO CON RECURSOS PROPIOS DE AYSA
B186: 5942 | C186: 1. ESTADO NACIONAL | D186: 09. EXPANSIÓN DE LA RED DE AGUA POTABLE Y SANEAMIENTO DE CLOACAS | E186: GRANDES OBRAS DE INFRAESTRUCTURA CLOACALES | F186: PLANTA DE TRATAMIENTO BERAZATEGUI | G186: SISTEMA DE INYECCIÓN DE AIRE - EDIFICIO TORNILLOS DE ELEVACIÓN - PLANTA BERAZATEGUI | H186: 2 | I186: 91. OBLIGACIONES DEL TESORO | J186: 356 | K186: AYSA | L186: 95. ASISTENCIA FINANCIERA A EMPRESAS PÚBLICAS Y ENTE BINACIONAL | M186: 5 | N186: 1561601 | O186: 77 | P186: - | Q186: 22 Y RECURSOS PROPIOS | R186: 5 | S186: 5 | T186: 7 | U186: 753 | V186: 3 | W186: 8 | X186: 2 | Y186: 2 | Z186: SC70051 | AA186: - | AB186: BERAZATEGUI | AC186: BERAZATEGUI | AD186: EL PREDIO SE ENCUENTRA AL NOROESTE DEL PARTIDO DE BERAZATEGUI, CERCANO AL LÍMITE CON EL PARTIDO DE QUILMES, ENTRE LA AUTOPISTA BUENOS AIRES-LA PLATA Y LA COSTA DEL RÍO DE LA PLATA. | AE186: 2015-10-09 | AF186: 2018-12-20 | AG186: 9080328.489 | AH186: 492033.3768 | AI186: 7972160.547 | AJ186: 17544522.41 | AK186: 0 | AL186: 0 | AM186: 0 | AN186: 0 | AO186: 0 | AP186: 0 | AQ186: 54111.9381 | AR186: 5219032.815 | AS186: 2271165.39 | AT186: 6749561.851 | AU186: 4984245.213 | AV186: 3017680.988 | AW186: 0 | AX186: EN EJECUCIÓN | AY186: 0.92167371 | AZ186: 1 | BA186: LA DIFERENCIA ENTRE EL AVANCE ECONÓMICO Y EL AVANCE FÍSICO CORRESPONDE A LA PROVISIÓN CONTABLE DE ÍTEMS QUE NO REPERCUTEN EN EL AVANCE FÍSICO HASTA SU INSTALACIÓN. EN 2018 SE MODIFICA EL CÓDIGO DE ACTIVIDAD DE LA APERTURA PROGRAMÁTICA DE 5 A 77, UG DE 96 A 2 Y FF DE 11 A 22. EL PROYECTO TAMBIÉN SERÁ FINANCIADO CON RECURSOS PROPIOS DE AYSA
B187: 5943 | C187: 1. ESTADO NACIONAL | D187: 09. EXPANSIÓN DE LA RED DE AGUA POTABLE Y SANEAMIENTO DE CLOACAS | E187: MEJORA Y MANTENIMIENTO DE REDES DE AGUA | F187: REDES DE AGUA CABA | G187: RENOVACIÓN DE RED SECUNDARIA DE AGUA LINIERS 2 | H187: 2 | I187: 91. OBLIGACIONES DEL TESORO | J187: 356 | K187: AYSA | L187: 95. ASISTENCIA FINANCIERA A EMPRESAS PÚBLICAS Y ENTE BINACIONAL | M187: 5 | N187: 1560703 | O187: 77 | P187: - | Q187: 22 Y RECURSOS PROPIOS | R187: 5 | S187: 5 | T187: 7 | U187: 753 | V187: 3 | W187: 8 | X187: 2 | Y187: 2 | Z187: CA70006 | AA187: - | AB187: CABA | AC187: FLORES | AD187: LA RENOVACIÓN SE ENCUENTRA COMPRENDIDA ENTRE LAS CALLES TAPALQUE, CARHUE, GARCIA GRANDE DE ZEQUEIRA Y AV. L. DE LA TORRE, EN EL DISTRITO DE FLORES, DIRECCION REGIONAL CAPITAL FEDERAL | AE187: 2015-08-03 | AF187: 2017-12-31 | AG187: 23591769.88 | AH187: 13742157.16 | AI187: 1164861.291 | AJ187: 38498788.33 | AK187: 0 | AL187: 0 | AM187: 0 | AN187: 0 | AO187: 0 | AP187: 0 | AQ187: 1543182.115 | AR187: 8014122.747 | AS187: 20085660.69 | AT187: 6072519.988 | AU187: 2806731.73 | AV187: 2245871.828 | AW187: 0 | AX187: FINALIZADO | AY187: 0.9279376808 | AZ187: 1 | BA187: EN 2018 SE MODIFICA EL CÓDIGO DE ACTIVIDAD DE LA APERTURA PROGRAMÁTICA DE 5 A 77, UG DE 96 A 2 Y FF DE 11 A 22. EL PROYECTO TAMBIÉN SERÁ FINANCIADO CON RECURSOS PROPIOS DE AYSA
B188: 5944 | C188: 1. ESTADO NACIONAL | D188: 09. EXPANSIÓN DE LA RED DE AGUA POTABLE Y SANEAMIENTO DE CLOACAS | E188: EXPANSIÓN DE REDES CLOACALES | F188: REDES CLOACALES LANÚS | G188: RED CLOACAL BARRIOS ALBARIÑOS SUR Y BALCARCE SUR - CUENCA 2 | H188: 2 | I188: 91. OBLIGACIONES DEL TESORO | J188: 356 | K188: AYSA | L188: 95. ASISTENCIA FINANCIERA A EMPRESAS PÚBLICAS Y ENTE BINACIONAL | M188: 5 | N188: 1560401 | O188: 77 | P188: - | Q188: 22 Y RECURSOS PROPIOS | R188: 5 | S188: 5 | T188: 7 | U188: 753 | V188: 3 | W188: 8 | X188: 2 | Y188: 2 | Z188: SC70006 | AA188: - | AB188: LANÚS | AC188: REMEDIOS DE ESCALADA | AD188: LA RED SECUNDARIA CLOACAL SE ENCUENTRA DELIMITADA POR LAS CALLES URIARTE, AVDA. TALLERES, LOS HORNOS, UGARTE, DON ORIONE, HERNANDARIAS, R. FRANCO, PENNA Y ROCA ; ESTA SUPERFICIE ES PARTE DEL ÁREA COMPRENDIDA POR LOS BARRIOS ALBARIÑOS SUR Y BALCARCE SUR, EN EL PARTIDO DE LANÚS. | AE188: 2016-07-12 | AF188: 2019-12-31 | AG188: 86862250.19 | AH188: 69463511.86 | AI188: 4796672.984 | AJ188: 161122435 | AK188: 0 | AL188: 0 | AM188: 0 | AN188: 0 | AO188: 0 | AP188: 0 | AQ188: 0 | AR188: 7874697.751 | AS188: 102079824.9 | AT188: 23322415.99 | AU188: 17756233.52 | AV188: 46105645.44 | AW188: 5000000 | AX188: EN EJECUCIÓN | AY188: 0.912311421 | AZ188: 0.8909 | BA188: EN 2018 SE MODIFICA EL CÓDIGO DE ACTIVIDAD DE LA APERTURA PROGRAMÁTICA DE 5 A 77, UG DE 96 A 2 Y FF DE 11 A 22. EL PROYECTO TAMBIÉN SERÁ FINANCIADO CON RECURSOS PROPIOS DE AYSA
B189: 5946 | C189: 1. ESTADO NACIONAL | D189: 09. EXPANSIÓN DE LA RED DE AGUA POTABLE Y SANEAMIENTO DE CLOACAS | E189: EXPANSIÓN DE REDES CLOACALES | F189: REDES CLOACALES ACCIONES COMPLEMENTARIAS | G189: SERVICIO DE INSPECCION DE OBRA EN REDES CLOACALES - COLECTORES CLOACALES - IMPULSIONES | H189: 2 | I189: 91. OBLIGACIONES DEL TESORO | J189: 356 | K189: AYSA | L189: 95. ASISTENCIA FINANCIERA A EMPRESAS PÚBLICAS Y ENTE BINACIONAL | M189: 5 | N189: 1560302 | O189: 77 | P189: - | Q189: 22 Y RECURSOS PROPIOS | R189: 5 | S189: 5 | T189: 7 | U189: 753 | V189: 3 | W189: 8 | X189: 2 | Y189: 2 | Z189: VC70001 | AA189: - | AB189: CUENCA MATANZA RIACHUELO | AC189: VARIOS | AD189: SERVICIO DE INSPECCION DE OBRA EN REDES CLOACALES - COLECTORAS CLOACALES - IMPULSIONES A EJECUTARSE O EN EJECUCION DENTRO DE TODA EL AREA DE CONCESION DE AGUAS Y SANEAMIENTOS ARGENTINOS S.A. | AE189: 2015-08-01 | AF189: 2019-12-31 | AG189: 10851193.7 | AH189: 131109665.7 | AI189: 0 | AJ189: 141960859.4 | AK189: 0 | AL189: 0 | AM189: 0 | AN189: 0 | AO189: 0 | AP189: 0 | AQ189: 2542770.17 | AR189: 11890428.22 | AS189: 19987726.56 | AT189: 34476450.71 | AU189: 35661976.27 | AV189: 63422590.22 | AW189: 33901507.79 | AX189: EN EJECUCIÓN | AY189: 0.6091798563 | AZ189: 0.6091798563 | BA189: POR SER INSPECCIÓN AVANCE FÍSICO = ECONÓMICO. EN 2018 SE MODIFICA EL CÓDIGO DE ACTIVIDAD DE LA APERTURA PROGRAMÁTICA DE 5 A 77, UG DE 96 A 2 Y FF DE 11 A 22. EL PROYECTO TAMBIÉN SERÁ FINANCIADO CON RECURSOS PROPIOS DE AYSA
B190: 5949 | C190: 1. ESTADO NACIONAL | D190: 09. EXPANSIÓN DE LA RED DE AGUA POTABLE Y SANEAMIENTO DE CLOACAS | E190: GRANDES OBRAS DE INFRAESTRUCTURA CLOACALES | F190: SISTEMA RIACHUELO | G190: SERVICIO DE APOYO A LA INSPECCION DE OBRA PARA SISTEMA RIACHUELO "LOTE 2" | H190: 2 | I190: 91. OBLIGACIONES DEL TESORO | J190: 356 | K190: AYSA | L190: 95. ASISTENCIA FINANCIERA A EMPRESAS PÚBLICAS Y ENTE BINACIONAL | M190: 5 | N190: 1561602 | O190: 77 | P190: - | Q190: 22 Y RECURSOS PROPIOS | R190: 5 | S190: 5 | T190: 7 | U190: 753 | V190: 3 | W190: 8 | X190: 2 | Y190: 2 | Z190: SX70000 | AA190: - | AB190: AVELLANEDA | AC190: DOCK SUD | AD190: LAS ESTACIONES DE BOMBEO Y LA PLANTA DE PRETRATAMIENTO SE UBICARÁN EN EL PREDIO DE 450M X 350M DE RELLENO SOBRE LA COSTA DEL RÍO DE LA PLATA EN LA ZONA POR EN LA PORTUARIA EN LAS PROXIMIDADES DE LA ESCOLLERA DE PROPANEROS PARTIDO DE AVELLANEDA. | AE190: 2016-02-01 | AF190: Cuando finalice la obra madre | AG190: 17436705 | AH190: 25123206.7 | AI190: 196711228.9 | AJ190: 239271140.6 | AK190: 0 | AL190: 0 | AM190: 0 | AN190: 0 | AO190: 0 | AP190: 0 | AQ190: 0 | AR190: 4238101.327 | AS190: 13226045.31 | AT190: 21768583.11 | AU190: 9254203.807 | AV190: 2847503.696 | AW190: 120000000 | AX190: EN EJECUCIÓN | AY190: 0.1748259799 | AZ190: 0.1748259799 | BA190: POR SER INSPECCIÓN AVANCE FÍSICO = ECONÓMICO. EN 2018 SE MODIFICA EL CÓDIGO DE ACTIVIDAD DE LA APERTURA PROGRAMÁTICA DE 5 A 77, UG DE 96 A 2 Y FF DE 11 A 22. EL PROYECTO TAMBIÉN SERÁ FINANCIADO CON RECURSOS PROPIOS DE AYSA
B191: 5967 | C191: 1. ESTADO NACIONAL | D191: 09. EXPANSIÓN DE LA RED DE AGUA POTABLE Y SANEAMIENTO DE CLOACAS | E191: MEJORA Y MANTENIMIENTO DE REDES DE AGUA | F191: REDES DE AGUA ESTEBAN ECHEVERRÍA | G191: REPOTENCIACION CENTRO DE MEZCLA 9 DE ABRIL. OBRA CIVIL | H191: 2 | I191: 30. MINISTERIO DEL INTERIOR, OBRAS PÚBLICAS Y VIVIENDA | J191: 325 | K191: AYSA | L191: 94. ASISTENCIA FINANCIERA A EMPRESAS PÚBLICAS Y ENTE BINACIONAL | M191: - | N191: 1460C09 | O191: 79 | P191: - | Q191: 22 | R191: 5 | S191: 5 | T191: 7 | U191: 753 | V191: 3 | W191: 8 | X191: 6 | Y191: 2 | Z191: UAE00110 | AA191: - | AB191: ESTEBAN ECHEVERRÍA | AC191: 9 DE ABRIL | AD191: S/D | AE191: 2015-12-18 | AF191: 2017-12-30 | AG191: 9150554.68 | AH191: 644499.21 | AI191: 0 | AJ191: 9795053.89 | AK191: 0 | AL191: 0 | AM191: 0 | AN191: 0 | AO191: 0 | AP191: 0 | AQ191: 236879.64 | AR191: 8188797.25 | AS191: -990073.58 | AT191: 27248.14 | AU191: 5759.82 | AV191: 0 | AW191: 0 | AX191: FINALIZADO | AY191: 0.9261632417 | AZ191: 1 | BA191: MONTO VIGENTE Y GRADO DE AVANCE ECONÓMICO, SE CONSIDERAN SOLO PARTIDAS CONTRACTUALES
B192: 5968 | C192: 1. ESTADO NACIONAL | D192: 09. EXPANSIÓN DE LA RED DE AGUA POTABLE Y SANEAMIENTO DE CLOACAS | E192: MEJORA Y MANTENIMIENTO DE REDES DE AGUA | F192: REDES DE AGUA ESTEBAN ECHEVERRÍA | G192: REPOTENCIACION CENTRO DE MEZCLA 9 DE ABRIL. OBRA CIVIL | H192: 2 | I192: 91. OBLIGACIONES DEL TESORO | J192: 356 | K192: AYSA | L192: 95. ASISTENCIA FINANCIERA A EMPRESAS PÚBLICAS Y ENTE BINACIONAL | M192: 5 | N192: 1460C09 | O192: 77 | P192: - | Q192: 22 Y RECURSOS PROPIOS | R192: 5 | S192: 5 | T192: 7 | U192: 753 | V192: 3 | W192: 8 | X192: 2 | Y192: 2 | Z192: UAE00110 | AA192: - | AB192: ESTEBAN ECHEVERRÍA | AC192: 9 DE ABRIL | AD192: S/D | AE192: 2015-12-18 | AF192: 2017-12-30 | AG192: 1921616.48 | AH192: 135344.83 | AI192: 0 | AJ192: 2056961.31 | AK192: 0 | AL192: 0 | AM192: 0 | AN192: 0 | AO192: 0 | AP192: 0 | AQ192: 49744.7244 | AR192: 1719647.423 | AS192: -207915.4518 | AT192: 5722.1094 | AU192: 1209.5622 | AV192: 0 | AW192: 0 | AX192: FINALIZADO | AY192: 0.9261632417 | AZ192: 1 | BA192: MONTO VIGENTE Y GRADO DE AVANCE ECONÓMICO, SE CONSIDERAN SOLO PARTIDAS CONTRACTUALES. EN 2018 SE MODIFICA EL CÓDIGO DE ACTIVIDAD DE LA APERTURA PROGRAMÁTICA DE 5 A 77, UG DE 96 A 2 Y FF DE 11 A 22. EL PROYECTO TAMBIÉN SERÁ FINANCIADO CON RECURSOS PROPIOS DE AYSA
B193: 5969 | C193: 1. ESTADO NACIONAL | D193: 09. EXPANSIÓN DE LA RED DE AGUA POTABLE Y SANEAMIENTO DE CLOACAS | E193: MEJORA Y MANTENIMIENTO DE REDES DE AGUA | F193: REDES DE AGUA ESTEBAN ECHEVERRÍA | G193: REPOTENCIACION CENTRO DE MEZCLA 9 DE ABRIL. OBRA CIVIL | H193: 2 | I193: 91. OBLIGACIONES DEL TESORO | J193: 356 | K193: AYSA | L193: 95. ASISTENCIA FINANCIERA A EMPRESAS PÚBLICAS Y ENTE BINACIONAL | M193: 5 | N193: 1460C09 | O193: 77 | P193: - | Q193: 22 Y RECURSOS PROPIOS | R193: 5 | S193: 5 | T193: 7 | U193: 753 | V193: 3 | W193: 8 | X193: 2 | Y193: 2 | Z193: UAE00110 | AA193: - | AB193: ESTEBAN ECHEVERRÍA | AC193: 9 DE ABRIL | AD193: S/D | AE193: 2015-12-18 | AF193: 2017-12-30 | AG193: 137258.32 | AH193: 6649967.5 | AI193: 0 | AJ193: 6787225.82 | AK193: 0 | AL193: 0 | AM193: 0 | AN193: 0 | AO193: 0 | AP193: 0 | AQ193: 1132330.148 | AR193: -609568.7059 | AS193: 6784223.499 | AT193: 1844421.392 | AU193: 150971.5427 | AV193: 0 | AW193: 0 | AX193: FINALIZADO | AY193: 0.9261632417 | AZ193: 1 | BA193: MONTO VIGENTE Y GRADO DE AVANCE ECONÓMICO, SE CONSIDERAN SOLO PARTIDAS CONTRACTUALES. EN 2018 SE MODIFICA EL CÓDIGO DE ACTIVIDAD DE LA APERTURA PROGRAMÁTICA DE 5 A 77, UG DE 96 A 2 Y FF DE 11 A 22. EL PROYECTO TAMBIÉN SERÁ FINANCIADO CON RECURSOS PROPIOS DE AYSA
B194: 5972 | C194: 1. ESTADO NACIONAL | D194: 09. EXPANSIÓN DE LA RED DE AGUA POTABLE Y SANEAMIENTO DE CLOACAS | E194: MEJORA Y MANTENIMIENTO DE REDES DE AGUA | F194: REDES DE AGUA ESTEBAN ECHEVERRÍA | G194: REPOTENCIACION CENTRO DE MEZCLA 9 DE ABRIL. OBRA ELECTROMECANICA | H194: 2 | I194: 91. OBLIGACIONES DEL TESORO | J194: 356 | K194: AYSA | L194: 95. ASISTENCIA FINANCIERA A EMPRESAS PÚBLICAS Y ENTE BINACIONAL | M194: 5 | N194: 1460C10 | O194: 77 | P194: - | Q194: 22 Y RECURSOS PROPIOS | R194: 5 | S194: 5 | T194: 7 | U194: 753 | V194: 3 | W194: 8 | X194: 2 | Y194: 2 | Z194: UAE00120 | AA194: - | AB194: ESTEBAN ECHEVERRÍA | AC194: 9 DE ABRIL | AD194: S/D | AE194: 2016-10-18 | AF194: 2017-12-30 | AG194: 654039.96 | AH194: 22974291.83 | AI194: 0 | AJ194: 23628331.79 | AK194: 0 | AL194: 0 | AM194: 0 | AN194: 0 | AO194: 0 | AP194: 0 | AQ194: 5434311.961 | AR194: -2475085.976 | AS194: 26447559.86 | AT194: 7114697.319 | AU194: 3826017.314 | AV194: 0 | AW194: 0 | AX194: FINALIZADO | AY194: 0.95 | AZ194: 1 | BA194: MONTO VIGENTE Y GRADO DE AVANCE ECONÓMICO, SE CONSIDERAN SOLO PARTIDAS CONTRACTUALES. EN 2018 SE MODIFICA EL CÓDIGO DE ACTIVIDAD DE LA APERTURA PROGRAMÁTICA DE 5 A 77, UG DE 96 A 2 Y FF DE 11 A 22. EL PROYECTO TAMBIÉN SERÁ FINANCIADO CON RECURSOS PROPIOS DE AYSA
B195: 5983 | C195: 1. ESTADO NACIONAL | D195: 06. PLAN SANITARIO DE EMERGENCIA | E195: EXPANSIÓN DE REDES | F195: SISTEMA LA LATA- ESTEBAN ECHEVERRIA | G195: PLANTA POTABILIZADORA POR SISTEMA DE OSMOSIS INVERSA LA LATA ETAPA 1 - OBRA ELECTROMECANICA | H195: 2 | I195: 91. OBLIGACIONES DEL TESORO | J195: 356 | K195: AYSA | L195: 95. ASISTENCIA FINANCIERA A EMPRESAS PÚBLICAS Y ENTE BINACIONAL | M195: 5 | N195: 1060C42 | O195: 5 | P195: - | Q195: 11 | R195: 5 | S195: 5 | T195: 7 | U195: 753 | V195: 3 | W195: 8 | X195: 96 | Y195: 2 | Z195: RP380020 | AA195: - | AB195: ESTEBAN ECHEVERRÍA | AC195: MONTE GRANDE | AD195: EL PREDIO ESTÁ UBICADO EN LA CALLE COLÓN S/N°, ESQUINA MAIPÚ. | AE195: 2011-03-01 | AF195: 2016-07-29 | AG195: 2498325.97 | AH195: 10895259.29 | AI195: 0 | AJ195: 13393585.26 | AK195: - | AL195: 696093.59 | AM195: 806318.27 | AN195: 992485.87 | AO195: 30205.3268 | AP195: 724181.5152 | AQ195: 136122.3138 | AR195: 0 | AS195: 6931168.633 | AT195: 0 | AU195: -501977.3693 | AV195: 0 | AW195: 0 | AX195: FINALIZADO | AY195: 0.98 | AZ195: 1 | BA195: MONTO VIGENTE Y GRADO DE AVANCE ECONÓMICO, SE CONSIDERAN SOLO PARTIDAS CONTRACTUALES
B196: 6042 | C196: 4. ACUMAR | D196: 03. FORTALECIMIENTO INSTITUCIONAL | E196: INSTITUCIONAL ACUMAR | F196: INSTITUCIONAL ACUMAR | G196: SOLICITUD DE APOYO TÉCNICO DIAGNÓSTICO PRELIMINAR | H196: - | I196: ACUMAR | J196: - | K196: ACUMAR | L196: DESAGUES PLUVIALES | M196: - | N196: - | O196: - | P196: - | Q196: - | R196: 5 | S196: 5 | T196: 1 | U196: - | V196: - | W196: - | X196: - | Y196: - | Z196: - | AA196: UNIVERSIDAD NACIONAL DE LA PLATA | AB196: CUENCA MATANZA RIACHUELO | AC196: - | AD196: - | AE196: 2018-02-21 | AF196: - | AG196: 0 | AH196: 0 | AI196: 0 | AJ196: 0 | AK196: 0 | AL196: 0 | AM196: 0 | AN196: 0 | AO196: 0 | AP196: 0 | AQ196: 997874.82 | AR196: 406813.49 | AS196: 374895.04 | AT196: 529030.5 | AU196: 0 | AV196: 0 | AW196: 0 | AX196: - | AY196: - | AZ196: - | BA196: -
B197: 6050 | C197: 4. ACUMAR | D197: 07. MONITOREO DE LA CALIDAD DE AGUA, SEDIMENTOS Y AIRE | E197: MONITOREO CALIDAD DE AIRE | F197: MONITOREO CALIDAD DE AIRE | G197: CONTRATACIÓN DE UN SERVICIO DE MEDICIÓN CONTINUA DE LA CALIDAD DE AIRE DE PARÁMETROS DE CRITERIO EN LANÚS Y LA MATANZA Y MEDICIÓN DE CONTAMINANTES TÓXICOS EN CUATRO ZONAS DE LA CUENCA MATANZA - RIACHUELO.- | H197: - | I197: ACUMAR | J197: - | K197: ACUMAR | L197: CALIDAD AMBIENTAL | M197: - | N197: - | O197: - | P197: - | Q197: - | R197: 3 | S197: 4 | T197: 1 | U197: - | V197: - | W197: - | X197: - | Y197: - | Z197: - | AA197: JMB S.A. | AB197: CUENCA MATANZA RIACHUELO | AC197: - | AD197: - | AE197: - | AF197: - | AG197: 0 | AH197: 0 | AI197: 0 | AJ197: 0 | AK197: 0 | AL197: 0 | AM197: 0 | AN197: 0 | AO197: 0 | AP197: 0 | AQ197: 15323987.98 | AR197: 26690327.76 | AS197: 15604156.93 | AT197: 10194336 | AU197: 0 | AV197: 0 | AW197: 0 | AX197: - | AY197: - | AZ197: - | BA197: PROYECTO 36
B198: 6055 | C198: 4. ACUMAR | D198: 03. FORTALECIMIENTO INSTITUCIONAL | E198: INSTITUCIONAL ACUMAR | F198: INSTITUCIONAL ACUMAR | G198: SERVICIO DE IMPRENTA | H198: 1 | I198: ACUMAR | J198: - | K198: ACUMAR | L198: FORTALECIMIENTO INSTITUCIONAL | M198: - | N198: - | O198: - | P198: - | Q198: - | R198: 3 | S198: 5 | T198: 3 | U198: - | V198: - | W198: - | X198: - | Y198: - | Z198: - | AA198: ARTES GRAFICAS PAPIROS S.A.C.I. | AB198: CUENCA MATANZA RIACHUELO | AC198: - | AD198: - | AE198: - | AF198: - | AG198: 0 | AH198: 0 | AI198: 0 | AJ198: 0 | AK198: 0 | AL198: 0 | AM198: 0 | AN198: 0 | AO198: 0 | AP198: 0 | AQ198: 229500 | AR198: 313650 | AS198: 0 | AT198: 2029456.52 | AU198: 1679613.62 | AV198: 0 | AW198: 0 | AX198: - | AY198: - | AZ198: - | BA198: -
B199: 6056 | C199: 4. ACUMAR | D199: 03. FORTALECIMIENTO INSTITUCIONAL | E199: INSTITUCIONAL ACUMAR | F199: INSTITUCIONAL ACUMAR | G199: CONTRATACIÓN SEGURO INTEGRAL OFINAS ALMIRANTE BROWN 1378 CABA | H199: 1 | I199: ACUMAR | J199: - | K199: ACUMAR | L199: FORTALECIMIENTO INSTITUCIONAL | M199: - | N199: - | O199: - | P199: - | Q199: - | R199: 3 | S199: 5 | T199: 4 | U199: - | V199: - | W199: - | X199: - | Y199: - | Z199: - | AA199: PROVINCIA SEGUROS | AB199: CABA | AC199: - | AD199: - | AE199: 2017-05-31 | AF199: - | AG199: 0 | AH199: 0 | AI199: 0 | AJ199: 0 | AK199: 0 | AL199: 0 | AM199: 0 | AN199: 0 | AO199: 0 | AP199: 0 | AQ199: 52209.9 | AR199: 0 | AS199: 0 | AT199: 46120 | AU199: 0 | AV199: 0 | AW199: 0 | AX199: - | AY199: - | AZ199: - | BA199: PROYECTO 94
B200: 6061 | C200: 4. ACUMAR | D200: 06. PLAN SANITARIO DE EMERGENCIA | E200: EQUIPAMIENTO PARA EFECTOR DE SALUD | F200: UNIDADES SANITARIAS MÓVILES | G200: ADQUISICIÓN DE INSUMOS MÉDICOS PARA LAS UNIDADES SANITARIAS MOVI | H200: 1 | I200: ACUMAR | J200: - | K200: ACUMAR | L200: PLAN SANITARIO DE EMERGENCIA | M200: - | N200: - | O200: - | P200: - | Q200: - | R200: - | S200: - | T200: - | U200: - | V200: - | W200: - | X200: - | Y200: - | Z200: - | AA200: - | AB200: CUENCA MATANZA RIACHUELO | AC200: - | AD200: - | AE200: - | AF200: - | AG200: 0 | AH200: 0 | AI200: 0 | AJ200: 0 | AK200: 0 | AL200: 0 | AM200: 0 | AN200: 0 | AO200: 0 | AP200: 0 | AQ200: 299842.28 | AR200: 45818.9 | AS200: 467946.65 | AT200: 58081.22 | AU200: 0 | AV200: 0 | AW200: 0 | AX200: - | AY200: - | AZ200: - | BA200: PROYECTO 40
B201: 6062 | C201: 4. ACUMAR | D201: 13. SANEAMIENTO DE BASURALES | E201: NUEVA PLANTA DE TRATAMIENTO DE RESIDUOS | F201: ECOPUNTOS | G201: ECOPUNTOS: CONSTRUCCIÓN, MEJORA TECNOLÓGICA Y ASESORAMIENTO TÉCNICO. | H201: 1 | I201: ACUMAR | J201: - | K201: ACUMAR | L201: LIMPIEZA DE BASURALES | M201: - | N201: - | O201: - | P201: - | Q201: - | R201: - | S201: - | T201: - | U201: - | V201: - | W201: - | X201: - | Y201: - | Z201: - | AA201: - | AB201: AVELLANEDA | AC201: - | AD201: - | AE201: - | AF201: - | AG201: 0 | AH201: 0 | AI201: 0 | AJ201: 0 | AK201: 0 | AL201: 0 | AM201: 0 | AN201: 0 | AO201: 0 | AP201: 0 | AQ201: 43144693.98 | AR201: 17185355.99 | AS201: 0 | AT201: 26818542.64 | AU201: 0 | AV201: 0 | AW201: 0 | AX201: - | AY201: - | AZ201: - | BA201: -
B202: 6070 | C202: 4. ACUMAR | D202: 13. SANEAMIENTO DE BASURALES | E202: RECOLECCIÓN DE RESIDUOS | F202: LIMPIEZA DE PASILLOS | G202: PROYECTO ACOMPAÑAMIENTO A LA INCORPORACIÓN DE LOS ASENTAMIENTOS ACUBA, 10 DE ENERO, EVA PERÓN Y GAITA AL SISTEMA DE RECOLECCIÓN FORMAL DE RESIDUOS SÓLIDOS URBANOS 2015.- | H202: 1 | I202: ACUMAR | J202: - | K202: ACUMAR | L202: LIMPIEZA DE BASURALES | M202: - | N202: - | O202: - | P202: - | Q202: - | R202: 5 | S202: 7 | T202: 6 | U202: - | V202: - | W202: - | X202: - | Y202: - | Z202: - | AA202: MUNICIPALIDAD DE LANUS | AB202: LANÚS | AC202: - | AD202: - | AE202: 2018-01-16 | AF202: - | AG202: 0 | AH202: 0 | AI202: 0 | AJ202: 0 | AK202: 0 | AL202: 0 | AM202: 0 | AN202: 0 | AO202: 0 | AP202: 0 | AQ202: 1206094.5 | AR202: 0 | AS202: 1171096.78 | AT202: 7255105.8 | AU202: 849673.01 | AV202: 0 | AW202: 0 | AX202: - | AY202: - | AZ202: - | BA202: PROYECTO 17
... 644 more rows

Sheet Resumen total
B3: NIVEL | C3: DEVENGADO 2006-2016 | D3: DEVENGADO 2017 | E3: DEVENGADO 2018 | F3: DEVENGADO 2019 | G3: PRESUPUESTO 2020
B4: 1. ESTADO NACIONAL | C4: 31265635963 | D4: 10538486355 | E4: 15670173517 | F4: 26532328227 | G4: 40680165822
B5: 2. PROVINCIA DE BS.AS | C5: 3118723292 | D5: 2015901531 | E5: 1530497713 | F5: 1377058675 | G5: 1490468746
B6: 3. CABA | C6: 4047309601 | D6: 1887831925 | E6: 2146145174 | F6: 5277240588 | G6: 3725017203
B7: 4. ACUMAR | C7: 3661503020 | D7: 1022941939 | E7: 1759560309 | F7: 1428040161 | G7: 1858977498
B8: TOTAL BRUTO DEVENGADO | C8: =SUM(C4:C7) -> 42093171876 | D8: =SUM(D4:D7) -> 15465161750 | E8: =SUM(E4:E7) -> 21106376713 | F8: =SUM(F4:F7) -> 34614667651 | G8: =SUM(G4:G7) -> 47754629269
B10: TRANSFERENCIAS ENTRE JURISDICCIONES¹ | C10: -1469407916 | D10: -2524242732 | E10: -2906354246 | F10: -8149202077 | G10: -8561738709
B12: TOTAL NETO DEVENGADO | C12: =C8+C10 -> 40623763960 | D12: =D8+D10 -> 12940919018 | E12: =E8+E10 -> 18200022467 | F12: =F8+F10 -> 2.646546557e+10 | G12: =G8+G10 -> 39192890560
B14: ¹ Con el objetivo de reflejar los recursos netos destinados a la CMR, se distinguió aquellos recursos devengados por una jurisdicción en concepto de transferencias a otra a cargo de su ejecución y que, por ende, deben ser deducidos para evitar duplicaciones.

Sheet Estado Nacional
B3: NIVEL | C3: DEVENGADO 2017 | D3: DEVENGADO 2018 | E3: DEVENGADO 2019 | F3: PRESUPUESTO 2020
B4: 1. ESTADO NACIONAL | C4: =SUM(C6:C14) -> 10538486354 | D4: =SUM(D6:D14) -> 15670173517 | E4: 26532328227 | F4: 40680165822
B6: AYSA | C6: 4743009134 | D6: 8865408597 | E6: 13628681513 | F6: 27600344846
B7: SECRETARÍA DE INFRAESTRUCTURA Y POLÍTICA HÍDRICA | C7: 203954840 | D7: 572281157 | E7: 224354072 | F7: 398995833
B8: ENOHSA | C8: 38609226 | D8: 23659702 | E8: 2538942 | F8: 2539775
B9: UNIDAD COORDINADORA GENERAL DEL PROYECTO BIRF 7706-AR | C9: 2639955237 | D9: 3184367252 | E9: 9404042635 | F9: 9434954743
B10: SECRETARÍA DE INFRAESTRUCTURA URBANA | C10: 259136130 | D10: 411077187 | E10: 263522038 | F10: S/d
B11: SECRETARÍA DE PLANIFICACIÓN TERRITORIAL Y COORDINACIÓN DE OBRA PÚBLICA | C11: 303711930 | D11: 38836706 | E11: 0 | F11: 0
B12: SECRETARÍA DE VIVIENDA | C12: 816919588 | D12: 1221464186 | E12: 1429709528 | F12: S/d
B13: DIRECCIÓN NACIONAL DE VIALIDAD | C13: 1474513480 | D13: 1305692364 | E13: 1557296913 | F13: 3201826619
B14: UNIDAD COORDINADORA DE PROGRAMAS CON FINANCIAMIENTO EXTERNO | C14: 58676789 | D14: 47386366 | E14: 22182586 | F14: 41504006

Sheet Provincia
B3: NIVEL | C3: DEVENGADO 2017 | D3: DEVENGADO 2018 | E3: DEVENGADO 2019 | F3: PRESUPUESTO 2020
B4: 2. PROVINCIA DE BS.AS | C4: =SUM(C6:C10) -> 2015901531 | D4: =SUM(D6:D10) -> 1530497713 | E4: =SUM(E6:E10) -> 1377058675 | F4: =SUM(F6:F10) -> 1490468746
B6: DIRECCIÓN DE VIALIDAD | C6: 130425093 | D6: 0 | E6: 0 | F6: 0
B7: DIRECCIÓN GENERAL DE CULTURA Y EDUCACIÓN | C7: 30363889 | D7: 0 | E7: 0 | F7: 0
B8: INSTITUTO DE LA VIVIENDA | C8: 678845226 | D8: 424678952 | E8: 347565306 | F8: 119952822
B9: MINISTERIO DE INFRAESTRUCTURA | C9: 1176267323 | D9: 1105818761 | E9: 1029493369 | F9: 1370515924
B10: MINISTERIO DE LA PRODUCCIÓN | C10: 0 | D10: 0 | E10: 0 | F10: 0

Sheet CABA
B3: NIVEL | C3: DEVENGADO 2017 | D3: DEVENGADO 2018 | E3: DEVENGADO 2019 | F3: PRESUPUESTO 2020
B4: 3. CABA | C4: =SUM(C6:C18) -> 1887831925 | D4: =SUM(D6:D18) -> 2146145172 | E4: 5277240588 | F4: 3725017203
B6: JEFATURA DE GABINETE DE MINISTROS | C6: 0 | D6: 0 | E6: 0 | F6: 0
B7: INSTITUTO DE VIVIENDA | C7: 893906476 | D7: 636633707 | E7: 3355809736 | F7: 2170064444
B8: AUTOPISTAS URBANAS S.A. | C8: 213228486 | D8: 406206187 | E8: 260514514 | F8: 0
B9: CORPORACIÓN BUENOS AIRES SUR S.E. | C9: 124791297 | D9: 83148831 | E9: 99850290 | F9: 139446625
B10: MINISTERIO DE DESARROLLO URBANO Y TRANSPORTE | C10: 219162287 | D10: 122664973 | E10: 281779289 | F10: 135561309
B11: MINISTERIO DE AMBIENTE Y ESPACIO PÚBLICO | C11: 103879113 | D11: 346047361 | E11: 346891308 | F11: 574894357
B12: AGENCIA DE PROTECCIÓN AMBIENTAL | C12: 12260829 | D12: 6581268 | E12: 7453565 | F12: 4340990
B13: MINISTERIO DE DESARROLLO ECONÓMICO | C13: 0 | D13: 0 | E13: 0
B14: MINISTERIO DE EDUCACIÓN | C14: 48200997 | D14: 17240906 | E14: 7880006 | F14: 0
B15: MINISTERIO DE GOBIERNO | C15: 59341702 | D15: 64009764 | E15: 69329960 | F15: 1740000
B16: MINISTERIO DE HÁBITAT Y DESARROLLO HUMANO | C16: 109363852 | D16: 328088337 | E16: 635317171 | F16: 168644077
B17: MINISTERIO DE JUSTICIA Y SEGURIDAD | C17: 1111410 | D17: 29584796 | E17: 0 | F17: 512000
B18: MINISTERIO DE SALUD | C18: 102585476 | D18: 105939042 | E18: 212414749 | F18: 529813401

Sheet ACUMAR
B3: NIVEL | C3: DEVENGADO 2017 | D3: DEVENGADO 2018 | E3: DEVENGADO 2019 | F3: PRESUPUESTO 2020
B4: 4. ACUMAR | C4: =SUM(C6:C19) -> 1022941939 | D4: =SUM(D6:D19) -> 1902976903 | E4: =SUM(E6:E19) -> 1428040161 | F4: 1858977498
B6: SISTEMA DE INDICADORES | C6: 0 | D6: 0 | E6: 0 | F6: 0
B7: SISTEMA DE INFORMACIÓN PÚBLICA | C7: 331371 | D7: 580400 | E7: 0 | F7: 10318000
B8: FORTALECIMIENTO INSTITUCIONAL | C8: 540068615 | D8: 652851293 | E8: 792669085 | F8: 1009740530
B9: ORDENAMIENTO AMBIENTAL DEL TERRITORIO | C9: 4931460 | D9: 144775889 | E9: 0 | F9: 59979095
B10: EDUCACIÓN AMBIENTAL | C10: 6433984 | D10: 11442841 | E10: 287250 | F10: 0
B11: PLAN SANITARIO DE EMERGENCIA | C11: 23657094 | D11: 12940887 | E11: 26934250 | F11: 41148498
B12: MONITOREO DE CALIDAD DE AGUA, SEDIMENTOS Y AIRE | C12: 30644105 | D12: 33699508 | E12: 14579392 | F12: 101007375
B13: URBANIZACIÓN DE VILLAS Y ASENTAMIENTOS PRECARIOS | C13: 2612013 | D13: 142836196 | E13: 32226298 | F13: 15600000
B14: EXPANSIÓN DE LA RED DE AGUA POTABLE Y SANEAMIENTO CLOACAL | C14: 0 | D14: $ 0 | E14: 0 | F14: 9400000
B15: DESAGUES PLUVIALES | C15: 0 | D15: 2336319 | E15: 3468774 | F15: 6666000
B16: CONTAMINACIÓN DE ORIGEN INDUSTRIAL | C16: 1279228 | D16: 49761762 | E16: 2754477 | F16: 34400000
B17: LIMPIEZA DE MÁRGENES Y CAMINO DE SIRGA | C17: 198625178 | D17: 213572916 | E17: 214135963 | F17: 200404000
B18: SANEAMIENTO DE BASURALES | C18: 214358891 | D18: 638178892 | E18: 340984672 | F18: 370314000
B19: POLO PETROQUÍMICO DOCK SUD | C19: 0 | D19: 0 | E19: 0 | F19: 0

Sheet Hoja1 (hidden)
E3: Obras informadas | F3: Obras quitadas | G3: Obras con ejecución
D4: VIALIDAD | E4: 8 | F4: 0 | G4: 2
D5: ENOHSA | E5: 4 | F5: 0 | G5: 2
D6: UNIDAD C. | E6: 10 | F6: 0 | G6: 4
D7: BIRF 7706 | E7: 17 | F7: 0 | G7: 13
D8: HÍDRICOS | E8: 6 | F8: 0 | G8: 6
D9: VIVIENDA | E9: 111 | F9: 0 | G9: 23
D10: HABITAT | E10: 44 | F10: 0 | G10: 22
D11: AYSA | E11: 185 | F11: 181 | H11: 4 a revisar
D12: CABA | E12: 118 | F12: 117 | H12: 7809
D13: PBA | E13: 113

Sheet CLASIFICACIÓN MANUAL (hidden)
C1: CLASIFICACIÓN
A2: 01. SISTEMA DE INDICADORES | B2: FORTALECIMIENTO DEL SISTEMA DE INDICADORES DE ACUMAR | C2: SERVICIO
A3: 02. SISTEMA DE INFORMACIÓN PÚBLICA | B3: FORTALECIMIENTO DEL SISTEMA DE INFORMACIÓN PÚBLICA DE ACUMAR | C3: SERVICIO
A4: 03. FORTALECIMIENTO INSTITUCIONAL | B4: FORTALECIMIENTO INSTITUCIONAL DE ACUMAR | C4: SERVICIO
A5: 04. ORDENAMIENTO TERRITORIAL | B5: GENERACIÓN DE ESPACIOS VERDES | C5: OBRA
A6: 04. ORDENAMIENTO TERRITORIAL | B6: OBRAS VIALES ESTRATÉGICAS | C6: OBRA
A7: 04. ORDENAMIENTO TERRITORIAL | B7: ACCIONES EN ÁREAS DE ESPECIAL MANEJO | C7: OBRA
A8: 05. EDUCACIÓN AMBIENTAL | B8: CAMPAÑA DE EDUCACIÓN AMBIENTAL | C8: ACTIVIDAD
A9: 05. EDUCACIÓN AMBIENTAL | B9: CAPACITACIÓN EN EDUCACIÓN AMBIENTAL | C9: ACTIVIDAD
A10: 05. EDUCACIÓN AMBIENTAL | B10: NUEVO CENTRO EDUCATIVO | C10: OBRA
A11: 06. PLAN SANITARIO DE EMERGENCIA | B11: NUEVO EFECTOR DE SALUD | C11: OBRA
A12: 06. PLAN SANITARIO DE EMERGENCIA | B12: MEJORA EN EFECTOR DE SALUD | C12: OBRA
A13: 06. PLAN SANITARIO DE EMERGENCIA | B13: EQUIPAMIENTO PARA EFECTOR DE SALUD | C13: ACTIVIDAD
A14: 06. PLAN SANITARIO DE EMERGENCIA | B14: CAMPAÑA DE PREVENCIÓN | C14: ACTIVIDAD
A15: 06. PLAN SANITARIO DE EMERGENCIA | B15: CAMPAÑA DE VACUNACIÓN | C15: ACTIVIDAD
A16: 06. PLAN SANITARIO DE EMERGENCIA | B16: CAPACITACIÓN EN SALUD AMBIENTAL | C16: ACTIVIDAD
A17: 07. MONITOREO DE LA CALIDAD DE AGUA, SEDIMENTOS Y AIRE | B17: MONITOREO DE CALIDAD DE AGUA Y SEDIMENTOS | C17: ACTIVIDAD
A18: 07. MONITOREO DE LA CALIDAD DE AGUA, SEDIMENTOS Y AIRE | B18: MONITOREO DE CALIDAD DE AIRE | C18: ACTIVIDAD
A19: 07. MONITOREO DE LA CALIDAD DE AGUA, SEDIMENTOS Y AIRE | B19: ESTUDIOS Y EVALUACIONES AMBIENTALES | C19: ACTIVIDAD
A20: 08. URBANIZACIÓN DE VILLAS Y ASENTAMIENTOS URBANOS | B20: VIVIENDAS NUEVAS | C20: OBRA
A21: 08. URBANIZACIÓN DE VILLAS Y ASENTAMIENTOS URBANOS | B21: MEJORAMIENTOS DE VIVIENDA EXISTENTE | C21: OBRA
A22: 08. URBANIZACIÓN DE VILLAS Y ASENTAMIENTOS URBANOS | B22: INFRAESTRUCTURA DE SERVICIOS BÁSICOS | C22: OBRA
A23: 08. URBANIZACIÓN DE VILLAS Y ASENTAMIENTOS URBANOS | B23: CONEXIONES INTRADOMICILIARIAS EN VILLAS Y ASENTAMIENTOS | C23: OBRA
A24: 08. URBANIZACIÓN DE VILLAS Y ASENTAMIENTOS URBANOS | B24: CARACTERIZACIÓN Y REMEDIACIÓN DE SUELO | C24: ACTIVIDAD
A25: 08. URBANIZACIÓN DE VILLAS Y ASENTAMIENTOS URBANOS | B25: RED VIAL Y PEATONAL | C25: OBRA
A26: 08. URBANIZACIÓN DE VILLAS Y ASENTAMIENTOS URBANOS | B26: EQUIPAMIENTO COMUNITARIO | C26: OBRA
A27: 08. URBANIZACIÓN DE VILLAS Y ASENTAMIENTOS URBANOS | B27: REGULARIZACIÓN DOMINIAL | C27: ACTIVIDAD
A28: 08. URBANIZACIÓN DE VILLAS Y ASENTAMIENTOS URBANOS | B28: ADQUISICIÓN DE SUELO PARA PROYECTOS DE VIVIENDA Y HÁBITAT | C28: ACTIVIDAD
A29: 08. URBANIZACIÓN DE VILLAS Y ASENTAMIENTOS URBANOS | B29: FINANCIAMIENTO PARA ADQUISICIÓN DE VIVIENDA | C29: SERVICIO
A30: 09. EXPANSIÓN DE LA RED DE AGUA POTABLE Y SANEAMIENTO DE CLOACAS | B30: EXPANSIÓN DE REDES | C30: OBRA
A31: 09. EXPANSIÓN DE LA RED DE AGUA POTABLE Y SANEAMIENTO DE CLOACAS | B31: MEJORA Y MANTENIMIENTO | C31: ACTIVIDAD
A32: 09. EXPANSIÓN DE LA RED DE AGUA POTABLE Y SANEAMIENTO DE CLOACAS | B32: GRANDES OBRAS DE INFRAESTRUCTURA | C32: OBRA
A33: 09. EXPANSIÓN DE LA RED DE AGUA POTABLE Y SANEAMIENTO DE CLOACAS | B33: CONEXIONES INTRADOMICILIARIAS | C33: OBRA
A34: 10. DESAGÜES PLUVIALES | B34: DESAGÜES PLUVIALES | C34: OBRA
A35: 10. DESAGÜES PLUVIALES | B35: CANALIZACIÓN | C35: OBRA
A36: 10. DESAGÜES PLUVIALES | B36: ENTUBAMIENTOS | C36: OBRA
A37: 10. DESAGÜES PLUVIALES | B37: RESERVORIOS | C37: OBRA
A38: 10. DESAGÜES PLUVIALES | B38: DRAGADO | C38: ACTIVIDAD
A39: 10. DESAGÜES PLUVIALES | B39: SUMIDEROS | C39: OBRA
A40: 10. DESAGÜES PLUVIALES | B40: ESTACIONES DE BOMBEO | C40: OBRA
A41: 10. DESAGÜES PLUVIALES | B41: LIMPIEZA Y MANTENIMIENTO DE CANALES Y LAGUNAS | C41: ACTIVIDAD
A42: 11. CONTAMINACIÓN DE ORIGEN INDUSTRIAL | B42: INSPECCIONES | C42: ACTIVIDAD
A43: 11. CONTAMINACIÓN DE ORIGEN INDUSTRIAL | B43: TOMAS DE MUESTRAS | C43: ACTIVIDAD
A44: 11. CONTAMINACIÓN DE ORIGEN INDUSTRIAL | B44: ESTUDIOS Y EVALUACIONES AMBIENTALES | C44: ACTIVIDAD
A45: 11. CONTAMINACIÓN DE ORIGEN INDUSTRIAL | B45: OBRAS ESTRATÉGICAS EN PREDIO ACUBA | C45: OBRA
A46: 12. LIMPIEZA DE MÁRGENES Y CAMINO DE SIRGA | B46: LIMPIEZA DE MÁRGENES Y ARROYOS | C46: ACTIVIDAD
A47: 12. LIMPIEZA DE MÁRGENES Y CAMINO DE SIRGA | B47: DESINFECCIÓN Y DESRATIZACIÓN | C47: ACTIVIDAD
A48: 12. LIMPIEZA DE MÁRGENES Y CAMINO DE SIRGA | B48: RED VIAL | C48: OBRA
A49: 12. LIMPIEZA DE MÁRGENES Y CAMINO DE SIRGA | B49: PARQUIZACIÓN | C49: OBRA
A50: 12. LIMPIEZA DE MÁRGENES Y CAMINO DE SIRGA | B50: ALUMBRADO PÚBLICO | C50: OBRA
A51: 12. LIMPIEZA DE MÁRGENES Y CAMINO DE SIRGA | B51: SEMAFORIZACIÓN | C51: OBRA
A52: 13. SANEAMIENTO DE BASURALES | B52: RECOLECCIÓN DE RESIDUOS | C52: ACTIVIDAD
A53: 13. SANEAMIENTO DE BASURALES | B53: LIMPIEZA DE BASURALES | C53: ACTIVIDAD
A54: 13. SANEAMIENTO DE BASURALES | B54: NUEVA PLANTA DE TRATAMIENTO DE RESIDUOS | C54: OBRA
A55: 13. SANEAMIENTO DE BASURALES | B55: MEJORAMIENTO EN PLANTA DE TRATAMIENTO DE RESIDUOS | C55: OBRA
A56: 13. SANEAMIENTO DE BASURALES | B56: ESTACIONES DE RECICLADO | C56: OBRA
A57: 13. SANEAMIENTO DE BASURALES | B57: DESINFECCIÓN Y DESRATIZACIÓN | C57: ACTIVIDAD
A58: 14. PROGRAMA POLO PETROQUÍMICO DOCK SUD | B58: BALIZAMIENTO | C58: ACTIVIDAD
A59: 14. PROGRAMA POLO PETROQUÍMICO DOCK SUD | B59: DRAGADO | C59: ACTIVIDAD
A60: 14. PROGRAMA POLO PETROQUÍMICO DOCK SUD | B60: RED VIAL EN POLO DOCK SUD | C60: OBRA
A61: 14. PROGRAMA POLO PETROQUÍMICO DOCK SUD | B61: ALUMBRADO PÚBLICO | C61: OBRA
A62: 14. PROGRAMA POLO PETROQUÍMICO DOCK SUD | B62: SANEAMIENTO | C62: OBRA

Sheet Resumen por LA (hidden)
B4: LINEA DE ACCIÓN
B5: 03. FORTALECIMIENTO INSTITUCIONAL
B6: 02. SISTEMA DE INFORMACIÓN
B7: SISTEMA DE INFORMACIÓN PÚBLICA
B8: SISTEMA DE INFORMACIÓN PÚBLICA
B9: SERVICIO DE MONITOREO DE MEDIOS.-
B10: 03. FORTALECIMIENTO INSTITUCIONAL
B11: 04. ORDENAMIENTO TERRITORIAL
B12: 05. EDUCACIÓN AMBIENTAL
B13: 06. PLAN SANITARIO DE EMERGENCIA
B14: 07. MONITOREO DE LA CALIDAD DE AGUA, SEDIMENTOS Y AIRE
B15: 08. URBANIZACIÓN DE VILLAS Y ASENTAMIENTOS URBANOS
B16: 09. EXPANSIÓN DE LA RED DE AGUA POTABLE Y SANEAMIENTO DE CLOACAS
B17: 10. DESAGÜES PLUVIALES
B18: 11. CONTAMINACIÓN DE ORIGEN INDUSTRIAL
B19: 12. LIMPIEZA DE MÁRGENES Y CAMINO DE SIRGA
B20: 13. SANEAMIENTO DE BASURALES
B21: Total general
